Workbook

Sheet HOW TO USE
B1: MADE BY:-भागीरथ मल कलवानियाँ कोलिया MOB. NO 982879204
B2: अति महत्त्व पूर्ण निर्देश इस excell प्रोग्राम में DATA फीड करने से पहले एक बार जरूर पढ़े
B3: 1.DA रेट sheet पूर्ण रूप से प्रोटेक्ट sheet है अति आवश्यक परिस्तिथियों में केवल DA RATE दर CELL में आगामी वर्षों का बनाने के लिए जिस माह से DA की नई दर से वेतन मिलना लगा है उस माह में DA रेट की DATA ENTRY करनी है बाकी के cell में कुछ नहीं करना है क्योंकि यह पूरा PROGRAAM इसी sheet पर आधारित है इसका cell रेंज पासवर्ड DA है
B5: 2 सबसे पहले shala दर्पण से कार्मिकों के DATA डाउनलोड कर इस शालादर्पण कार्मिक DATA sheet पर PASTE करे एवं सभी सभी CELLS की आवश्यकतानुसार पूर्ति करे
B7: 3. TV.NO.AND BIL. NO SHEETS में इनके नंबर और दिनांक लिखे
B9: 4 कार्मिक विवरण sheet में जो data शाला दर्पण कार्मिक sheet से नहीं है उनकी पूर्ति करे,ड्रॉप डाउन सेल से उचित ड्रॉप डाउन चुने
B11: 5 .भते sheet के white colour unlock cell में आवश्यकता नुसार data फीड करे BASICसैलरी CELL में जिस वर्ष का आप पे रजिस्टर बनाना चाहते है उस वर्ष के अप्रैल माह का बेसिक वेतन लिखे
B13: 6 .कटोतियाँ sheet के white colour unlock cell में आवश्यकता नुसार data फीड करे
B15: 7 .EDITPAY पोस्टिंग sheet में सबसे पहले जिस वर्ष का PAY POSTNG RAGISTER बना रहे है वो वितीय वर्ष CELL A1और B1 दोनों CELL में अलग अलग लिखने है उसके बाद कॉलम Q2 CELLS में सबसे पहले उस कार्मिक के क्रम संख्या न कार्मिक विवरण sheet की क्रं संख्या लिखनी है इससे निचे Q4 cell में अगर उस वर्ष में उसकी बेसिक change हुई है तो माह dropdown से SELECT करइसके आगे के cell में CHANGE बेसिक वेतन लिखे उसके निचे cell में अगर SURRENDER का भुगतान लिया है तो माह DROPDOWN से SELECT करे उसके बाद आप इसको एक बार अच्छी तरह अपने ऑफलाइन से मिलान कर ले फिर इस sheet के कटोतियाँ या अन्य कोई CELL में कोई संसोधन करना है तो उन CELLS को UNPROTECT कर उनमे संसोधन कर सकते है CELL रेंज पासवर्ड वेतन CELL RANGE का 1 कटोतियाँ CELLS RANGE का 2 व अन्य बकाया भुगतान RANGE का 3 अन्य CELLS में किसी प्रकार की अनावश्यक EDITING नहीं करे नहीं तो गणना सही नहीं रहेगी |इस sheet के जिन CELLS में संसोधन आवश्यक हो उसके अलावा अन्य में नहीं करे प्रिंट लेने के बाद जिन सेल्स में संसोधन किया उस CELL में = का निसान लगाकर पीछे के सेल पर क्लिक कर ENTER दबा दो एक ROW में एक से ज्यादा CELLS में संसोधन किया है तो यह कार्य MAY माह के CELL में कर आगे मार्च माह तक ड्रैग कर दो क्योंकि दुसरे कार्मिक का प्रिंट करने पर जिस सेल में संसोधन किया उसके आगे के सेल में हम जितने के कार्मिक के भी बनायेंगे वो संसोधित राशि ही आएगी इस से बचने के लिए प्रिंट लेने के बाद पीछे वाले CELLS को आगे ड्रैग करना आवश्यक है |
B17: 8 .प्रिंट पे पोस्टिंग sheet में आप CONTROL+P के प्रिंट ले सकते हैऔर PRINT बटन पर क्लिक करेंगे तो भी कंप्यूटर से प्रिंट भी निकल जायेगा और PDF SAVE LOCATION भी आपसे मांग लेगा वंहा आप कार्मिक के नाम से सेव भी कर सकते है आप अपने कार्यालय कार्मिकों का वर्ष वार PAYRECORD संधारण कर सकते है|
B19: यह मेरा एक छोटा सा प्रयास है किसी भी कार्यालय में कार्यरत कार्मिको का ऑफलाइन पे REGISTER संधारण के लिए|इसमें किसी भी प्रकार के सुधार की आवश्यकता है तो मुझे अपने विचारों से अवगत करवाए |इसको हो सके जितना SHARE करे किसी के कार्य में सहयोग मिल सके
B21: प्रोग्राम निर्माणकर्ता
B22: भागीरथ मल MOB. NO 982879204
B23: अध्यापक L-1 , राजकीय उच्च मा.विद्यालय डसाणा खुर्द (मौलासर) नागौर
B24: स्थाई पता :- कोलिया , तह. - डीडवाना , जिला - नागौर
B25: bhagirathmalkalwania@gmail.com

Sheet DA RATE
A1: MADE BY:-भागीरथ मल कलवानियाँ कोलिया MOB. NO 982879204
A2: DA RATE
A3: सत्र | B3: YEAR | C3: APRIL | D3: MAY | E3: JUNE | F3: JULY | G3: AUGUST | H3: SEPTEMBER | I3: OCTOBER | J3: NOVEMBER | K3: DECEMBER | L3: JANUARY | M3: FEBRUARY | N3: MARCH
A4: 2022-23 | B4: 2022 | C4: 34 | D4: 34 | E4: =D4 -> 34 | F4: 34 | G4: 34 | H4: 34 | I4: 38 | J4: 38 | K4: 38 | L4: 38 | M4: 38 | N4: 38
A5: 2023-24 | B5: 2023 | C5: 42 | D5: =C5 -> 42 | E5: 42 | F5: 42 | G5: 42 | H5: 42 | I5: 46 | J5: 46 | K5: 46 | L5: 46 | M5: =L5 -> 46 | N5: 46
A6: 2024-25 | B6: 2024 | C6: =N5 -> 46 | D6: =C6 -> 46 | E6: 46 | F6: 46 | G6: 46 | H6: =G6 -> 46 | I6: =H6 -> 46 | J6: 46 | K6: 46 | L6: 46 | M6: 46 | N6: 46
A7: 2025-26 | B7: 2025 | C7: =N6 -> 46 | D7: =C7 -> 46 | E7: =D7 -> 46 | F7: =E7 -> 46 | G7: =F7 -> 46 | H7: =G7 -> 46 | I7: 46 | J7: =I7 -> 46 | K7: =J7 -> 46 | L7: =K7 -> 46 | M7: =L7 -> 46 | N7: =M7 -> 46
A8: 2026-27 | B8: 2026 | C8: 46 | D8: 46 | E8: 46 | F8: 46 | G8: 46 | H8: =G8 -> 46 | I8: 46 | J8: 46 | K8: 46 | L8: 46 | M8: 46 | N8: 46
A9: 2027-28 | B9: 2027 | C9: 46 | D9: 46 | E9: 46 | F9: 46 | G9: 46 | H9: =G9 -> 46 | I9: 46 | J9: 46 | K9: 46 | L9: 46 | M9: 46 | N9: 46
A10: 2028-29 | B10: 2028 | C10: 46 | D10: 46 | E10: 46 | F10: 46 | G10: 46 | H10: =G10 -> 46 | I10: 46 | J10: 46 | K10: 46 | L10: 46 | M10: 46 | N10: 46
A11: 2029-30 | B11: 2029 | C11: 46 | D11: 46 | E11: 46 | F11: 46 | G11: 46 | H11: =G11 -> 46 | I11: 46 | J11: 46 | K11: 46 | L11: 46 | M11: 46 | N11: 46
C12: 0 | D12: =C12 -> 0 | E12: 0 | F12: 0 | G12: 0 | H12: 0 | I12: 0 | J12: 0 | K12: 0 | L12: 0 | M12: 0 | N12: 0
C13: =N12 -> 0 | D13: 0 | E13: 0 | F13: 0 | G13: 0 | H13: 0 | I13: 0 | J13: 0 | K13: 0 | L13: 0 | M13: 0 | N13: 0
C14: 0 | D14: 0 | E14: 0 | F14: 0 | G14: 0 | H14: 0 | I14: 0 | J14: 0 | K14: 0 | L14: 0 | M14: 0 | N14: 0
C15: 0 | D15: 0 | E15: 0 | F15: 0 | G15: 0 | H15: 0 | I15: 0 | J15: 0 | K15: 0 | L15: 0 | M15: 0 | N15: 0
C16: 0 | D16: 0 | E16: 0 | F16: 0 | G16: 0 | H16: 0 | I16: 0 | J16: 0 | K16: 0 | L16: 0 | M16: 0 | N16: 0
C17: 0 | D17: 0 | E17: 0 | F17: 0 | G17: 0 | H17: 0 | I17: 0 | J17: 0 | K17: 0 | L17: 0 | M17: 0 | N17: 0
C18: 0 | D18: 0 | E18: 0 | F18: 0 | G18: 0 | H18: 0 | I18: 0 | J18: 0 | K18: 0 | L18: 0 | M18: 0 | N18: 0
C19: 0 | D19: 0 | E19: 0 | F19: 0 | G19: 0 | H19: 0 | I19: 0 | J19: 0 | K19: 0 | L19: 0 | M19: 0 | N19: 0
C20: 0 | D20: 0 | E20: =D20 -> 0 | F20: 0 | G20: 0 | H20: 0 | I20: 0 | J20: 0 | K20: 0 | L20: 0 | M20: 0 | N20: 0
C21: 0 | D21: 0 | E21: =D21 -> 0 | F21: 0 | G21: 0 | H21: 0 | I21: 0 | J21: 0 | K21: 0 | L21: 0 | M21: 0 | N21: 0

Sheet शालादर्पण कार्मिक DATA
A1: MADE BY:-भागीरथ मल कलवानियाँ कोलिया MOB. NO 982879204
A2: राजकीय उच्च माध्यमिक विद्यालय डसाणा खुर्द,मौलासर,नागौर
A3: NAME | B3: EMPLOYEE ID | C3: FATHER NAME | D3: GENDER | E3: DOB | F3: POST | G3: SUBJECT | H3: DATE OF JOINING | I3: ADDRESS | J3: ADHAR NO | K3: PAN No | L3: MOBILE NO | M3: BLOOD GROUP
A4: BHAGIRATH MAL | B4: RJNA199728012345 | C4: A | D4: M | E4: 1971-01-21 | F4: Senior Teacher (II Gr.) | G4: Social Science | H4: 2016-10-28 | I4: A | J4: XXXXXXXX5832 | K4: XXXXS1582D | L4: XXXXXX5095 | M4: A-
A5: B | B5: B | C5: B | D5: M | E5: 1969-04-01 | F5: Teacher (III Gr.) Level 1 | G5: --- | H5: 2016-09-08 | I5: B | J5: XXXXXXXX7101 | K5: XXXXK6245L | L5: XXXXXX9204 | M5: O+
A6: C | B6: C | C6: C | D6: M | E6: 1989-10-15 | F6: Senior Teacher (II Gr.) | G6: Sanskrit | H6: 2020-09-03 | I6: C | J6: XXXXXXXX7272 | K6: XXXXC9446G | L6: XXXXXX5637 | M6: B+
A7: D | B7: D | C7: D | D7: M | E7: 1987-05-15 | F7: Senior Teacher (II Gr.) | G7: Hindi | H7: 2014-12-29 | I7: D | J7: XXXXXXXX7163 | K7: XXXXM3231R | L7: XXXXXX2286 | M7: O+
A8: E | B8: E | C8: E | D8: F | E8: 1968-06-02 | F8: Teacher (III Gr.) Level 1 | G8: --- | H8: 2015-09-18 | I8: E | J8: XXXXXXXX5107 | K8: XXXXD8016L | L8: XXXXXX7761 | M8: A+
A9: F | B9: F | C9: F | D9: M | E9: 1985-06-06 | F9: Senior Teacher (II Gr.) | G9: English | H9: 2018-08-21 | I9: F | J9: XXXXXXXX5359 | K9: XXXXR3560F | L9: XXXXXX7474 | M9: B+
A10: G | B10: G | C10: G | D10: M | E10: 1973-12-05 | F10: Class IV | G10: --- | H10: 2016-09-08 | I10: G | J10: XXXXXXXX9436 | K10: XXXXK6106C | L10: XXXXXX1384 | M10: B+
A11: H | B11: H | C11: H | D11: M | E11: 1974-07-17 | F11: PET (III Gr.) | G11: --- | H11: 2016-06-09 | I11: H | J11: XXXXXXXX0113 | K11: XXXXM5115H | L11: XXXXXX5076 | M11: AB+
A12: I | B12: I | C12: I | D12: M | E12: 1986-08-26 | F12: Headmaster & Equivalent | G12: --- | H12: 2019-10-25 | I12: I | J12: XXXXXXXX0642 | K12: XXXXK6555R | L12: XXXXXX1071 | M12: O+
A13: J | B13: J | C13: J | D13: M | E13: 1975-06-01 | F13: Senior Teacher (II Gr.) | G13: Mathematics | H13: 2018-07-26 | I13: J | J13: XXXXXXXX0787 | K13: XXXXK6782N | L13: XXXXXX2816 | M13: O+
A14: K | B14: K | C14: K | D14: F | E14: 1980-01-02 | F14: Teacher (III Gr.) Level 2 | G14: Hindi | H14: 2018-09-24 | I14: K | J14: XXXXXXXX2059 | K14: XXXXs9321a | L14: XXXXXX6091 | M14: A+
A15: L | B15: L | C15: L | D15: F | E15: 1999-03-26 | F15: Junior Assistant | G15: --- | H15: 2020-07-13 | I15: L | J15: XXXXXXXX4135 | K15: XXXXR4026M | L15: XXXXXX4082 | M15: O+
A16: M | B16: M | C16: M | I16: M
A17: N | B17: N | C17: N | I17: N
A18: O | B18: O | C18: O | I18: O
A19: P | B19: P | C19: P | I19: P
A20: Q | B20: Q | C20: Q | I20: Q
A21: R | B21: R | C21: R | I21: R
A22: S | B22: S | C22: S | I22: S
A23: T | B23: T | C23: T | I23: T
A24: U | B24: U | C24: U | I24: U
A25: V | B25: V | C25: V | I25: V
A26: W | B26: W | C26: W | I26: W
A27: X | B27: X | C27: X | I27: X
A28: Z | B28: Z | C28: Z | I28: Z

Sheet कार्मिक विवरण
A1: MADE BY:-भागीरथ मल कलवानियाँ कोलिया MOB. NO 982879204
A2: राजकीय उच्च माध्यमिक विद्यालय डसाणा खुर्द,मौलासर,नागौर
A3: Employee Data | B3: कार्मिक विवरण
A4: क्र.सं. | B4: नाम | C4: पद | D4: DOB | E4: पैन नंबर | F4: Emp. ID | G4: Nps Employee | H4: HRA Rate | I4: SI No. | J4: GPF No. | K4: PRAN No. | L4: आधार कार्ड नंबर | M4: बैंक नाम | N4: IFSC Code | O4: बैंक A/c | P4: IS IN Probation
A5: =IF(कार्मिक_विवरण[नाम]="","",ROWS($A$2:A2)) -> 1 | B5: =IF('शालादर्पण कार्मिक DATA'!A4="","",'शालादर्पण कार्मिक DATA'!A4) -> BHAGIRATH MAL | C5: =UPPER(IF('शालादर्पण कार्मिक DATA'!F4="","",'शालादर्पण कार्मिक DATA'!F4)) -> SENIOR TEACHER (II GR.) | D5: =IF('शालादर्पण कार्मिक DATA'!E4="","",'शालादर्पण कार्मिक DATA'!E4) -> 1971-01-21 | E5: =IF('शालादर्पण कार्मिक DATA'!K4="","",'शालादर्पण कार्मिक DATA'!K4) -> XXXXS1582D | F5: =IF('शालादर्पण कार्मिक DATA'!B4="","",'शालादर्पण कार्मिक DATA'!B4) -> RJNA199728012345 | G5: No | H5: 9% | I5: 1121192 | J5: 123456 | K5: 123654987897 | L5: =IF('शालादर्पण कार्मिक DATA'!J4="","",'शालादर्पण कार्मिक DATA'!J4) -> XXXXXXXX5832 | M5: SBI | N5: SBIN00 | O5: 61118966625 | P5: No
A6: =IF(कार्मिक_विवरण[नाम]="","",ROWS($A$2:A3)) -> 2 | B6: =IF('शालादर्पण कार्मिक DATA'!A5="","",'शालादर्पण कार्मिक DATA'!A5) -> B | C6: =UPPER(IF('शालादर्पण कार्मिक DATA'!F5="","",'शालादर्पण कार्मिक DATA'!F5)) -> TEACHER (III GR.) LEVEL 1 | D6: =IF('शालादर्पण कार्मिक DATA'!E5="","",'शालादर्पण कार्मिक DATA'!E5) -> 1969-04-01 | E6: =IF('शालादर्पण कार्मिक DATA'!K5="","",'शालादर्पण कार्मिक DATA'!K5) -> XXXXK6245L | F6: =IF('शालादर्पण कार्मिक DATA'!B5="","",'शालादर्पण कार्मिक DATA'!B5) -> B | G6: No | H6: 9% | I6: 1121192 | J6: 123456 | K6: 123654987897 | L6: =IF('शालादर्पण कार्मिक DATA'!J5="","",'शालादर्पण कार्मिक DATA'!J5) -> XXXXXXXX7101 | M6: SBI | N6: SBIN0031406 | O6: 61118966625 | P6: No
A7: =IF(कार्मिक_विवरण[नाम]="","",ROWS($A$2:A4)) -> 3 | B7: =IF('शालादर्पण कार्मिक DATA'!A6="","",'शालादर्पण कार्मिक DATA'!A6) -> C | C7: =UPPER(IF('शालादर्पण कार्मिक DATA'!F6="","",'शालादर्पण कार्मिक DATA'!F6)) -> SENIOR TEACHER (II GR.) | D7: =IF('शालादर्पण कार्मिक DATA'!E6="","",'शालादर्पण कार्मिक DATA'!E6) -> 1989-10-15 | E7: =IF('शालादर्पण कार्मिक DATA'!K6="","",'शालादर्पण कार्मिक DATA'!K6) -> XXXXC9446G | F7: =IF('शालादर्पण कार्मिक DATA'!B6="","",'शालादर्पण कार्मिक DATA'!B6) -> C | G7: No | I7: 1121192 | J7: 123456 | K7: 123654987897 | L7: =IF('शालादर्पण कार्मिक DATA'!J6="","",'शालादर्पण कार्मिक DATA'!J6) -> XXXXXXXX7272 | M7: SBI | N7: SBIN00 | O7: 61118966625 | P7: Yes
A8: =IF(कार्मिक_विवरण[नाम]="","",ROWS($A$2:A5)) -> 4 | B8: =IF('शालादर्पण कार्मिक DATA'!A7="","",'शालादर्पण कार्मिक DATA'!A7) -> D | C8: =UPPER(IF('शालादर्पण कार्मिक DATA'!F7="","",'शालादर्पण कार्मिक DATA'!F7)) -> SENIOR TEACHER (II GR.) | D8: =IF('शालादर्पण कार्मिक DATA'!E7="","",'शालादर्पण कार्मिक DATA'!E7) -> 1987-05-15 | E8: =IF('शालादर्पण कार्मिक DATA'!K7="","",'शालादर्पण कार्मिक DATA'!K7) -> XXXXM3231R | F8: =IF('शालादर्पण कार्मिक DATA'!B7="","",'शालादर्पण कार्मिक DATA'!B7) -> D | G8: No | I8: 1121192 | J8: 123456 | K8: 123654987897 | L8: =IF('शालादर्पण कार्मिक DATA'!J7="","",'शालादर्पण कार्मिक DATA'!J7) -> XXXXXXXX7163 | M8: SBI | N8: SBIN00 | O8: 61118966625 | P8: No
A9: =IF(कार्मिक_विवरण[नाम]="","",ROWS($A$2:A6)) -> 5 | B9: =IF('शालादर्पण कार्मिक DATA'!A8="","",'शालादर्पण कार्मिक DATA'!A8) -> E | C9: =UPPER(IF('शालादर्पण कार्मिक DATA'!F8="","",'शालादर्पण कार्मिक DATA'!F8)) -> TEACHER (III GR.) LEVEL 1 | D9: =IF('शालादर्पण कार्मिक DATA'!E8="","",'शालादर्पण कार्मिक DATA'!E8) -> 1968-06-02 | E9: =IF('शालादर्पण कार्मिक DATA'!K8="","",'शालादर्पण कार्मिक DATA'!K8) -> XXXXD8016L | F9: =IF('शालादर्पण कार्मिक DATA'!B8="","",'शालादर्पण कार्मिक DATA'!B8) -> E | G9: No | I9: 1121192 | J9: 123456 | K9: 123654987897 | L9: =IF('शालादर्पण कार्मिक DATA'!J8="","",'शालादर्पण कार्मिक DATA'!J8) -> XXXXXXXX5107 | M9: SBI | N9: SBIN00 | O9: 61118966625 | P9: No
A10: =IF(कार्मिक_विवरण[नाम]="","",ROWS($A$2:A7)) -> 6 | B10: =IF('शालादर्पण कार्मिक DATA'!A9="","",'शालादर्पण कार्मिक DATA'!A9) -> F | C10: =UPPER(IF('शालादर्पण कार्मिक DATA'!F9="","",'शालादर्पण कार्मिक DATA'!F9)) -> SENIOR TEACHER (II GR.) | D10: =IF('शालादर्पण कार्मिक DATA'!E9="","",'शालादर्पण कार्मिक DATA'!E9) -> 1985-06-06 | E10: =IF('शालादर्पण कार्मिक DATA'!K9="","",'शालादर्पण कार्मिक DATA'!K9) -> XXXXR3560F | F10: =IF('शालादर्पण कार्मिक DATA'!B9="","",'शालादर्पण कार्मिक DATA'!B9) -> F | G10: No | I10: 1121192 | J10: 123456 | K10: 123654987897 | L10: =IF('शालादर्पण कार्मिक DATA'!J9="","",'शालादर्पण कार्मिक DATA'!J9) -> XXXXXXXX5359 | M10: SBI | N10: SBIN00 | O10: 61118966625 | P10: No
A11: =IF(कार्मिक_विवरण[नाम]="","",ROWS($A$2:A8)) -> 7 | B11: =IF('शालादर्पण कार्मिक DATA'!A10="","",'शालादर्पण कार्मिक DATA'!A10) -> G | C11: =UPPER(IF('शालादर्पण कार्मिक DATA'!F10="","",'शालादर्पण कार्मिक DATA'!F10)) -> CLASS IV | D11: =IF('शालादर्पण कार्मिक DATA'!E10="","",'शालादर्पण कार्मिक DATA'!E10) -> 1973-12-05 | E11: =IF('शालादर्पण कार्मिक DATA'!K10="","",'शालादर्पण कार्मिक DATA'!K10) -> XXXXK6106C | F11: =IF('शालादर्पण कार्मिक DATA'!B10="","",'शालादर्पण कार्मिक DATA'!B10) -> G | G11: No | I11: 1121192 | J11: 123456 | K11: 123654987897 | L11: =IF('शालादर्पण कार्मिक DATA'!J10="","",'शालादर्पण कार्मिक DATA'!J10) -> XXXXXXXX9436 | M11: SBI | N11: SBIN00 | O11: 61118966625 | P11: No
A12: =IF(कार्मिक_विवरण[नाम]="","",ROWS($A$2:A9)) -> 8 | B12: =IF('शालादर्पण कार्मिक DATA'!A11="","",'शालादर्पण कार्मिक DATA'!A11) -> H | C12: =UPPER(IF('शालादर्पण कार्मिक DATA'!F11="","",'शालादर्पण कार्मिक DATA'!F11)) -> PET (III GR.) | D12: =IF('शालादर्पण कार्मिक DATA'!E11="","",'शालादर्पण कार्मिक DATA'!E11) -> 1974-07-17 | E12: =IF('शालादर्पण कार्मिक DATA'!K11="","",'शालादर्पण कार्मिक DATA'!K11) -> XXXXM5115H | F12: =IF('शालादर्पण कार्मिक DATA'!B11="","",'शालादर्पण कार्मिक DATA'!B11) -> H | G12: No | I12: 1121192 | J12: 123456 | K12: 123654987897 | L12: =IF('शालादर्पण कार्मिक DATA'!J11="","",'शालादर्पण कार्मिक DATA'!J11) -> XXXXXXXX0113 | M12: SBI | N12: SBIN00 | O12: 61118966625 | P12: No
A13: =IF(कार्मिक_विवरण[नाम]="","",ROWS($A$2:A10)) -> 9 | B13: =IF('शालादर्पण कार्मिक DATA'!A12="","",'शालादर्पण कार्मिक DATA'!A12) -> I | C13: =UPPER(IF('शालादर्पण कार्मिक DATA'!F12="","",'शालादर्पण कार्मिक DATA'!F12)) -> HEADMASTER & EQUIVALENT | D13: =IF('शालादर्पण कार्मिक DATA'!E12="","",'शालादर्पण कार्मिक DATA'!E12) -> 1986-08-26 | E13: =IF('शालादर्पण कार्मिक DATA'!K12="","",'शालादर्पण कार्मिक DATA'!K12) -> XXXXK6555R | F13: =IF('शालादर्पण कार्मिक DATA'!B12="","",'शालादर्पण कार्मिक DATA'!B12) -> I | G13: No | I13: 1121192 | J13: 123456 | K13: 123654987897 | L13: =IF('शालादर्पण कार्मिक DATA'!J12="","",'शालादर्पण कार्मिक DATA'!J12) -> XXXXXXXX0642 | M13: SBI | N13: SBIN00 | O13: 61118966625 | P13: No
A14: =IF(कार्मिक_विवरण[नाम]="","",ROWS($A$2:A11)) -> 10 | B14: =IF('शालादर्पण कार्मिक DATA'!A13="","",'शालादर्पण कार्मिक DATA'!A13) -> J | C14: =UPPER(IF('शालादर्पण कार्मिक DATA'!F13="","",'शालादर्पण कार्मिक DATA'!F13)) -> SENIOR TEACHER (II GR.) | D14: =IF('शालादर्पण कार्मिक DATA'!E13="","",'शालादर्पण कार्मिक DATA'!E13) -> 1975-06-01 | E14: =IF('शालादर्पण कार्मिक DATA'!K13="","",'शालादर्पण कार्मिक DATA'!K13) -> XXXXK6782N | F14: =IF('शालादर्पण कार्मिक DATA'!B13="","",'शालादर्पण कार्मिक DATA'!B13) -> J | G14: No | I14: 1121192 | J14: 123456 | K14: 123654987897 | L14: =IF('शालादर्पण कार्मिक DATA'!J13="","",'शालादर्पण कार्मिक DATA'!J13) -> XXXXXXXX0787 | M14: SBI | N14: SBIN00 | O14: 61118966625 | P14: Yes
A15: =IF(कार्मिक_विवरण[नाम]="","",ROWS($A$2:A12)) -> 11 | B15: =IF('शालादर्पण कार्मिक DATA'!A14="","",'शालादर्पण कार्मिक DATA'!A14) -> K | C15: =UPPER(IF('शालादर्पण कार्मिक DATA'!F14="","",'शालादर्पण कार्मिक DATA'!F14)) -> TEACHER (III GR.) LEVEL 2 | D15: =IF('शालादर्पण कार्मिक DATA'!E14="","",'शालादर्पण कार्मिक DATA'!E14) -> 1980-01-02 | E15: =IF('शालादर्पण कार्मिक DATA'!K14="","",'शालादर्पण कार्मिक DATA'!K14) -> XXXXs9321a | F15: =IF('शालादर्पण कार्मिक DATA'!B14="","",'शालादर्पण कार्मिक DATA'!B14) -> K | G15: No | I15: 1121192 | K15: 123654987897 | L15: =IF('शालादर्पण कार्मिक DATA'!J14="","",'शालादर्पण कार्मिक DATA'!J14) -> XXXXXXXX2059 | M15: SBI | N15: SBIN00 | O15: 61118966625 | P15: No
A16: =IF(कार्मिक_विवरण[नाम]="","",ROWS($A$2:A13)) -> 12 | B16: =IF('शालादर्पण कार्मिक DATA'!A15="","",'शालादर्पण कार्मिक DATA'!A15) -> L | C16: =UPPER(IF('शालादर्पण कार्मिक DATA'!F15="","",'शालादर्पण कार्मिक DATA'!F15)) -> JUNIOR ASSISTANT | D16: =IF('शालादर्पण कार्मिक DATA'!E15="","",'शालादर्पण कार्मिक DATA'!E15) -> 1999-03-26 | E16: =IF('शालादर्पण कार्मिक DATA'!K15="","",'शालादर्पण कार्मिक DATA'!K15) -> XXXXR4026M | F16: =IF('शालादर्पण कार्मिक DATA'!B15="","",'शालादर्पण कार्मिक DATA'!B15) -> L | G16: No | I16: 1121192 | K16: 123654987897 | L16: =IF('शालादर्पण कार्मिक DATA'!J15="","",'शालादर्पण कार्मिक DATA'!J15) -> XXXXXXXX4135 | M16: SBI | N16: SBIN00 | O16: 61118966625 | P16: Yes
A17: =IF(कार्मिक_विवरण[नाम]="","",ROWS($A$2:A14)) -> 13 | B17: =IF('शालादर्पण कार्मिक DATA'!A16="","",'शालादर्पण कार्मिक DATA'!A16) -> M | C17: =UPPER(IF('शालादर्पण कार्मिक DATA'!F16="","",'शालादर्पण कार्मिक DATA'!F16)) ->  | D17: =IF('शालादर्पण कार्मिक DATA'!E16="","",'शालादर्पण कार्मिक DATA'!E16) ->  | E17: =IF('शालादर्पण कार्मिक DATA'!K16="","",'शालादर्पण कार्मिक DATA'!K16) ->  | F17: =IF('शालादर्पण कार्मिक DATA'!B16="","",'शालादर्पण कार्मिक DATA'!B16) -> M | G17: No | L17: =IF('शालादर्पण कार्मिक DATA'!J16="","",'शालादर्पण कार्मिक DATA'!J16) -> 
A18: =IF(कार्मिक_विवरण[नाम]="","",ROWS($A$2:A15)) -> 14 | B18: =IF('शालादर्पण कार्मिक DATA'!A17="","",'शालादर्पण कार्मिक DATA'!A17) -> N | C18: =UPPER(IF('शालादर्पण कार्मिक DATA'!F17="","",'शालादर्पण कार्मिक DATA'!F17)) ->  | D18: =IF('शालादर्पण कार्मिक DATA'!E17="","",'शालादर्पण कार्मिक DATA'!E17) ->  | E18: =IF('शालादर्पण कार्मिक DATA'!K17="","",'शालादर्पण कार्मिक DATA'!K17) ->  | F18: =IF('शालादर्पण कार्मिक DATA'!B17="","",'शालादर्पण कार्मिक DATA'!B17) -> N | G18: No | L18: =IF('शालादर्पण कार्मिक DATA'!J17="","",'शालादर्पण कार्मिक DATA'!J17) -> 
A19: =IF(कार्मिक_विवरण[नाम]="","",ROWS($A$2:A16)) -> 15 | B19: =IF('शालादर्पण कार्मिक DATA'!A18="","",'शालादर्पण कार्मिक DATA'!A18) -> O | C19: =UPPER(IF('शालादर्पण कार्मिक DATA'!F18="","",'शालादर्पण कार्मिक DATA'!F18)) ->  | D19: =IF('शालादर्पण कार्मिक DATA'!E18="","",'शालादर्पण कार्मिक DATA'!E18) ->  | E19: =IF('शालादर्पण कार्मिक DATA'!K18="","",'शालादर्पण कार्मिक DATA'!K18) ->  | F19: =IF('शालादर्पण कार्मिक DATA'!B18="","",'शालादर्पण कार्मिक DATA'!B18) -> O | G19: No | L19: =IF('शालादर्पण कार्मिक DATA'!J18="","",'शालादर्पण कार्मिक DATA'!J18) -> 
A20: =IF(कार्मिक_विवरण[नाम]="","",ROWS($A$2:A17)) -> 16 | B20: =IF('शालादर्पण कार्मिक DATA'!A19="","",'शालादर्पण कार्मिक DATA'!A19) -> P | C20: =UPPER(IF('शालादर्पण कार्मिक DATA'!F19="","",'शालादर्पण कार्मिक DATA'!F19)) ->  | D20: =IF('शालादर्पण कार्मिक DATA'!E19="","",'शालादर्पण कार्मिक DATA'!E19) ->  | E20: =IF('शालादर्पण कार्मिक DATA'!K19="","",'शालादर्पण कार्मिक DATA'!K19) ->  | F20: =IF('शालादर्पण कार्मिक DATA'!B19="","",'शालादर्पण कार्मिक DATA'!B19) -> P | G20: No | L20: =IF('शालादर्पण कार्मिक DATA'!J19="","",'शालादर्पण कार्मिक DATA'!J19) -> 
A21: =IF(कार्मिक_विवरण[नाम]="","",ROWS($A$2:A18)) -> 17 | B21: =IF('शालादर्पण कार्मिक DATA'!A20="","",'शालादर्पण कार्मिक DATA'!A20) -> Q | C21: =UPPER(IF('शालादर्पण कार्मिक DATA'!F20="","",'शालादर्पण कार्मिक DATA'!F20)) ->  | D21: =IF('शालादर्पण कार्मिक DATA'!E20="","",'शालादर्पण कार्मिक DATA'!E20) ->  | E21: =IF('शालादर्पण कार्मिक DATA'!K20="","",'शालादर्पण कार्मिक DATA'!K20) ->  | F21: =IF('शालादर्पण कार्मिक DATA'!B20="","",'शालादर्पण कार्मिक DATA'!B20) -> Q | G21: No | L21: =IF('शालादर्पण कार्मिक DATA'!J20="","",'शालादर्पण कार्मिक DATA'!J20) -> 
A22: =IF(कार्मिक_विवरण[नाम]="","",ROWS($A$2:A19)) -> 18 | B22: =IF('शालादर्पण कार्मिक DATA'!A21="","",'शालादर्पण कार्मिक DATA'!A21) -> R | C22: =UPPER(IF('शालादर्पण कार्मिक DATA'!F21="","",'शालादर्पण कार्मिक DATA'!F21)) ->  | D22: =IF('शालादर्पण कार्मिक DATA'!E21="","",'शालादर्पण कार्मिक DATA'!E21) ->  | E22: =IF('शालादर्पण कार्मिक DATA'!K21="","",'शालादर्पण कार्मिक DATA'!K21) ->  | F22: =IF('शालादर्पण कार्मिक DATA'!B21="","",'शालादर्पण कार्मिक DATA'!B21) -> R | G22: No | L22: =IF('शालादर्पण कार्मिक DATA'!J21="","",'शालादर्पण कार्मिक DATA'!J21) -> 
A23: =IF(कार्मिक_विवरण[नाम]="","",ROWS($A$2:A20)) -> 19 | B23: =IF('शालादर्पण कार्मिक DATA'!A22="","",'शालादर्पण कार्मिक DATA'!A22) -> S | C23: =UPPER(IF('शालादर्पण कार्मिक DATA'!F22="","",'शालादर्पण कार्मिक DATA'!F22)) ->  | D23: =IF('शालादर्पण कार्मिक DATA'!E22="","",'शालादर्पण कार्मिक DATA'!E22) ->  | E23: =IF('शालादर्पण कार्मिक DATA'!K22="","",'शालादर्पण कार्मिक DATA'!K22) ->  | F23: =IF('शालादर्पण कार्मिक DATA'!B22="","",'शालादर्पण कार्मिक DATA'!B22) -> S | L23: =IF('शालादर्पण कार्मिक DATA'!J22="","",'शालादर्पण कार्मिक DATA'!J22) -> 
A24: =IF(कार्मिक_विवरण[नाम]="","",ROWS($A$2:A21)) -> 20 | B24: =IF('शालादर्पण कार्मिक DATA'!A23="","",'शालादर्पण कार्मिक DATA'!A23) -> T | C24: =UPPER(IF('शालादर्पण कार्मिक DATA'!F23="","",'शालादर्पण कार्मिक DATA'!F23)) ->  | D24: =IF('शालादर्पण कार्मिक DATA'!E23="","",'शालादर्पण कार्मिक DATA'!E23) ->  | E24: =IF('शालादर्पण कार्मिक DATA'!K23="","",'शालादर्पण कार्मिक DATA'!K23) ->  | F24: =IF('शालादर्पण कार्मिक DATA'!B23="","",'शालादर्पण कार्मिक DATA'!B23) -> T | L24: =IF('शालादर्पण कार्मिक DATA'!J23="","",'शालादर्पण कार्मिक DATA'!J23) -> 
A25: =IF(कार्मिक_विवरण[नाम]="","",ROWS($A$2:A22)) -> 21 | B25: =IF('शालादर्पण कार्मिक DATA'!A24="","",'शालादर्पण कार्मिक DATA'!A24) -> U | C25: =UPPER(IF('शालादर्पण कार्मिक DATA'!F24="","",'शालादर्पण कार्मिक DATA'!F24)) ->  | D25: =IF('शालादर्पण कार्मिक DATA'!E24="","",'शालादर्पण कार्मिक DATA'!E24) ->  | E25: =IF('शालादर्पण कार्मिक DATA'!K24="","",'शालादर्पण कार्मिक DATA'!K24) ->  | F25: =IF('शालादर्पण कार्मिक DATA'!B24="","",'शालादर्पण कार्मिक DATA'!B24) -> U | L25: =IF('शालादर्पण कार्मिक DATA'!J24="","",'शालादर्पण कार्मिक DATA'!J24) -> 
A26: =IF(कार्मिक_विवरण[नाम]="","",ROWS($A$2:A23)) -> 22 | B26: =IF('शालादर्पण कार्मिक DATA'!A25="","",'शालादर्पण कार्मिक DATA'!A25) -> V | C26: =UPPER(IF('शालादर्पण कार्मिक DATA'!F25="","",'शालादर्पण कार्मिक DATA'!F25)) ->  | D26: =IF('शालादर्पण कार्मिक DATA'!E25="","",'शालादर्पण कार्मिक DATA'!E25) ->  | E26: =IF('शालादर्पण कार्मिक DATA'!K25="","",'शालादर्पण कार्मिक DATA'!K25) ->  | F26: =IF('शालादर्पण कार्मिक DATA'!B25="","",'शालादर्पण कार्मिक DATA'!B25) -> V | L26: =IF('शालादर्पण कार्मिक DATA'!J25="","",'शालादर्पण कार्मिक DATA'!J25) -> 
A27: =IF(कार्मिक_विवरण[नाम]="","",ROWS($A$2:A24)) -> 23 | B27: =IF('शालादर्पण कार्मिक DATA'!A26="","",'शालादर्पण कार्मिक DATA'!A26) -> W | C27: =UPPER(IF('शालादर्पण कार्मिक DATA'!F26="","",'शालादर्पण कार्मिक DATA'!F26)) ->  | D27: =IF('शालादर्पण कार्मिक DATA'!E26="","",'शालादर्पण कार्मिक DATA'!E26) ->  | E27: =IF('शालादर्पण कार्मिक DATA'!K26="","",'शालादर्पण कार्मिक DATA'!K26) ->  | F27: =IF('शालादर्पण कार्मिक DATA'!B26="","",'शालादर्पण कार्मिक DATA'!B26) -> W | L27: =IF('शालादर्पण कार्मिक DATA'!J26="","",'शालादर्पण कार्मिक DATA'!J26) -> 
A28: =IF(कार्मिक_विवरण[नाम]="","",ROWS($A$2:A25)) -> 24 | B28: =IF('शालादर्पण कार्मिक DATA'!A27="","",'शालादर्पण कार्मिक DATA'!A27) -> X | C28: =UPPER(IF('शालादर्पण कार्मिक DATA'!F27="","",'शालादर्पण कार्मिक DATA'!F27)) ->  | D28: =IF('शालादर्पण कार्मिक DATA'!E27="","",'शालादर्पण कार्मिक DATA'!E27) ->  | E28: =IF('शालादर्पण कार्मिक DATA'!K27="","",'शालादर्पण कार्मिक DATA'!K27) ->  | F28: =IF('शालादर्पण कार्मिक DATA'!B27="","",'शालादर्पण कार्मिक DATA'!B27) -> X | L28: =IF('शालादर्पण कार्मिक DATA'!J27="","",'शालादर्पण कार्मिक DATA'!J27) -> 
A29: =IF(कार्मिक_विवरण[नाम]="","",ROWS($A$2:A26)) -> 25 | B29: =IF('शालादर्पण कार्मिक DATA'!A28="","",'शालादर्पण कार्मिक DATA'!A28) -> Z | C29: =UPPER(IF('शालादर्पण कार्मिक DATA'!F28="","",'शालादर्पण कार्मिक DATA'!F28)) ->  | D29: =IF('शालादर्पण कार्मिक DATA'!E28="","",'शालादर्पण कार्मिक DATA'!E28) ->  | E29: =IF('शालादर्पण कार्मिक DATA'!K28="","",'शालादर्पण कार्मिक DATA'!K28) ->  | F29: =IF('शालादर्पण कार्मिक DATA'!B28="","",'शालादर्पण कार्मिक DATA'!B28) -> Z | L29: =IF('शालादर्पण कार्मिक DATA'!J28="","",'शालादर्पण कार्मिक DATA'!J28) -> 
A30: =IF(कार्मिक_विवरण[नाम]="","",ROWS($A$2:A27)) ->  | B30: =IF('शालादर्पण कार्मिक DATA'!A29="","",'शालादर्पण कार्मिक DATA'!A29) ->  | C30: =UPPER(IF('शालादर्पण कार्मिक DATA'!F29="","",'शालादर्पण कार्मिक DATA'!F29)) ->  | D30: =IF('शालादर्पण कार्मिक DATA'!E29="","",'शालादर्पण कार्मिक DATA'!E29) ->  | E30: =IF('शालादर्पण कार्मिक DATA'!K29="","",'शालादर्पण कार्मिक DATA'!K29) ->  | F30: =IF('शालादर्पण कार्मिक DATA'!B29="","",'शालादर्पण कार्मिक DATA'!B29) ->  | L30: =IF('शालादर्पण कार्मिक DATA'!J29="","",'शालादर्पण कार्मिक DATA'!J29) -> 
A31: =IF(कार्मिक_विवरण[नाम]="","",ROWS($A$2:A28)) ->  | B31: =IF('शालादर्पण कार्मिक DATA'!A30="","",'शालादर्पण कार्मिक DATA'!A30) ->  | C31: =UPPER(IF('शालादर्पण कार्मिक DATA'!F30="","",'शालादर्पण कार्मिक DATA'!F30)) ->  | D31: =IF('शालादर्पण कार्मिक DATA'!E30="","",'शालादर्पण कार्मिक DATA'!E30) ->  | E31: =IF('शालादर्पण कार्मिक DATA'!K30="","",'शालादर्पण कार्मिक DATA'!K30) ->  | F31: =IF('शालादर्पण कार्मिक DATA'!B30="","",'शालादर्पण कार्मिक DATA'!B30) ->  | L31: =IF('शालादर्पण कार्मिक DATA'!J30="","",'शालादर्पण कार्मिक DATA'!J30) -> 
A32: =IF(कार्मिक_विवरण[नाम]="","",ROWS($A$2:A29)) ->  | B32: =IF('शालादर्पण कार्मिक DATA'!A31="","",'शालादर्पण कार्मिक DATA'!A31) ->  | C32: =UPPER(IF('शालादर्पण कार्मिक DATA'!F31="","",'शालादर्पण कार्मिक DATA'!F31)) ->  | D32: =IF('शालादर्पण कार्मिक DATA'!E31="","",'शालादर्पण कार्मिक DATA'!E31) ->  | E32: =IF('शालादर्पण कार्मिक DATA'!K31="","",'शालादर्पण कार्मिक DATA'!K31) ->  | F32: =IF('शालादर्पण कार्मिक DATA'!B31="","",'शालादर्पण कार्मिक DATA'!B31) ->  | L32: =IF('शालादर्पण कार्मिक DATA'!J31="","",'शालादर्पण कार्मिक DATA'!J31) -> 
A33: =IF(कार्मिक_विवरण[नाम]="","",ROWS($A$2:A30)) ->  | B33: =IF('शालादर्पण कार्मिक DATA'!A32="","",'शालादर्पण कार्मिक DATA'!A32) ->  | C33: =UPPER(IF('शालादर्पण कार्मिक DATA'!F32="","",'शालादर्पण कार्मिक DATA'!F32)) ->  | D33: =IF('शालादर्पण कार्मिक DATA'!E32="","",'शालादर्पण कार्मिक DATA'!E32) ->  | E33: =IF('शालादर्पण कार्मिक DATA'!K32="","",'शालादर्पण कार्मिक DATA'!K32) ->  | F33: =IF('शालादर्पण कार्मिक DATA'!B32="","",'शालादर्पण कार्मिक DATA'!B32) ->  | L33: =IF('शालादर्पण कार्मिक DATA'!J32="","",'शालादर्पण कार्मिक DATA'!J32) -> 
A34: =IF(कार्मिक_विवरण[नाम]="","",ROWS($A$2:A31)) ->  | B34: =IF('शालादर्पण कार्मिक DATA'!A33="","",'शालादर्पण कार्मिक DATA'!A33) ->  | C34: =UPPER(IF('शालादर्पण कार्मिक DATA'!F33="","",'शालादर्पण कार्मिक DATA'!F33)) ->  | D34: =IF('शालादर्पण कार्मिक DATA'!E33="","",'शालादर्पण कार्मिक DATA'!E33) ->  | E34: =IF('शालादर्पण कार्मिक DATA'!K33="","",'शालादर्पण कार्मिक DATA'!K33) ->  | F34: =IF('शालादर्पण कार्मिक DATA'!B33="","",'शालादर्पण कार्मिक DATA'!B33) ->  | L34: =IF('शालादर्पण कार्मिक DATA'!J33="","",'शालादर्पण कार्मिक DATA'!J33) -> 
A35: =IF(कार्मिक_विवरण[नाम]="","",ROWS($A$2:A32)) ->  | B35: =IF('शालादर्पण कार्मिक DATA'!A34="","",'शालादर्पण कार्मिक DATA'!A34) ->  | C35: =UPPER(IF('शालादर्पण कार्मिक DATA'!F34="","",'शालादर्पण कार्मिक DATA'!F34)) ->  | D35: =IF('शालादर्पण कार्मिक DATA'!E34="","",'शालादर्पण कार्मिक DATA'!E34) ->  | E35: =IF('शालादर्पण कार्मिक DATA'!K34="","",'शालादर्पण कार्मिक DATA'!K34) ->  | F35: =IF('शालादर्पण कार्मिक DATA'!B34="","",'शालादर्पण कार्मिक DATA'!B34) ->  | L35: =IF('शालादर्पण कार्मिक DATA'!J34="","",'शालादर्पण कार्मिक DATA'!J34) -> 
A36: =IF(कार्मिक_विवरण[नाम]="","",ROWS($A$2:A33)) ->  | B36: =IF('शालादर्पण कार्मिक DATA'!A35="","",'शालादर्पण कार्मिक DATA'!A35) ->  | C36: =UPPER(IF('शालादर्पण कार्मिक DATA'!F35="","",'शालादर्पण कार्मिक DATA'!F35)) ->  | D36: =IF('शालादर्पण कार्मिक DATA'!E35="","",'शालादर्पण कार्मिक DATA'!E35) ->  | E36: =IF('शालादर्पण कार्मिक DATA'!K35="","",'शालादर्पण कार्मिक DATA'!K35) ->  | F36: =IF('शालादर्पण कार्मिक DATA'!B35="","",'शालादर्पण कार्मिक DATA'!B35) ->  | L36: =IF('शालादर्पण कार्मिक DATA'!J35="","",'शालादर्पण कार्मिक DATA'!J35) -> 
A37: =IF(कार्मिक_विवरण[नाम]="","",ROWS($A$2:A34)) ->  | B37: =IF('शालादर्पण कार्मिक DATA'!A36="","",'शालादर्पण कार्मिक DATA'!A36) ->  | C37: =UPPER(IF('शालादर्पण कार्मिक DATA'!F36="","",'शालादर्पण कार्मिक DATA'!F36)) ->  | D37: =IF('शालादर्पण कार्मिक DATA'!E36="","",'शालादर्पण कार्मिक DATA'!E36) ->  | E37: =IF('शालादर्पण कार्मिक DATA'!K36="","",'शालादर्पण कार्मिक DATA'!K36) ->  | F37: =IF('शालादर्पण कार्मिक DATA'!B36="","",'शालादर्पण कार्मिक DATA'!B36) ->  | L37: =IF('शालादर्पण कार्मिक DATA'!J36="","",'शालादर्पण कार्मिक DATA'!J36) -> 
A38: =IF(कार्मिक_विवरण[नाम]="","",ROWS($A$2:A35)) ->  | B38: =IF('शालादर्पण कार्मिक DATA'!A37="","",'शालादर्पण कार्मिक DATA'!A37) ->  | C38: =UPPER(IF('शालादर्पण कार्मिक DATA'!F37="","",'शालादर्पण कार्मिक DATA'!F37)) ->  | D38: =IF('शालादर्पण कार्मिक DATA'!E37="","",'शालादर्पण कार्मिक DATA'!E37) ->  | E38: =IF('शालादर्पण कार्मिक DATA'!K37="","",'शालादर्पण कार्मिक DATA'!K37) ->  | F38: =IF('शालादर्पण कार्मिक DATA'!B37="","",'शालादर्पण कार्मिक DATA'!B37) ->  | L38: =IF('शालादर्पण कार्मिक DATA'!J37="","",'शालादर्पण कार्मिक DATA'!J37) -> 
A39: =IF(कार्मिक_विवरण[नाम]="","",ROWS($A$2:A36)) ->  | B39: =IF('शालादर्पण कार्मिक DATA'!A38="","",'शालादर्पण कार्मिक DATA'!A38) ->  | C39: =UPPER(IF('शालादर्पण कार्मिक DATA'!F38="","",'शालादर्पण कार्मिक DATA'!F38)) ->  | D39: =IF('शालादर्पण कार्मिक DATA'!E38="","",'शालादर्पण कार्मिक DATA'!E38) ->  | E39: =IF('शालादर्पण कार्मिक DATA'!K38="","",'शालादर्पण कार्मिक DATA'!K38) ->  | F39: =IF('शालादर्पण कार्मिक DATA'!B38="","",'शालादर्पण कार्मिक DATA'!B38) ->  | L39: =IF('शालादर्पण कार्मिक DATA'!J38="","",'शालादर्पण कार्मिक DATA'!J38) -> 
A40: =IF(कार्मिक_विवरण[नाम]="","",ROWS($A$2:A37)) ->  | B40: =IF('शालादर्पण कार्मिक DATA'!A39="","",'शालादर्पण कार्मिक DATA'!A39) ->  | C40: =UPPER(IF('शालादर्पण कार्मिक DATA'!F39="","",'शालादर्पण कार्मिक DATA'!F39)) ->  | D40: =IF('शालादर्पण कार्मिक DATA'!E39="","",'शालादर्पण कार्मिक DATA'!E39) ->  | E40: =IF('शालादर्पण कार्मिक DATA'!K39="","",'शालादर्पण कार्मिक DATA'!K39) ->  | F40: =IF('शालादर्पण कार्मिक DATA'!B39="","",'शालादर्पण कार्मिक DATA'!B39) ->  | L40: =IF('शालादर्पण कार्मिक DATA'!J39="","",'शालादर्पण कार्मिक DATA'!J39) -> 
A41: =IF(कार्मिक_विवरण[नाम]="","",ROWS($A$2:A38)) ->  | B41: =IF('शालादर्पण कार्मिक DATA'!A40="","",'शालादर्पण कार्मिक DATA'!A40) ->  | C41: =UPPER(IF('शालादर्पण कार्मिक DATA'!F40="","",'शालादर्पण कार्मिक DATA'!F40)) ->  | D41: =IF('शालादर्पण कार्मिक DATA'!E40="","",'शालादर्पण कार्मिक DATA'!E40) ->  | E41: =IF('शालादर्पण कार्मिक DATA'!K40="","",'शालादर्पण कार्मिक DATA'!K40) ->  | F41: =IF('शालादर्पण कार्मिक DATA'!B40="","",'शालादर्पण कार्मिक DATA'!B40) ->  | L41: =IF('शालादर्पण कार्मिक DATA'!J40="","",'शालादर्पण कार्मिक DATA'!J40) -> 
A42: =IF(कार्मिक_विवरण[नाम]="","",ROWS($A$2:A39)) ->  | B42: =IF('शालादर्पण कार्मिक DATA'!A41="","",'शालादर्पण कार्मिक DATA'!A41) ->  | C42: =UPPER(IF('शालादर्पण कार्मिक DATA'!F41="","",'शालादर्पण कार्मिक DATA'!F41)) ->  | D42: =IF('शालादर्पण कार्मिक DATA'!E41="","",'शालादर्पण कार्मिक DATA'!E41) ->  | E42: =IF('शालादर्पण कार्मिक DATA'!K41="","",'शालादर्पण कार्मिक DATA'!K41) ->  | F42: =IF('शालादर्पण कार्मिक DATA'!B41="","",'शालादर्पण कार्मिक DATA'!B41) ->  | L42: =IF('शालादर्पण कार्मिक DATA'!J41="","",'शालादर्पण कार्मिक DATA'!J41) -> 
A43: =IF(कार्मिक_विवरण[नाम]="","",ROWS($A$2:A40)) ->  | B43: =IF('शालादर्पण कार्मिक DATA'!A42="","",'शालादर्पण कार्मिक DATA'!A42) ->  | C43: =UPPER(IF('शालादर्पण कार्मिक DATA'!F42="","",'शालादर्पण कार्मिक DATA'!F42)) ->  | D43: =IF('शालादर्पण कार्मिक DATA'!E42="","",'शालादर्पण कार्मिक DATA'!E42) ->  | E43: =IF('शालादर्पण कार्मिक DATA'!K42="","",'शालादर्पण कार्मिक DATA'!K42) ->  | F43: =IF('शालादर्पण कार्मिक DATA'!B42="","",'शालादर्पण कार्मिक DATA'!B42) ->  | L43: =IF('शालादर्पण कार्मिक DATA'!J42="","",'शालादर्पण कार्मिक DATA'!J42) -> 
A44: =IF(कार्मिक_विवरण[नाम]="","",ROWS($A$2:A41)) ->  | B44: =IF('शालादर्पण कार्मिक DATA'!A43="","",'शालादर्पण कार्मिक DATA'!A43) ->  | C44: =UPPER(IF('शालादर्पण कार्मिक DATA'!F43="","",'शालादर्पण कार्मिक DATA'!F43)) ->  | D44: =IF('शालादर्पण कार्मिक DATA'!E43="","",'शालादर्पण कार्मिक DATA'!E43) ->  | E44: =IF('शालादर्पण कार्मिक DATA'!K43="","",'शालादर्पण कार्मिक DATA'!K43) ->  | F44: =IF('शालादर्पण कार्मिक DATA'!B43="","",'शालादर्पण कार्मिक DATA'!B43) ->  | L44: =IF('शालादर्पण कार्मिक DATA'!J43="","",'शालादर्पण कार्मिक DATA'!J43) -> 
A45: =IF(कार्मिक_विवरण[नाम]="","",ROWS($A$2:A42)) ->  | B45: =IF('शालादर्पण कार्मिक DATA'!A44="","",'शालादर्पण कार्मिक DATA'!A44) ->  | C45: =UPPER(IF('शालादर्पण कार्मिक DATA'!F44="","",'शालादर्पण कार्मिक DATA'!F44)) ->  | D45: =IF('शालादर्पण कार्मिक DATA'!E44="","",'शालादर्पण कार्मिक DATA'!E44) ->  | E45: =IF('शालादर्पण कार्मिक DATA'!K44="","",'शालादर्पण कार्मिक DATA'!K44) ->  | F45: =IF('शालादर्पण कार्मिक DATA'!B44="","",'शालादर्पण कार्मिक DATA'!B44) ->  | L45: =IF('शालादर्पण कार्मिक DATA'!J44="","",'शालादर्पण कार्मिक DATA'!J44) -> 
A46: =IF(कार्मिक_विवरण[नाम]="","",ROWS($A$2:A43)) ->  | B46: =IF('शालादर्पण कार्मिक DATA'!A45="","",'शालादर्पण कार्मिक DATA'!A45) ->  | C46: =UPPER(IF('शालादर्पण कार्मिक DATA'!F45="","",'शालादर्पण कार्मिक DATA'!F45)) ->  | D46: =IF('शालादर्पण कार्मिक DATA'!E45="","",'शालादर्पण कार्मिक DATA'!E45) ->  | E46: =IF('शालादर्पण कार्मिक DATA'!K45="","",'शालादर्पण कार्मिक DATA'!K45) ->  | F46: =IF('शालादर्पण कार्मिक DATA'!B45="","",'शालादर्पण कार्मिक DATA'!B45) ->  | L46: =IF('शालादर्पण कार्मिक DATA'!J45="","",'शालादर्पण कार्मिक DATA'!J45) -> 
A47: =IF(कार्मिक_विवरण[नाम]="","",ROWS($A$2:A44)) ->  | B47: =IF('शालादर्पण कार्मिक DATA'!A46="","",'शालादर्पण कार्मिक DATA'!A46) ->  | C47: =UPPER(IF('शालादर्पण कार्मिक DATA'!F46="","",'शालादर्पण कार्मिक DATA'!F46)) ->  | D47: =IF('शालादर्पण कार्मिक DATA'!E46="","",'शालादर्पण कार्मिक DATA'!E46) ->  | E47: =IF('शालादर्पण कार्मिक DATA'!K46="","",'शालादर्पण कार्मिक DATA'!K46) ->  | F47: =IF('शालादर्पण कार्मिक DATA'!B46="","",'शालादर्पण कार्मिक DATA'!B46) ->  | L47: =IF('शालादर्पण कार्मिक DATA'!J46="","",'शालादर्पण कार्मिक DATA'!J46) -> 
A48: =IF(कार्मिक_विवरण[नाम]="","",ROWS($A$2:A45)) ->  | B48: =IF('शालादर्पण कार्मिक DATA'!A47="","",'शालादर्पण कार्मिक DATA'!A47) ->  | C48: =UPPER(IF('शालादर्पण कार्मिक DATA'!F47="","",'शालादर्पण कार्मिक DATA'!F47)) ->  | D48: =IF('शालादर्पण कार्मिक DATA'!E47="","",'शालादर्पण कार्मिक DATA'!E47) ->  | E48: =IF('शालादर्पण कार्मिक DATA'!K47="","",'शालादर्पण कार्मिक DATA'!K47) ->  | F48: =IF('शालादर्पण कार्मिक DATA'!B47="","",'शालादर्पण कार्मिक DATA'!B47) ->  | L48: =IF('शालादर्पण कार्मिक DATA'!J47="","",'शालादर्पण कार्मिक DATA'!J47) -> 
A49: =IF(कार्मिक_विवरण[नाम]="","",ROWS($A$2:A46)) ->  | B49: =IF('शालादर्पण कार्मिक DATA'!A48="","",'शालादर्पण कार्मिक DATA'!A48) ->  | C49: =UPPER(IF('शालादर्पण कार्मिक DATA'!F48="","",'शालादर्पण कार्मिक DATA'!F48)) ->  | D49: =IF('शालादर्पण कार्मिक DATA'!E48="","",'शालादर्पण कार्मिक DATA'!E48) ->  | E49: =IF('शालादर्पण कार्मिक DATA'!K48="","",'शालादर्पण कार्मिक DATA'!K48) ->  | F49: =IF('शालादर्पण कार्मिक DATA'!B48="","",'शालादर्पण कार्मिक DATA'!B48) ->  | L49: =IF('शालादर्पण कार्मिक DATA'!J48="","",'शालादर्पण कार्मिक DATA'!J48) -> 
A50: =IF(कार्मिक_विवरण[नाम]="","",ROWS($A$2:A47)) ->  | B50: =IF('शालादर्पण कार्मिक DATA'!A49="","",'शालादर्पण कार्मिक DATA'!A49) ->  | C50: =UPPER(IF('शालादर्पण कार्मिक DATA'!F49="","",'शालादर्पण कार्मिक DATA'!F49)) ->  | D50: =IF('शालादर्पण कार्मिक DATA'!E49="","",'शालादर्पण कार्मिक DATA'!E49) ->  | E50: =IF('शालादर्पण कार्मिक DATA'!K49="","",'शालादर्पण कार्मिक DATA'!K49) ->  | F50: =IF('शालादर्पण कार्मिक DATA'!B49="","",'शालादर्पण कार्मिक DATA'!B49) ->  | L50: =IF('शालादर्पण कार्मिक DATA'!J49="","",'शालादर्पण कार्मिक DATA'!J49) -> 
A51: =IF(कार्मिक_विवरण[नाम]="","",ROWS($A$2:A48)) ->  | B51: =IF('शालादर्पण कार्मिक DATA'!A50="","",'शालादर्पण कार्मिक DATA'!A50) ->  | C51: =UPPER(IF('शालादर्पण कार्मिक DATA'!F50="","",'शालादर्पण कार्मिक DATA'!F50)) ->  | D51: =IF('शालादर्पण कार्मिक DATA'!E50="","",'शालादर्पण कार्मिक DATA'!E50) ->  | E51: =IF('शालादर्पण कार्मिक DATA'!K50="","",'शालादर्पण कार्मिक DATA'!K50) ->  | F51: =IF('शालादर्पण कार्मिक DATA'!B50="","",'शालादर्पण कार्मिक DATA'!B50) ->  | L51: =IF('शालादर्पण कार्मिक DATA'!J50="","",'शालादर्पण कार्मिक DATA'!J50) -> 
A52: =IF(कार्मिक_विवरण[नाम]="","",ROWS($A$2:A49)) ->  | B52: =IF('शालादर्पण कार्मिक DATA'!A51="","",'शालादर्पण कार्मिक DATA'!A51) ->  | C52: =UPPER(IF('शालादर्पण कार्मिक DATA'!F51="","",'शालादर्पण कार्मिक DATA'!F51)) ->  | D52: =IF('शालादर्पण कार्मिक DATA'!E51="","",'शालादर्पण कार्मिक DATA'!E51) ->  | E52: =IF('शालादर्पण कार्मिक DATA'!K51="","",'शालादर्पण कार्मिक DATA'!K51) ->  | F52: =IF('शालादर्पण कार्मिक DATA'!B51="","",'शालादर्पण कार्मिक DATA'!B51) ->  | L52: =IF('शालादर्पण कार्मिक DATA'!J51="","",'शालादर्पण कार्मिक DATA'!J51) -> 
A53: =IF(कार्मिक_विवरण[नाम]="","",ROWS($A$2:A50)) ->  | B53: =IF('शालादर्पण कार्मिक DATA'!A52="","",'शालादर्पण कार्मिक DATA'!A52) ->  | C53: =UPPER(IF('शालादर्पण कार्मिक DATA'!F52="","",'शालादर्पण कार्मिक DATA'!F52)) ->  | D53: =IF('शालादर्पण कार्मिक DATA'!E52="","",'शालादर्पण कार्मिक DATA'!E52) ->  | E53: =IF('शालादर्पण कार्मिक DATA'!K52="","",'शालादर्पण कार्मिक DATA'!K52) ->  | F53: =IF('शालादर्पण कार्मिक DATA'!B52="","",'शालादर्पण कार्मिक DATA'!B52) ->  | L53: =IF('शालादर्पण कार्मिक DATA'!J52="","",'शालादर्पण कार्मिक DATA'!J52) -> 
A54: =IF(कार्मिक_विवरण[नाम]="","",ROWS($A$2:A51)) ->  | B54: =IF('शालादर्पण कार्मिक DATA'!A53="","",'शालादर्पण कार्मिक DATA'!A53) ->  | C54: =UPPER(IF('शालादर्पण कार्मिक DATA'!F53="","",'शालादर्पण कार्मिक DATA'!F53)) ->  | D54: =IF('शालादर्पण कार्मिक DATA'!E53="","",'शालादर्पण कार्मिक DATA'!E53) ->  | E54: =IF('शालादर्पण कार्मिक DATA'!K53="","",'शालादर्पण कार्मिक DATA'!K53) ->  | F54: =IF('शालादर्पण कार्मिक DATA'!B53="","",'शालादर्पण कार्मिक DATA'!B53) ->  | L54: =IF('शालादर्पण कार्मिक DATA'!J53="","",'शालादर्पण कार्मिक DATA'!J53) -> 
A55: =IF(कार्मिक_विवरण[नाम]="","",ROWS($A$2:A52)) ->  | B55: =IF('शालादर्पण कार्मिक DATA'!A54="","",'शालादर्पण कार्मिक DATA'!A54) ->  | C55: =UPPER(IF('शालादर्पण कार्मिक DATA'!F54="","",'शालादर्पण कार्मिक DATA'!F54)) ->  | D55: =IF('शालादर्पण कार्मिक DATA'!E54="","",'शालादर्पण कार्मिक DATA'!E54) ->  | E55: =IF('शालादर्पण कार्मिक DATA'!K54="","",'शालादर्पण कार्मिक DATA'!K54) ->  | F55: =IF('शालादर्पण कार्मिक DATA'!B54="","",'शालादर्पण कार्मिक DATA'!B54) ->  | L55: =IF('शालादर्पण कार्मिक DATA'!J54="","",'शालादर्पण कार्मिक DATA'!J54) -> 
A56: =IF(कार्मिक_विवरण[नाम]="","",ROWS($A$2:A53)) ->  | B56: =IF('शालादर्पण कार्मिक DATA'!A55="","",'शालादर्पण कार्मिक DATA'!A55) ->  | C56: =UPPER(IF('शालादर्पण कार्मिक DATA'!F55="","",'शालादर्पण कार्मिक DATA'!F55)) ->  | D56: =IF('शालादर्पण कार्मिक DATA'!E55="","",'शालादर्पण कार्मिक DATA'!E55) ->  | E56: =IF('शालादर्पण कार्मिक DATA'!K55="","",'शालादर्पण कार्मिक DATA'!K55) ->  | F56: =IF('शालादर्पण कार्मिक DATA'!B55="","",'शालादर्पण कार्मिक DATA'!B55) ->  | L56: =IF('शालादर्पण कार्मिक DATA'!J55="","",'शालादर्पण कार्मिक DATA'!J55) -> 
A57: =IF(कार्मिक_विवरण[नाम]="","",ROWS($A$2:A54)) ->  | B57: =IF('शालादर्पण कार्मिक DATA'!A56="","",'शालादर्पण कार्मिक DATA'!A56) ->  | C57: =UPPER(IF('शालादर्पण कार्मिक DATA'!F56="","",'शालादर्पण कार्मिक DATA'!F56)) ->  | D57: =IF('शालादर्पण कार्मिक DATA'!E56="","",'शालादर्पण कार्मिक DATA'!E56) ->  | E57: =IF('शालादर्पण कार्मिक DATA'!K56="","",'शालादर्पण कार्मिक DATA'!K56) ->  | F57: =IF('शालादर्पण कार्मिक DATA'!B56="","",'शालादर्पण कार्मिक DATA'!B56) ->  | L57: =IF('शालादर्पण कार्मिक DATA'!J56="","",'शालादर्पण कार्मिक DATA'!J56) -> 
A58: =IF(कार्मिक_विवरण[नाम]="","",ROWS($A$2:A55)) ->  | B58: =IF('शालादर्पण कार्मिक DATA'!A57="","",'शालादर्पण कार्मिक DATA'!A57) ->  | C58: =UPPER(IF('शालादर्पण कार्मिक DATA'!F57="","",'शालादर्पण कार्मिक DATA'!F57)) ->  | D58: =IF('शालादर्पण कार्मिक DATA'!E57="","",'शालादर्पण कार्मिक DATA'!E57) ->  | E58: =IF('शालादर्पण कार्मिक DATA'!K57="","",'शालादर्पण कार्मिक DATA'!K57) ->  | F58: =IF('शालादर्पण कार्मिक DATA'!B57="","",'शालादर्पण कार्मिक DATA'!B57) ->  | L58: =IF('शालादर्पण कार्मिक DATA'!J57="","",'शालादर्पण कार्मिक DATA'!J57) -> 
A59: =IF(कार्मिक_विवरण[नाम]="","",ROWS($A$2:A56)) ->  | B59: =IF('शालादर्पण कार्मिक DATA'!A58="","",'शालादर्पण कार्मिक DATA'!A58) ->  | C59: =UPPER(IF('शालादर्पण कार्मिक DATA'!F58="","",'शालादर्पण कार्मिक DATA'!F58)) ->  | D59: =IF('शालादर्पण कार्मिक DATA'!E58="","",'शालादर्पण कार्मिक DATA'!E58) ->  | E59: =IF('शालादर्पण कार्मिक DATA'!K58="","",'शालादर्पण कार्मिक DATA'!K58) ->  | F59: =IF('शालादर्पण कार्मिक DATA'!B58="","",'शालादर्पण कार्मिक DATA'!B58) ->  | L59: =IF('शालादर्पण कार्मिक DATA'!J58="","",'शालादर्पण कार्मिक DATA'!J58) -> 
A60: =IF(कार्मिक_विवरण[नाम]="","",ROWS($A$2:A57)) ->  | B60: =IF('शालादर्पण कार्मिक DATA'!A59="","",'शालादर्पण कार्मिक DATA'!A59) ->  | C60: =UPPER(IF('शालादर्पण कार्मिक DATA'!F59="","",'शालादर्पण कार्मिक DATA'!F59)) ->  | D60: =IF('शालादर्पण कार्मिक DATA'!E59="","",'शालादर्पण कार्मिक DATA'!E59) ->  | E60: =IF('शालादर्पण कार्मिक DATA'!K59="","",'शालादर्पण कार्मिक DATA'!K59) ->  | F60: =IF('शालादर्पण कार्मिक DATA'!B59="","",'शालादर्पण कार्मिक DATA'!B59) ->  | L60: =IF('शालादर्पण कार्मिक DATA'!J59="","",'शालादर्पण कार्मिक DATA'!J59) -> 
A61: =IF(कार्मिक_विवरण[नाम]="","",ROWS($A$2:A58)) ->  | B61: =IF('शालादर्पण कार्मिक DATA'!A60="","",'शालादर्पण कार्मिक DATA'!A60) ->  | C61: =UPPER(IF('शालादर्पण कार्मिक DATA'!F60="","",'शालादर्पण कार्मिक DATA'!F60)) ->  | D61: =IF('शालादर्पण कार्मिक DATA'!E60="","",'शालादर्पण कार्मिक DATA'!E60) ->  | E61: =IF('शालादर्पण कार्मिक DATA'!K60="","",'शालादर्पण कार्मिक DATA'!K60) ->  | F61: =IF('शालादर्पण कार्मिक DATA'!B60="","",'शालादर्पण कार्मिक DATA'!B60) ->  | L61: =IF('शालादर्पण कार्मिक DATA'!J60="","",'शालादर्पण कार्मिक DATA'!J60) -> 
A62: =IF(कार्मिक_विवरण[नाम]="","",ROWS($A$2:A59)) ->  | B62: =IF('शालादर्पण कार्मिक DATA'!A61="","",'शालादर्पण कार्मिक DATA'!A61) ->  | C62: =UPPER(IF('शालादर्पण कार्मिक DATA'!F61="","",'शालादर्पण कार्मिक DATA'!F61)) ->  | D62: =IF('शालादर्पण कार्मिक DATA'!E61="","",'शालादर्पण कार्मिक DATA'!E61) ->  | E62: =IF('शालादर्पण कार्मिक DATA'!K61="","",'शालादर्पण कार्मिक DATA'!K61) ->  | F62: =IF('शालादर्पण कार्मिक DATA'!B61="","",'शालादर्पण कार्मिक DATA'!B61) ->  | L62: =IF('शालादर्पण कार्मिक DATA'!J61="","",'शालादर्पण कार्मिक DATA'!J61) -> 
A63: =IF(कार्मिक_विवरण[नाम]="","",ROWS($A$2:A60)) ->  | B63: =IF('शालादर्पण कार्मिक DATA'!A62="","",'शालादर्पण कार्मिक DATA'!A62) ->  | C63: =UPPER(IF('शालादर्पण कार्मिक DATA'!F62="","",'शालादर्पण कार्मिक DATA'!F62)) ->  | D63: =IF('शालादर्पण कार्मिक DATA'!E62="","",'शालादर्पण कार्मिक DATA'!E62) ->  | E63: =IF('शालादर्पण कार्मिक DATA'!K62="","",'शालादर्पण कार्मिक DATA'!K62) ->  | F63: =IF('शालादर्पण कार्मिक DATA'!B62="","",'शालादर्पण कार्मिक DATA'!B62) ->  | L63: =IF('शालादर्पण कार्मिक DATA'!J62="","",'शालादर्पण कार्मिक DATA'!J62) -> 
A64: =IF(कार्मिक_विवरण[नाम]="","",ROWS($A$2:A61)) ->  | B64: =IF('शालादर्पण कार्मिक DATA'!A63="","",'शालादर्पण कार्मिक DATA'!A63) ->  | C64: =UPPER(IF('शालादर्पण कार्मिक DATA'!F63="","",'शालादर्पण कार्मिक DATA'!F63)) ->  | D64: =IF('शालादर्पण कार्मिक DATA'!E63="","",'शालादर्पण कार्मिक DATA'!E63) ->  | E64: =IF('शालादर्पण कार्मिक DATA'!K63="","",'शालादर्पण कार्मिक DATA'!K63) ->  | F64: =IF('शालादर्पण कार्मिक DATA'!B63="","",'शालादर्पण कार्मिक DATA'!B63) ->  | L64: =IF('शालादर्पण कार्मिक DATA'!J63="","",'शालादर्पण कार्मिक DATA'!J63) -> 
A65: =IF(कार्मिक_विवरण[नाम]="","",ROWS($A$2:A62)) ->  | B65: =IF('शालादर्पण कार्मिक DATA'!A64="","",'शालादर्पण कार्मिक DATA'!A64) ->  | C65: =UPPER(IF('शालादर्पण कार्मिक DATA'!F64="","",'शालादर्पण कार्मिक DATA'!F64)) ->  | D65: =IF('शालादर्पण कार्मिक DATA'!E64="","",'शालादर्पण कार्मिक DATA'!E64) ->  | E65: =IF('शालादर्पण कार्मिक DATA'!K64="","",'शालादर्पण कार्मिक DATA'!K64) ->  | F65: =IF('शालादर्पण कार्मिक DATA'!B64="","",'शालादर्पण कार्मिक DATA'!B64) ->  | L65: =IF('शालादर्पण कार्मिक DATA'!J64="","",'शालादर्पण कार्मिक DATA'!J64) -> 
A66: =IF(कार्मिक_विवरण[नाम]="","",ROWS($A$2:A63)) ->  | B66: =IF('शालादर्पण कार्मिक DATA'!A65="","",'शालादर्पण कार्मिक DATA'!A65) ->  | C66: =UPPER(IF('शालादर्पण कार्मिक DATA'!F65="","",'शालादर्पण कार्मिक DATA'!F65)) ->  | D66: =IF('शालादर्पण कार्मिक DATA'!E65="","",'शालादर्पण कार्मिक DATA'!E65) ->  | E66: =IF('शालादर्पण कार्मिक DATA'!K65="","",'शालादर्पण कार्मिक DATA'!K65) ->  | F66: =IF('शालादर्पण कार्मिक DATA'!B65="","",'शालादर्पण कार्मिक DATA'!B65) ->  | L66: =IF('शालादर्पण कार्मिक DATA'!J65="","",'शालादर्पण कार्मिक DATA'!J65) -> 
A67: =IF(कार्मिक_विवरण[नाम]="","",ROWS($A$2:A64)) ->  | B67: =IF('शालादर्पण कार्मिक DATA'!A66="","",'शालादर्पण कार्मिक DATA'!A66) ->  | C67: =UPPER(IF('शालादर्पण कार्मिक DATA'!F66="","",'शालादर्पण कार्मिक DATA'!F66)) ->  | D67: =IF('शालादर्पण कार्मिक DATA'!E66="","",'शालादर्पण कार्मिक DATA'!E66) ->  | E67: =IF('शालादर्पण कार्मिक DATA'!K66="","",'शालादर्पण कार्मिक DATA'!K66) ->  | F67: =IF('शालादर्पण कार्मिक DATA'!B66="","",'शालादर्पण कार्मिक DATA'!B66) ->  | L67: =IF('शालादर्पण कार्मिक DATA'!J66="","",'शालादर्पण कार्मिक DATA'!J66) -> 
A68: =IF(कार्मिक_विवरण[नाम]="","",ROWS($A$2:A65)) ->  | B68: =IF('शालादर्पण कार्मिक DATA'!A67="","",'शालादर्पण कार्मिक DATA'!A67) ->  | C68: =UPPER(IF('शालादर्पण कार्मिक DATA'!F67="","",'शालादर्पण कार्मिक DATA'!F67)) ->  | D68: =IF('शालादर्पण कार्मिक DATA'!E67="","",'शालादर्पण कार्मिक DATA'!E67) ->  | E68: =IF('शालादर्पण कार्मिक DATA'!K67="","",'शालादर्पण कार्मिक DATA'!K67) ->  | F68: =IF('शालादर्पण कार्मिक DATA'!B67="","",'शालादर्पण कार्मिक DATA'!B67) ->  | L68: =IF('शालादर्पण कार्मिक DATA'!J67="","",'शालादर्पण कार्मिक DATA'!J67) -> 
A69: =IF(कार्मिक_विवरण[नाम]="","",ROWS($A$2:A66)) ->  | B69: =IF('शालादर्पण कार्मिक DATA'!A68="","",'शालादर्पण कार्मिक DATA'!A68) ->  | C69: =UPPER(IF('शालादर्पण कार्मिक DATA'!F68="","",'शालादर्पण कार्मिक DATA'!F68)) ->  | D69: =IF('शालादर्पण कार्मिक DATA'!E68="","",'शालादर्पण कार्मिक DATA'!E68) ->  | E69: =IF('शालादर्पण कार्मिक DATA'!K68="","",'शालादर्पण कार्मिक DATA'!K68) ->  | F69: =IF('शालादर्पण कार्मिक DATA'!B68="","",'शालादर्पण कार्मिक DATA'!B68) ->  | L69: =IF('शालादर्पण कार्मिक DATA'!J68="","",'शालादर्पण कार्मिक DATA'!J68) -> 
A70: =IF(कार्मिक_विवरण[नाम]="","",ROWS($A$2:A67)) ->  | B70: =IF('शालादर्पण कार्मिक DATA'!A69="","",'शालादर्पण कार्मिक DATA'!A69) ->  | C70: =UPPER(IF('शालादर्पण कार्मिक DATA'!F69="","",'शालादर्पण कार्मिक DATA'!F69)) ->  | D70: =IF('शालादर्पण कार्मिक DATA'!E69="","",'शालादर्पण कार्मिक DATA'!E69) ->  | E70: =IF('शालादर्पण कार्मिक DATA'!K69="","",'शालादर्पण कार्मिक DATA'!K69) ->  | F70: =IF('शालादर्पण कार्मिक DATA'!B69="","",'शालादर्पण कार्मिक DATA'!B69) ->  | L70: =IF('शालादर्पण कार्मिक DATA'!J69="","",'शालादर्पण कार्मिक DATA'!J69) -> 
A71: =IF(कार्मिक_विवरण[नाम]="","",ROWS($A$2:A68)) ->  | B71: =IF('शालादर्पण कार्मिक DATA'!A70="","",'शालादर्पण कार्मिक DATA'!A70) ->  | C71: =UPPER(IF('शालादर्पण कार्मिक DATA'!F70="","",'शालादर्पण कार्मिक DATA'!F70)) ->  | D71: =IF('शालादर्पण कार्मिक DATA'!E70="","",'शालादर्पण कार्मिक DATA'!E70) ->  | E71: =IF('शालादर्पण कार्मिक DATA'!K70="","",'शालादर्पण कार्मिक DATA'!K70) ->  | F71: =IF('शालादर्पण कार्मिक DATA'!B70="","",'शालादर्पण कार्मिक DATA'!B70) ->  | L71: =IF('शालादर्पण कार्मिक DATA'!J70="","",'शालादर्पण कार्मिक DATA'!J70) -> 
A72: =IF(कार्मिक_विवरण[नाम]="","",ROWS($A$2:A69)) ->  | B72: =IF('शालादर्पण कार्मिक DATA'!A71="","",'शालादर्पण कार्मिक DATA'!A71) ->  | C72: =UPPER(IF('शालादर्पण कार्मिक DATA'!F71="","",'शालादर्पण कार्मिक DATA'!F71)) ->  | D72: =IF('शालादर्पण कार्मिक DATA'!E71="","",'शालादर्पण कार्मिक DATA'!E71) ->  | E72: =IF('शालादर्पण कार्मिक DATA'!K71="","",'शालादर्पण कार्मिक DATA'!K71) ->  | F72: =IF('शालादर्पण कार्मिक DATA'!B71="","",'शालादर्पण कार्मिक DATA'!B71) ->  | L72: =IF('शालादर्पण कार्मिक DATA'!J71="","",'शालादर्पण कार्मिक DATA'!J71) -> 
A73: =IF(कार्मिक_विवरण[नाम]="","",ROWS($A$2:A70)) ->  | B73: =IF('शालादर्पण कार्मिक DATA'!A72="","",'शालादर्पण कार्मिक DATA'!A72) ->  | C73: =UPPER(IF('शालादर्पण कार्मिक DATA'!F72="","",'शालादर्पण कार्मिक DATA'!F72)) ->  | D73: =IF('शालादर्पण कार्मिक DATA'!E72="","",'शालादर्पण कार्मिक DATA'!E72) ->  | E73: =IF('शालादर्पण कार्मिक DATA'!K72="","",'शालादर्पण कार्मिक DATA'!K72) ->  | F73: =IF('शालादर्पण कार्मिक DATA'!B72="","",'शालादर्पण कार्मिक DATA'!B72) ->  | L73: =IF('शालादर्पण कार्मिक DATA'!J72="","",'शालादर्पण कार्मिक DATA'!J72) -> 
A74: =IF(कार्मिक_विवरण[नाम]="","",ROWS($A$2:A71)) ->  | B74: =IF('शालादर्पण कार्मिक DATA'!A73="","",'शालादर्पण कार्मिक DATA'!A73) ->  | C74: =UPPER(IF('शालादर्पण कार्मिक DATA'!F73="","",'शालादर्पण कार्मिक DATA'!F73)) ->  | D74: =IF('शालादर्पण कार्मिक DATA'!E73="","",'शालादर्पण कार्मिक DATA'!E73) ->  | E74: =IF('शालादर्पण कार्मिक DATA'!K73="","",'शालादर्पण कार्मिक DATA'!K73) ->  | F74: =IF('शालादर्पण कार्मिक DATA'!B73="","",'शालादर्पण कार्मिक DATA'!B73) ->  | L74: =IF('शालादर्पण कार्मिक DATA'!J73="","",'शालादर्पण कार्मिक DATA'!J73) -> 
A75: =IF(कार्मिक_विवरण[नाम]="","",ROWS($A$2:A72)) ->  | B75: =IF('शालादर्पण कार्मिक DATA'!A74="","",'शालादर्पण कार्मिक DATA'!A74) ->  | C75: =UPPER(IF('शालादर्पण कार्मिक DATA'!F74="","",'शालादर्पण कार्मिक DATA'!F74)) ->  | D75: =IF('शालादर्पण कार्मिक DATA'!E74="","",'शालादर्पण कार्मिक DATA'!E74) ->  | E75: =IF('शालादर्पण कार्मिक DATA'!K74="","",'शालादर्पण कार्मिक DATA'!K74) ->  | F75: =IF('शालादर्पण कार्मिक DATA'!B74="","",'शालादर्पण कार्मिक DATA'!B74) ->  | L75: =IF('शालादर्पण कार्मिक DATA'!J74="","",'शालादर्पण कार्मिक DATA'!J74) -> 
A76: =IF(कार्मिक_विवरण[नाम]="","",ROWS($A$2:A73)) ->  | B76: =IF('शालादर्पण कार्मिक DATA'!A75="","",'शालादर्पण कार्मिक DATA'!A75) ->  | C76: =UPPER(IF('शालादर्पण कार्मिक DATA'!F75="","",'शालादर्पण कार्मिक DATA'!F75)) ->  | D76: =IF('शालादर्पण कार्मिक DATA'!E75="","",'शालादर्पण कार्मिक DATA'!E75) ->  | E76: =IF('शालादर्पण कार्मिक DATA'!K75="","",'शालादर्पण कार्मिक DATA'!K75) ->  | F76: =IF('शालादर्पण कार्मिक DATA'!B75="","",'शालादर्पण कार्मिक DATA'!B75) ->  | L76: =IF('शालादर्पण कार्मिक DATA'!J75="","",'शालादर्पण कार्मिक DATA'!J75) -> 
A77: =IF(कार्मिक_विवरण[नाम]="","",ROWS($A$2:A74)) ->  | B77: =IF('शालादर्पण कार्मिक DATA'!A76="","",'शालादर्पण कार्मिक DATA'!A76) ->  | C77: =UPPER(IF('शालादर्पण कार्मिक DATA'!F76="","",'शालादर्पण कार्मिक DATA'!F76)) ->  | D77: =IF('शालादर्पण कार्मिक DATA'!E76="","",'शालादर्पण कार्मिक DATA'!E76) ->  | E77: =IF('शालादर्पण कार्मिक DATA'!K76="","",'शालादर्पण कार्मिक DATA'!K76) ->  | F77: =IF('शालादर्पण कार्मिक DATA'!B76="","",'शालादर्पण कार्मिक DATA'!B76) ->  | L77: =IF('शालादर्पण कार्मिक DATA'!J76="","",'शालादर्पण कार्मिक DATA'!J76) -> 
A78: =IF(कार्मिक_विवरण[नाम]="","",ROWS($A$2:A75)) ->  | B78: =IF('शालादर्पण कार्मिक DATA'!A77="","",'शालादर्पण कार्मिक DATA'!A77) ->  | C78: =UPPER(IF('शालादर्पण कार्मिक DATA'!F77="","",'शालादर्पण कार्मिक DATA'!F77)) ->  | D78: =IF('शालादर्पण कार्मिक DATA'!E77="","",'शालादर्पण कार्मिक DATA'!E77) ->  | E78: =IF('शालादर्पण कार्मिक DATA'!K77="","",'शालादर्पण कार्मिक DATA'!K77) ->  | F78: =IF('शालादर्पण कार्मिक DATA'!B77="","",'शालादर्पण कार्मिक DATA'!B77) ->  | L78: =IF('शालादर्पण कार्मिक DATA'!J77="","",'शालादर्पण कार्मिक DATA'!J77) -> 
A79: =IF(कार्मिक_विवरण[नाम]="","",ROWS($A$2:A76)) ->  | B79: =IF('शालादर्पण कार्मिक DATA'!A78="","",'शालादर्पण कार्मिक DATA'!A78) ->  | C79: =UPPER(IF('शालादर्पण कार्मिक DATA'!F78="","",'शालादर्पण कार्मिक DATA'!F78)) ->  | D79: =IF('शालादर्पण कार्मिक DATA'!E78="","",'शालादर्पण कार्मिक DATA'!E78) ->  | E79: =IF('शालादर्पण कार्मिक DATA'!K78="","",'शालादर्पण कार्मिक DATA'!K78) ->  | F79: =IF('शालादर्पण कार्मिक DATA'!B78="","",'शालादर्पण कार्मिक DATA'!B78) ->  | L79: =IF('शालादर्पण कार्मिक DATA'!J78="","",'शालादर्पण कार्मिक DATA'!J78) -> 
A80: =IF(कार्मिक_विवरण[नाम]="","",ROWS($A$2:A77)) ->  | B80: =IF('शालादर्पण कार्मिक DATA'!A79="","",'शालादर्पण कार्मिक DATA'!A79) ->  | C80: =UPPER(IF('शालादर्पण कार्मिक DATA'!F79="","",'शालादर्पण कार्मिक DATA'!F79)) ->  | D80: =IF('शालादर्पण कार्मिक DATA'!E79="","",'शालादर्पण कार्मिक DATA'!E79) ->  | E80: =IF('शालादर्पण कार्मिक DATA'!K79="","",'शालादर्पण कार्मिक DATA'!K79) ->  | F80: =IF('शालादर्पण कार्मिक DATA'!B79="","",'शालादर्पण कार्मिक DATA'!B79) ->  | L80: =IF('शालादर्पण कार्मिक DATA'!J79="","",'शालादर्पण कार्मिक DATA'!J79) -> 
A81: =IF(कार्मिक_विवरण[नाम]="","",ROWS($A$2:A78)) ->  | B81: =IF('शालादर्पण कार्मिक DATA'!A80="","",'शालादर्पण कार्मिक DATA'!A80) ->  | C81: =UPPER(IF('शालादर्पण कार्मिक DATA'!F80="","",'शालादर्पण कार्मिक DATA'!F80)) ->  | D81: =IF('शालादर्पण कार्मिक DATA'!E80="","",'शालादर्पण कार्मिक DATA'!E80) ->  | E81: =IF('शालादर्पण कार्मिक DATA'!K80="","",'शालादर्पण कार्मिक DATA'!K80) ->  | F81: =IF('शालादर्पण कार्मिक DATA'!B80="","",'शालादर्पण कार्मिक DATA'!B80) ->  | L81: =IF('शालादर्पण कार्मिक DATA'!J80="","",'शालादर्पण कार्मिक DATA'!J80) -> 
A82: =IF(कार्मिक_विवरण[नाम]="","",ROWS($A$2:A79)) ->  | B82: =IF('शालादर्पण कार्मिक DATA'!A81="","",'शालादर्पण कार्मिक DATA'!A81) ->  | C82: =UPPER(IF('शालादर्पण कार्मिक DATA'!F81="","",'शालादर्पण कार्मिक DATA'!F81)) ->  | D82: =IF('शालादर्पण कार्मिक DATA'!E81="","",'शालादर्पण कार्मिक DATA'!E81) ->  | E82: =IF('शालादर्पण कार्मिक DATA'!K81="","",'शालादर्पण कार्मिक DATA'!K81) ->  | F82: =IF('शालादर्पण कार्मिक DATA'!B81="","",'शालादर्पण कार्मिक DATA'!B81) ->  | L82: =IF('शालादर्पण कार्मिक DATA'!J81="","",'शालादर्पण कार्मिक DATA'!J81) -> 
A83: =IF(कार्मिक_विवरण[नाम]="","",ROWS($A$2:A80)) ->  | B83: =IF('शालादर्पण कार्मिक DATA'!A82="","",'शालादर्पण कार्मिक DATA'!A82) ->  | C83: =UPPER(IF('शालादर्पण कार्मिक DATA'!F82="","",'शालादर्पण कार्मिक DATA'!F82)) ->  | D83: =IF('शालादर्पण कार्मिक DATA'!E82="","",'शालादर्पण कार्मिक DATA'!E82) ->  | E83: =IF('शालादर्पण कार्मिक DATA'!K82="","",'शालादर्पण कार्मिक DATA'!K82) ->  | F83: =IF('शालादर्पण कार्मिक DATA'!B82="","",'शालादर्पण कार्मिक DATA'!B82) ->  | L83: =IF('शालादर्पण कार्मिक DATA'!J82="","",'शालादर्पण कार्मिक DATA'!J82) -> 
A84: =IF(कार्मिक_विवरण[नाम]="","",ROWS($A$2:A81)) ->  | B84: =IF('शालादर्पण कार्मिक DATA'!A83="","",'शालादर्पण कार्मिक DATA'!A83) ->  | C84: =UPPER(IF('शालादर्पण कार्मिक DATA'!F83="","",'शालादर्पण कार्मिक DATA'!F83)) ->  | D84: =IF('शालादर्पण कार्मिक DATA'!E83="","",'शालादर्पण कार्मिक DATA'!E83) ->  | E84: =IF('शालादर्पण कार्मिक DATA'!K83="","",'शालादर्पण कार्मिक DATA'!K83) ->  | F84: =IF('शालादर्पण कार्मिक DATA'!B83="","",'शालादर्पण कार्मिक DATA'!B83) ->  | L84: =IF('शालादर्पण कार्मिक DATA'!J83="","",'शालादर्पण कार्मिक DATA'!J83) -> 
A85: =IF(कार्मिक_विवरण[नाम]="","",ROWS($A$2:A82)) ->  | B85: =IF('शालादर्पण कार्मिक DATA'!A84="","",'शालादर्पण कार्मिक DATA'!A84) ->  | C85: =UPPER(IF('शालादर्पण कार्मिक DATA'!F84="","",'शालादर्पण कार्मिक DATA'!F84)) ->  | D85: =IF('शालादर्पण कार्मिक DATA'!E84="","",'शालादर्पण कार्मिक DATA'!E84) ->  | E85: =IF('शालादर्पण कार्मिक DATA'!K84="","",'शालादर्पण कार्मिक DATA'!K84) ->  | F85: =IF('शालादर्पण कार्मिक DATA'!B84="","",'शालादर्पण कार्मिक DATA'!B84) ->  | L85: =IF('शालादर्पण कार्मिक DATA'!J84="","",'शालादर्पण कार्मिक DATA'!J84) -> 
A86: =IF(कार्मिक_विवरण[नाम]="","",ROWS($A$2:A83)) ->  | B86: =IF('शालादर्पण कार्मिक DATA'!A85="","",'शालादर्पण कार्मिक DATA'!A85) ->  | C86: =UPPER(IF('शालादर्पण कार्मिक DATA'!F85="","",'शालादर्पण कार्मिक DATA'!F85)) ->  | D86: =IF('शालादर्पण कार्मिक DATA'!E85="","",'शालादर्पण कार्मिक DATA'!E85) ->  | E86: =IF('शालादर्पण कार्मिक DATA'!K85="","",'शालादर्पण कार्मिक DATA'!K85) ->  | F86: =IF('शालादर्पण कार्मिक DATA'!B85="","",'शालादर्पण कार्मिक DATA'!B85) ->  | L86: =IF('शालादर्पण कार्मिक DATA'!J85="","",'शालादर्पण कार्मिक DATA'!J85) -> 
A87: =IF(कार्मिक_विवरण[नाम]="","",ROWS($A$2:A84)) ->  | B87: =IF('शालादर्पण कार्मिक DATA'!A86="","",'शालादर्पण कार्मिक DATA'!A86) ->  | C87: =UPPER(IF('शालादर्पण कार्मिक DATA'!F86="","",'शालादर्पण कार्मिक DATA'!F86)) ->  | D87: =IF('शालादर्पण कार्मिक DATA'!E86="","",'शालादर्पण कार्मिक DATA'!E86) ->  | E87: =IF('शालादर्पण कार्मिक DATA'!K86="","",'शालादर्पण कार्मिक DATA'!K86) ->  | F87: =IF('शालादर्पण कार्मिक DATA'!B86="","",'शालादर्पण कार्मिक DATA'!B86) ->  | L87: =IF('शालादर्पण कार्मिक DATA'!J86="","",'शालादर्पण कार्मिक DATA'!J86) -> 
A88: =IF(कार्मिक_विवरण[नाम]="","",ROWS($A$2:A85)) ->  | B88: =IF('शालादर्पण कार्मिक DATA'!A87="","",'शालादर्पण कार्मिक DATA'!A87) ->  | C88: =UPPER(IF('शालादर्पण कार्मिक DATA'!F87="","",'शालादर्पण कार्मिक DATA'!F87)) ->  | D88: =IF('शालादर्पण कार्मिक DATA'!E87="","",'शालादर्पण कार्मिक DATA'!E87) ->  | E88: =IF('शालादर्पण कार्मिक DATA'!K87="","",'शालादर्पण कार्मिक DATA'!K87) ->  | F88: =IF('शालादर्पण कार्मिक DATA'!B87="","",'शालादर्पण कार्मिक DATA'!B87) ->  | L88: =IF('शालादर्पण कार्मिक DATA'!J87="","",'शालादर्पण कार्मिक DATA'!J87) -> 
A89: =IF(कार्मिक_विवरण[नाम]="","",ROWS($A$2:A86)) ->  | B89: =IF('शालादर्पण कार्मिक DATA'!A88="","",'शालादर्पण कार्मिक DATA'!A88) ->  | C89: =UPPER(IF('शालादर्पण कार्मिक DATA'!F88="","",'शालादर्पण कार्मिक DATA'!F88)) ->  | D89: =IF('शालादर्पण कार्मिक DATA'!E88="","",'शालादर्पण कार्मिक DATA'!E88) ->  | E89: =IF('शालादर्पण कार्मिक DATA'!K88="","",'शालादर्पण कार्मिक DATA'!K88) ->  | F89: =IF('शालादर्पण कार्मिक DATA'!B88="","",'शालादर्पण कार्मिक DATA'!B88) ->  | L89: =IF('शालादर्पण कार्मिक DATA'!J88="","",'शालादर्पण कार्मिक DATA'!J88) -> 
A90: =IF(कार्मिक_विवरण[नाम]="","",ROWS($A$2:A87)) ->  | B90: =IF('शालादर्पण कार्मिक DATA'!A89="","",'शालादर्पण कार्मिक DATA'!A89) ->  | C90: =UPPER(IF('शालादर्पण कार्मिक DATA'!F89="","",'शालादर्पण कार्मिक DATA'!F89)) ->  | D90: =IF('शालादर्पण कार्मिक DATA'!E89="","",'शालादर्पण कार्मिक DATA'!E89) ->  | E90: =IF('शालादर्पण कार्मिक DATA'!K89="","",'शालादर्पण कार्मिक DATA'!K89) ->  | F90: =IF('शालादर्पण कार्मिक DATA'!B89="","",'शालादर्पण कार्मिक DATA'!B89) ->  | L90: =IF('शालादर्पण कार्मिक DATA'!J89="","",'शालादर्पण कार्मिक DATA'!J89) -> 
A91: =IF(कार्मिक_विवरण[नाम]="","",ROWS($A$2:A88)) ->  | B91: =IF('शालादर्पण कार्मिक DATA'!A90="","",'शालादर्पण कार्मिक DATA'!A90) ->  | C91: =UPPER(IF('शालादर्पण कार्मिक DATA'!F90="","",'शालादर्पण कार्मिक DATA'!F90)) ->  | D91: =IF('शालादर्पण कार्मिक DATA'!E90="","",'शालादर्पण कार्मिक DATA'!E90) ->  | E91: =IF('शालादर्पण कार्मिक DATA'!K90="","",'शालादर्पण कार्मिक DATA'!K90) ->  | F91: =IF('शालादर्पण कार्मिक DATA'!B90="","",'शालादर्पण कार्मिक DATA'!B90) ->  | L91: =IF('शालादर्पण कार्मिक DATA'!J90="","",'शालादर्पण कार्मिक DATA'!J90) -> 
A92: =IF(कार्मिक_विवरण[नाम]="","",ROWS($A$2:A89)) ->  | B92: =IF('शालादर्पण कार्मिक DATA'!A91="","",'शालादर्पण कार्मिक DATA'!A91) ->  | C92: =UPPER(IF('शालादर्पण कार्मिक DATA'!F91="","",'शालादर्पण कार्मिक DATA'!F91)) ->  | D92: =IF('शालादर्पण कार्मिक DATA'!E91="","",'शालादर्पण कार्मिक DATA'!E91) ->  | E92: =IF('शालादर्पण कार्मिक DATA'!K91="","",'शालादर्पण कार्मिक DATA'!K91) ->  | F92: =IF('शालादर्पण कार्मिक DATA'!B91="","",'शालादर्पण कार्मिक DATA'!B91) ->  | L92: =IF('शालादर्पण कार्मिक DATA'!J91="","",'शालादर्पण कार्मिक DATA'!J91) -> 
A93: =IF(कार्मिक_विवरण[नाम]="","",ROWS($A$2:A90)) ->  | B93: =IF('शालादर्पण कार्मिक DATA'!A92="","",'शालादर्पण कार्मिक DATA'!A92) ->  | C93: =UPPER(IF('शालादर्पण कार्मिक DATA'!F92="","",'शालादर्पण कार्मिक DATA'!F92)) ->  | D93: =IF('शालादर्पण कार्मिक DATA'!E92="","",'शालादर्पण कार्मिक DATA'!E92) ->  | E93: =IF('शालादर्पण कार्मिक DATA'!K92="","",'शालादर्पण कार्मिक DATA'!K92) ->  | F93: =IF('शालादर्पण कार्मिक DATA'!B92="","",'शालादर्पण कार्मिक DATA'!B92) ->  | L93: =IF('शालादर्पण कार्मिक DATA'!J92="","",'शालादर्पण कार्मिक DATA'!J92) -> 
A94: =IF(कार्मिक_विवरण[नाम]="","",ROWS($A$2:A91)) ->  | B94: =IF('शालादर्पण कार्मिक DATA'!A93="","",'शालादर्पण कार्मिक DATA'!A93) ->  | C94: =UPPER(IF('शालादर्पण कार्मिक DATA'!F93="","",'शालादर्पण कार्मिक DATA'!F93)) ->  | D94: =IF('शालादर्पण कार्मिक DATA'!E93="","",'शालादर्पण कार्मिक DATA'!E93) ->  | E94: =IF('शालादर्पण कार्मिक DATA'!K93="","",'शालादर्पण कार्मिक DATA'!K93) ->  | F94: =IF('शालादर्पण कार्मिक DATA'!B93="","",'शालादर्पण कार्मिक DATA'!B93) ->  | L94: =IF('शालादर्पण कार्मिक DATA'!J93="","",'शालादर्पण कार्मिक DATA'!J93) -> 
A95: =IF(कार्मिक_विवरण[नाम]="","",ROWS($A$2:A92)) ->  | B95: =IF('शालादर्पण कार्मिक DATA'!A94="","",'शालादर्पण कार्मिक DATA'!A94) ->  | C95: =UPPER(IF('शालादर्पण कार्मिक DATA'!F94="","",'शालादर्पण कार्मिक DATA'!F94)) ->  | D95: =IF('शालादर्पण कार्मिक DATA'!E94="","",'शालादर्पण कार्मिक DATA'!E94) ->  | E95: =IF('शालादर्पण कार्मिक DATA'!K94="","",'शालादर्पण कार्मिक DATA'!K94) ->  | F95: =IF('शालादर्पण कार्मिक DATA'!B94="","",'शालादर्पण कार्मिक DATA'!B94) ->  | L95: =IF('शालादर्पण कार्मिक DATA'!J94="","",'शालादर्पण कार्मिक DATA'!J94) -> 
A96: =IF(कार्मिक_विवरण[नाम]="","",ROWS($A$2:A93)) ->  | B96: =IF('शालादर्पण कार्मिक DATA'!A95="","",'शालादर्पण कार्मिक DATA'!A95) ->  | C96: =UPPER(IF('शालादर्पण कार्मिक DATA'!F95="","",'शालादर्पण कार्मिक DATA'!F95)) ->  | D96: =IF('शालादर्पण कार्मिक DATA'!E95="","",'शालादर्पण कार्मिक DATA'!E95) ->  | E96: =IF('शालादर्पण कार्मिक DATA'!K95="","",'शालादर्पण कार्मिक DATA'!K95) ->  | F96: =IF('शालादर्पण कार्मिक DATA'!B95="","",'शालादर्पण कार्मिक DATA'!B95) ->  | L96: =IF('शालादर्पण कार्मिक DATA'!J95="","",'शालादर्पण कार्मिक DATA'!J95) -> 
A97: =IF(कार्मिक_विवरण[नाम]="","",ROWS($A$2:A94)) ->  | B97: =IF('शालादर्पण कार्मिक DATA'!A96="","",'शालादर्पण कार्मिक DATA'!A96) ->  | C97: =UPPER(IF('शालादर्पण कार्मिक DATA'!F96="","",'शालादर्पण कार्मिक DATA'!F96)) ->  | D97: =IF('शालादर्पण कार्मिक DATA'!E96="","",'शालादर्पण कार्मिक DATA'!E96) ->  | E97: =IF('शालादर्पण कार्मिक DATA'!K96="","",'शालादर्पण कार्मिक DATA'!K96) ->  | F97: =IF('शालादर्पण कार्मिक DATA'!B96="","",'शालादर्पण कार्मिक DATA'!B96) ->  | L97: =IF('शालादर्पण कार्मिक DATA'!J96="","",'शालादर्पण कार्मिक DATA'!J96) -> 
A98: =IF(कार्मिक_विवरण[नाम]="","",ROWS($A$2:A95)) ->  | B98: =IF('शालादर्पण कार्मिक DATA'!A97="","",'शालादर्पण कार्मिक DATA'!A97) ->  | C98: =UPPER(IF('शालादर्पण कार्मिक DATA'!F97="","",'शालादर्पण कार्मिक DATA'!F97)) ->  | D98: =IF('शालादर्पण कार्मिक DATA'!E97="","",'शालादर्पण कार्मिक DATA'!E97) ->  | E98: =IF('शालादर्पण कार्मिक DATA'!K97="","",'शालादर्पण कार्मिक DATA'!K97) ->  | F98: =IF('शालादर्पण कार्मिक DATA'!B97="","",'शालादर्पण कार्मिक DATA'!B97) ->  | L98: =IF('शालादर्पण कार्मिक DATA'!J97="","",'शालादर्पण कार्मिक DATA'!J97) -> 
A99: =IF(कार्मिक_विवरण[नाम]="","",ROWS($A$2:A96)) ->  | B99: =IF('शालादर्पण कार्मिक DATA'!A98="","",'शालादर्पण कार्मिक DATA'!A98) ->  | C99: =UPPER(IF('शालादर्पण कार्मिक DATA'!F98="","",'शालादर्पण कार्मिक DATA'!F98)) ->  | D99: =IF('शालादर्पण कार्मिक DATA'!E98="","",'शालादर्पण कार्मिक DATA'!E98) ->  | E99: =IF('शालादर्पण कार्मिक DATA'!K98="","",'शालादर्पण कार्मिक DATA'!K98) ->  | F99: =IF('शालादर्पण कार्मिक DATA'!B98="","",'शालादर्पण कार्मिक DATA'!B98) ->  | L99: =IF('शालादर्पण कार्मिक DATA'!J98="","",'शालादर्पण कार्मिक DATA'!J98) -> 
A100: =IF(कार्मिक_विवरण[नाम]="","",ROWS($A$2:A97)) ->  | B100: =IF('शालादर्पण कार्मिक DATA'!A99="","",'शालादर्पण कार्मिक DATA'!A99) ->  | C100: =UPPER(IF('शालादर्पण कार्मिक DATA'!F99="","",'शालादर्पण कार्मिक DATA'!F99)) ->  | D100: =IF('शालादर्पण कार्मिक DATA'!E99="","",'शालादर्पण कार्मिक DATA'!E99) ->  | E100: =IF('शालादर्पण कार्मिक DATA'!K99="","",'शालादर्पण कार्मिक DATA'!K99) ->  | F100: =IF('शालादर्पण कार्मिक DATA'!B99="","",'शालादर्पण कार्मिक DATA'!B99) ->  | L100: =IF('शालादर्पण कार्मिक DATA'!J99="","",'शालादर्पण कार्मिक DATA'!J99) -> 
A101: =IF(कार्मिक_विवरण[नाम]="","",ROWS($A$2:A98)) ->  | B101: =IF('शालादर्पण कार्मिक DATA'!A100="","",'शालादर्पण कार्मिक DATA'!A100) ->  | C101: =UPPER(IF('शालादर्पण कार्मिक DATA'!F100="","",'शालादर्पण कार्मिक DATA'!F100)) ->  | D101: =IF('शालादर्पण कार्मिक DATA'!E100="","",'शालादर्पण कार्मिक DATA'!E100) ->  | E101: =IF('शालादर्पण कार्मिक DATA'!K100="","",'शालादर्पण कार्मिक DATA'!K100) ->  | F101: =IF('शालादर्पण कार्मिक DATA'!B100="","",'शालादर्पण कार्मिक DATA'!B100) ->  | L101: =IF('शालादर्पण कार्मिक DATA'!J100="","",'शालादर्पण कार्मिक DATA'!J100) -> 
A102: =IF(कार्मिक_विवरण[नाम]="","",ROWS($A$2:A99)) ->  | B102: =IF('शालादर्पण कार्मिक DATA'!A101="","",'शालादर्पण कार्मिक DATA'!A101) ->  | C102: =UPPER(IF('शालादर्पण कार्मिक DATA'!F101="","",'शालादर्पण कार्मिक DATA'!F101)) ->  | D102: =IF('शालादर्पण कार्मिक DATA'!E101="","",'शालादर्पण कार्मिक DATA'!E101) ->  | E102: =IF('शालादर्पण कार्मिक DATA'!K101="","",'शालादर्पण कार्मिक DATA'!K101) ->  | F102: =IF('शालादर्पण कार्मिक DATA'!B101="","",'शालादर्पण कार्मिक DATA'!B101) ->  | L102: =IF('शालादर्पण कार्मिक DATA'!J101="","",'शालादर्पण कार्मिक DATA'!J101) -> 
A103: =IF(कार्मिक_विवरण[नाम]="","",ROWS($A$2:A100)) ->  | B103: =IF('शालादर्पण कार्मिक DATA'!A102="","",'शालादर्पण कार्मिक DATA'!A102) ->  | C103: =UPPER(IF('शालादर्पण कार्मिक DATA'!F102="","",'शालादर्पण कार्मिक DATA'!F102)) ->  | D103: =IF('शालादर्पण कार्मिक DATA'!E102="","",'शालादर्पण कार्मिक DATA'!E102) ->  | E103: =IF('शालादर्पण कार्मिक DATA'!K102="","",'शालादर्पण कार्मिक DATA'!K102) ->  | F103: =IF('शालादर्पण कार्मिक DATA'!B102="","",'शालादर्पण कार्मिक DATA'!B102) ->  | L103: =IF('शालादर्पण कार्मिक DATA'!J102="","",'शालादर्पण कार्मिक DATA'!J102) -> 
A104: =IF(कार्मिक_विवरण[नाम]="","",ROWS($A$2:A101)) ->  | B104: =IF('शालादर्पण कार्मिक DATA'!A103="","",'शालादर्पण कार्मिक DATA'!A103) ->  | C104: =UPPER(IF('शालादर्पण कार्मिक DATA'!F103="","",'शालादर्पण कार्मिक DATA'!F103)) ->  | D104: =IF('शालादर्पण कार्मिक DATA'!E103="","",'शालादर्पण कार्मिक DATA'!E103) ->  | E104: =IF('शालादर्पण कार्मिक DATA'!K103="","",'शालादर्पण कार्मिक DATA'!K103) ->  | F104: =IF('शालादर्पण कार्मिक DATA'!B103="","",'शालादर्पण कार्मिक DATA'!B103) ->  | L104: =IF('शालादर्पण कार्मिक DATA'!J103="","",'शालादर्पण कार्मिक DATA'!J103) -> 
A105: =IF(कार्मिक_विवरण[नाम]="","",ROWS($A$2:A102)) ->  | B105: =IF('शालादर्पण कार्मिक DATA'!A104="","",'शालादर्पण कार्मिक DATA'!A104) ->  | C105: =UPPER(IF('शालादर्पण कार्मिक DATA'!F104="","",'शालादर्पण कार्मिक DATA'!F104)) ->  | D105: =IF('शालादर्पण कार्मिक DATA'!E104="","",'शालादर्पण कार्मिक DATA'!E104) ->  | E105: =IF('शालादर्पण कार्मिक DATA'!K104="","",'शालादर्पण कार्मिक DATA'!K104) ->  | F105: =IF('शालादर्पण कार्मिक DATA'!B104="","",'शालादर्पण कार्मिक DATA'!B104) ->  | L105: =IF('शालादर्पण कार्मिक DATA'!J104="","",'शालादर्पण कार्मिक DATA'!J104) -> 
A106: =IF(कार्मिक_विवरण[नाम]="","",ROWS($A$2:A103)) ->  | B106: =IF('शालादर्पण कार्मिक DATA'!A105="","",'शालादर्पण कार्मिक DATA'!A105) ->  | C106: =UPPER(IF('शालादर्पण कार्मिक DATA'!F105="","",'शालादर्पण कार्मिक DATA'!F105)) ->  | D106: =IF('शालादर्पण कार्मिक DATA'!E105="","",'शालादर्पण कार्मिक DATA'!E105) ->  | E106: =IF('शालादर्पण कार्मिक DATA'!K105="","",'शालादर्पण कार्मिक DATA'!K105) ->  | F106: =IF('शालादर्पण कार्मिक DATA'!B105="","",'शालादर्पण कार्मिक DATA'!B105) ->  | L106: =IF('शालादर्पण कार्मिक DATA'!J105="","",'शालादर्पण कार्मिक DATA'!J105) -> 
A107: =IF(कार्मिक_विवरण[नाम]="","",ROWS($A$2:A104)) ->  | B107: =IF('शालादर्पण कार्मिक DATA'!A106="","",'शालादर्पण कार्मिक DATA'!A106) ->  | C107: =UPPER(IF('शालादर्पण कार्मिक DATA'!F106="","",'शालादर्पण कार्मिक DATA'!F106)) ->  | D107: =IF('शालादर्पण कार्मिक DATA'!E106="","",'शालादर्पण कार्मिक DATA'!E106) ->  | E107: =IF('शालादर्पण कार्मिक DATA'!K106="","",'शालादर्पण कार्मिक DATA'!K106) ->  | F107: =IF('शालादर्पण कार्मिक DATA'!B106="","",'शालादर्पण कार्मिक DATA'!B106) ->  | L107: =IF('शालादर्पण कार्मिक DATA'!J106="","",'शालादर्पण कार्मिक DATA'!J106) -> 
A108: =IF(कार्मिक_विवरण[नाम]="","",ROWS($A$2:A105)) ->  | B108: =IF('शालादर्पण कार्मिक DATA'!A107="","",'शालादर्पण कार्मिक DATA'!A107) ->  | C108: =UPPER(IF('शालादर्पण कार्मिक DATA'!F107="","",'शालादर्पण कार्मिक DATA'!F107)) ->  | D108: =IF('शालादर्पण कार्मिक DATA'!E107="","",'शालादर्पण कार्मिक DATA'!E107) ->  | E108: =IF('शालादर्पण कार्मिक DATA'!K107="","",'शालादर्पण कार्मिक DATA'!K107) ->  | F108: =IF('शालादर्पण कार्मिक DATA'!B107="","",'शालादर्पण कार्मिक DATA'!B107) ->  | L108: =IF('शालादर्पण कार्मिक DATA'!J107="","",'शालादर्पण कार्मिक DATA'!J107) -> 
A109: =IF(कार्मिक_विवरण[नाम]="","",ROWS($A$2:A106)) ->  | B109: =IF('शालादर्पण कार्मिक DATA'!A108="","",'शालादर्पण कार्मिक DATA'!A108) ->  | C109: =UPPER(IF('शालादर्पण कार्मिक DATA'!F108="","",'शालादर्पण कार्मिक DATA'!F108)) ->  | D109: =IF('शालादर्पण कार्मिक DATA'!E108="","",'शालादर्पण कार्मिक DATA'!E108) ->  | E109: =IF('शालादर्पण कार्मिक DATA'!K108="","",'शालादर्पण कार्मिक DATA'!K108) ->  | F109: =IF('शालादर्पण कार्मिक DATA'!B108="","",'शालादर्पण कार्मिक DATA'!B108) ->  | L109: =IF('शालादर्पण कार्मिक DATA'!J108="","",'शालादर्पण कार्मिक DATA'!J108) -> 
A110: =IF(कार्मिक_विवरण[नाम]="","",ROWS($A$2:A107)) ->  | B110: =IF('शालादर्पण कार्मिक DATA'!A109="","",'शालादर्पण कार्मिक DATA'!A109) ->  | C110: =UPPER(IF('शालादर्पण कार्मिक DATA'!F109="","",'शालादर्पण कार्मिक DATA'!F109)) ->  | D110: =IF('शालादर्पण कार्मिक DATA'!E109="","",'शालादर्पण कार्मिक DATA'!E109) ->  | E110: =IF('शालादर्पण कार्मिक DATA'!K109="","",'शालादर्पण कार्मिक DATA'!K109) ->  | F110: =IF('शालादर्पण कार्मिक DATA'!B109="","",'शालादर्पण कार्मिक DATA'!B109) ->  | L110: =IF('शालादर्पण कार्मिक DATA'!J109="","",'शालादर्पण कार्मिक DATA'!J109) -> 
A111: =IF(कार्मिक_विवरण[नाम]="","",ROWS($A$2:A108)) ->  | B111: =IF('शालादर्पण कार्मिक DATA'!A110="","",'शालादर्पण कार्मिक DATA'!A110) ->  | C111: =UPPER(IF('शालादर्पण कार्मिक DATA'!F110="","",'शालादर्पण कार्मिक DATA'!F110)) ->  | D111: =IF('शालादर्पण कार्मिक DATA'!E110="","",'शालादर्पण कार्मिक DATA'!E110) ->  | E111: =IF('शालादर्पण कार्मिक DATA'!K110="","",'शालादर्पण कार्मिक DATA'!K110) ->  | F111: =IF('शालादर्पण कार्मिक DATA'!B110="","",'शालादर्पण कार्मिक DATA'!B110) ->  | L111: =IF('शालादर्पण कार्मिक DATA'!J110="","",'शालादर्पण कार्मिक DATA'!J110) -> 
A112: =IF(कार्मिक_विवरण[नाम]="","",ROWS($A$2:A109)) ->  | B112: =IF('शालादर्पण कार्मिक DATA'!A111="","",'शालादर्पण कार्मिक DATA'!A111) ->  | C112: =UPPER(IF('शालादर्पण कार्मिक DATA'!F111="","",'शालादर्पण कार्मिक DATA'!F111)) ->  | D112: =IF('शालादर्पण कार्मिक DATA'!E111="","",'शालादर्पण कार्मिक DATA'!E111) ->  | E112: =IF('शालादर्पण कार्मिक DATA'!K111="","",'शालादर्पण कार्मिक DATA'!K111) ->  | F112: =IF('शालादर्पण कार्मिक DATA'!B111="","",'शालादर्पण कार्मिक DATA'!B111) ->  | L112: =IF('शालादर्पण कार्मिक DATA'!J111="","",'शालादर्पण कार्मिक DATA'!J111) -> 
A113: =IF(कार्मिक_विवरण[नाम]="","",ROWS($A$2:A110)) ->  | B113: =IF('शालादर्पण कार्मिक DATA'!A112="","",'शालादर्पण कार्मिक DATA'!A112) ->  | C113: =UPPER(IF('शालादर्पण कार्मिक DATA'!F112="","",'शालादर्पण कार्मिक DATA'!F112)) ->  | D113: =IF('शालादर्पण कार्मिक DATA'!E112="","",'शालादर्पण कार्मिक DATA'!E112) ->  | E113: =IF('शालादर्पण कार्मिक DATA'!K112="","",'शालादर्पण कार्मिक DATA'!K112) ->  | F113: =IF('शालादर्पण कार्मिक DATA'!B112="","",'शालादर्पण कार्मिक DATA'!B112) ->  | L113: =IF('शालादर्पण कार्मिक DATA'!J112="","",'शालादर्पण कार्मिक DATA'!J112) -> 
A114: =IF(कार्मिक_विवरण[नाम]="","",ROWS($A$2:A111)) ->  | B114: =IF('शालादर्पण कार्मिक DATA'!A113="","",'शालादर्पण कार्मिक DATA'!A113) ->  | C114: =UPPER(IF('शालादर्पण कार्मिक DATA'!F113="","",'शालादर्पण कार्मिक DATA'!F113)) ->  | D114: =IF('शालादर्पण कार्मिक DATA'!E113="","",'शालादर्पण कार्मिक DATA'!E113) ->  | E114: =IF('शालादर्पण कार्मिक DATA'!K113="","",'शालादर्पण कार्मिक DATA'!K113) ->  | F114: =IF('शालादर्पण कार्मिक DATA'!B113="","",'शालादर्पण कार्मिक DATA'!B113) ->  | L114: =IF('शालादर्पण कार्मिक DATA'!J113="","",'शालादर्पण कार्मिक DATA'!J113) -> 
A115: =IF(कार्मिक_विवरण[नाम]="","",ROWS($A$2:A112)) ->  | B115: =IF('शालादर्पण कार्मिक DATA'!A114="","",'शालादर्पण कार्मिक DATA'!A114) ->  | C115: =UPPER(IF('शालादर्पण कार्मिक DATA'!F114="","",'शालादर्पण कार्मिक DATA'!F114)) ->  | D115: =IF('शालादर्पण कार्मिक DATA'!E114="","",'शालादर्पण कार्मिक DATA'!E114) ->  | E115: =IF('शालादर्पण कार्मिक DATA'!K114="","",'शालादर्पण कार्मिक DATA'!K114) ->  | F115: =IF('शालादर्पण कार्मिक DATA'!B114="","",'शालादर्पण कार्मिक DATA'!B114) ->  | L115: =IF('शालादर्पण कार्मिक DATA'!J114="","",'शालादर्पण कार्मिक DATA'!J114) -> 
A116: =IF(कार्मिक_विवरण[नाम]="","",ROWS($A$2:A113)) ->  | B116: =IF('शालादर्पण कार्मिक DATA'!A115="","",'शालादर्पण कार्मिक DATA'!A115) ->  | C116: =UPPER(IF('शालादर्पण कार्मिक DATA'!F115="","",'शालादर्पण कार्मिक DATA'!F115)) ->  | D116: =IF('शालादर्पण कार्मिक DATA'!E115="","",'शालादर्पण कार्मिक DATA'!E115) ->  | E116: =IF('शालादर्पण कार्मिक DATA'!K115="","",'शालादर्पण कार्मिक DATA'!K115) ->  | F116: =IF('शालादर्पण कार्मिक DATA'!B115="","",'शालादर्पण कार्मिक DATA'!B115) ->  | L116: =IF('शालादर्पण कार्मिक DATA'!J115="","",'शालादर्पण कार्मिक DATA'!J115) -> 
A117: =IF(कार्मिक_विवरण[नाम]="","",ROWS($A$2:A114)) ->  | B117: =IF('शालादर्पण कार्मिक DATA'!A116="","",'शालादर्पण कार्मिक DATA'!A116) ->  | C117: =UPPER(IF('शालादर्पण कार्मिक DATA'!F116="","",'शालादर्पण कार्मिक DATA'!F116)) ->  | D117: =IF('शालादर्पण कार्मिक DATA'!E116="","",'शालादर्पण कार्मिक DATA'!E116) ->  | E117: =IF('शालादर्पण कार्मिक DATA'!K116="","",'शालादर्पण कार्मिक DATA'!K116) ->  | F117: =IF('शालादर्पण कार्मिक DATA'!B116="","",'शालादर्पण कार्मिक DATA'!B116) ->  | L117: =IF('शालादर्पण कार्मिक DATA'!J116="","",'शालादर्पण कार्मिक DATA'!J116) -> 
A118: =IF(कार्मिक_विवरण[नाम]="","",ROWS($A$2:A115)) ->  | B118: =IF('शालादर्पण कार्मिक DATA'!A117="","",'शालादर्पण कार्मिक DATA'!A117) ->  | C118: =UPPER(IF('शालादर्पण कार्मिक DATA'!F117="","",'शालादर्पण कार्मिक DATA'!F117)) ->  | D118: =IF('शालादर्पण कार्मिक DATA'!E117="","",'शालादर्पण कार्मिक DATA'!E117) ->  | E118: =IF('शालादर्पण कार्मिक DATA'!K117="","",'शालादर्पण कार्मिक DATA'!K117) ->  | F118: =IF('शालादर्पण कार्मिक DATA'!B117="","",'शालादर्पण कार्मिक DATA'!B117) ->  | L118: =IF('शालादर्पण कार्मिक DATA'!J117="","",'शालादर्पण कार्मिक DATA'!J117) -> 
A119: =IF(कार्मिक_विवरण[नाम]="","",ROWS($A$2:A116)) ->  | B119: =IF('शालादर्पण कार्मिक DATA'!A118="","",'शालादर्पण कार्मिक DATA'!A118) ->  | C119: =UPPER(IF('शालादर्पण कार्मिक DATA'!F118="","",'शालादर्पण कार्मिक DATA'!F118)) ->  | D119: =IF('शालादर्पण कार्मिक DATA'!E118="","",'शालादर्पण कार्मिक DATA'!E118) ->  | E119: =IF('शालादर्पण कार्मिक DATA'!K118="","",'शालादर्पण कार्मिक DATA'!K118) ->  | F119: =IF('शालादर्पण कार्मिक DATA'!B118="","",'शालादर्पण कार्मिक DATA'!B118) ->  | L119: =IF('शालादर्पण कार्मिक DATA'!J118="","",'शालादर्पण कार्मिक DATA'!J118) -> 
A120: =IF(कार्मिक_विवरण[नाम]="","",ROWS($A$2:A117)) ->  | B120: =IF('शालादर्पण कार्मिक DATA'!A119="","",'शालादर्पण कार्मिक DATA'!A119) ->  | C120: =UPPER(IF('शालादर्पण कार्मिक DATA'!F119="","",'शालादर्पण कार्मिक DATA'!F119)) ->  | D120: =IF('शालादर्पण कार्मिक DATA'!E119="","",'शालादर्पण कार्मिक DATA'!E119) ->  | E120: =IF('शालादर्पण कार्मिक DATA'!K119="","",'शालादर्पण कार्मिक DATA'!K119) ->  | F120: =IF('शालादर्पण कार्मिक DATA'!B119="","",'शालादर्पण कार्मिक DATA'!B119) ->  | L120: =IF('शालादर्पण कार्मिक DATA'!J119="","",'शालादर्पण कार्मिक DATA'!J119) -> 
A121: =IF(कार्मिक_विवरण[नाम]="","",ROWS($A$2:A118)) ->  | B121: =IF('शालादर्पण कार्मिक DATA'!A120="","",'शालादर्पण कार्मिक DATA'!A120) ->  | C121: =UPPER(IF('शालादर्पण कार्मिक DATA'!F120="","",'शालादर्पण कार्मिक DATA'!F120)) ->  | D121: =IF('शालादर्पण कार्मिक DATA'!E120="","",'शालादर्पण कार्मिक DATA'!E120) ->  | E121: =IF('शालादर्पण कार्मिक DATA'!K120="","",'शालादर्पण कार्मिक DATA'!K120) ->  | F121: =IF('शालादर्पण कार्मिक DATA'!B120="","",'शालादर्पण कार्मिक DATA'!B120) ->  | L121: =IF('शालादर्पण कार्मिक DATA'!J120="","",'शालादर्पण कार्मिक DATA'!J120) -> 
A122: =IF(कार्मिक_विवरण[नाम]="","",ROWS($A$2:A119)) ->  | B122: =IF('शालादर्पण कार्मिक DATA'!A121="","",'शालादर्पण कार्मिक DATA'!A121) ->  | C122: =UPPER(IF('शालादर्पण कार्मिक DATA'!F121="","",'शालादर्पण कार्मिक DATA'!F121)) ->  | D122: =IF('शालादर्पण कार्मिक DATA'!E121="","",'शालादर्पण कार्मिक DATA'!E121) ->  | E122: =IF('शालादर्पण कार्मिक DATA'!K121="","",'शालादर्पण कार्मिक DATA'!K121) ->  | F122: =IF('शालादर्पण कार्मिक DATA'!B121="","",'शालादर्पण कार्मिक DATA'!B121) ->  | L122: =IF('शालादर्पण कार्मिक DATA'!J121="","",'शालादर्पण कार्मिक DATA'!J121) -> 
A123: =IF(कार्मिक_विवरण[नाम]="","",ROWS($A$2:A120)) ->  | B123: =IF('शालादर्पण कार्मिक DATA'!A122="","",'शालादर्पण कार्मिक DATA'!A122) ->  | C123: =UPPER(IF('शालादर्पण कार्मिक DATA'!F122="","",'शालादर्पण कार्मिक DATA'!F122)) ->  | D123: =IF('शालादर्पण कार्मिक DATA'!E122="","",'शालादर्पण कार्मिक DATA'!E122) ->  | E123: =IF('शालादर्पण कार्मिक DATA'!K122="","",'शालादर्पण कार्मिक DATA'!K122) ->  | F123: =IF('शालादर्पण कार्मिक DATA'!B122="","",'शालादर्पण कार्मिक DATA'!B122) ->  | L123: =IF('शालादर्पण कार्मिक DATA'!J122="","",'शालादर्पण कार्मिक DATA'!J122) -> 
A124: =IF(कार्मिक_विवरण[नाम]="","",ROWS($A$2:A121)) ->  | B124: =IF('शालादर्पण कार्मिक DATA'!A123="","",'शालादर्पण कार्मिक DATA'!A123) ->  | C124: =UPPER(IF('शालादर्पण कार्मिक DATA'!F123="","",'शालादर्पण कार्मिक DATA'!F123)) ->  | D124: =IF('शालादर्पण कार्मिक DATA'!E123="","",'शालादर्पण कार्मिक DATA'!E123) ->  | E124: =IF('शालादर्पण कार्मिक DATA'!K123="","",'शालादर्पण कार्मिक DATA'!K123) ->  | F124: =IF('शालादर्पण कार्मिक DATA'!B123="","",'शालादर्पण कार्मिक DATA'!B123) ->  | L124: =IF('शालादर्पण कार्मिक DATA'!J123="","",'शालादर्पण कार्मिक DATA'!J123) -> 
A125: =IF(कार्मिक_विवरण[नाम]="","",ROWS($A$2:A122)) ->  | B125: =IF('शालादर्पण कार्मिक DATA'!A124="","",'शालादर्पण कार्मिक DATA'!A124) ->  | C125: =UPPER(IF('शालादर्पण कार्मिक DATA'!F124="","",'शालादर्पण कार्मिक DATA'!F124)) ->  | D125: =IF('शालादर्पण कार्मिक DATA'!E124="","",'शालादर्पण कार्मिक DATA'!E124) ->  | E125: =IF('शालादर्पण कार्मिक DATA'!K124="","",'शालादर्पण कार्मिक DATA'!K124) ->  | F125: =IF('शालादर्पण कार्मिक DATA'!B124="","",'शालादर्पण कार्मिक DATA'!B124) ->  | L125: =IF('शालादर्पण कार्मिक DATA'!J124="","",'शालादर्पण कार्मिक DATA'!J124) -> 
A126: =IF(कार्मिक_विवरण[नाम]="","",ROWS($A$2:A123)) ->  | B126: =IF('शालादर्पण कार्मिक DATA'!A125="","",'शालादर्पण कार्मिक DATA'!A125) ->  | C126: =UPPER(IF('शालादर्पण कार्मिक DATA'!F125="","",'शालादर्पण कार्मिक DATA'!F125)) ->  | D126: =IF('शालादर्पण कार्मिक DATA'!E125="","",'शालादर्पण कार्मिक DATA'!E125) ->  | E126: =IF('शालादर्पण कार्मिक DATA'!K125="","",'शालादर्पण कार्मिक DATA'!K125) ->  | F126: =IF('शालादर्पण कार्मिक DATA'!B125="","",'शालादर्पण कार्मिक DATA'!B125) ->  | L126: =IF('शालादर्पण कार्मिक DATA'!J125="","",'शालादर्पण कार्मिक DATA'!J125) -> 
A127: =IF(कार्मिक_विवरण[नाम]="","",ROWS($A$2:A124)) ->  | B127: =IF('शालादर्पण कार्मिक DATA'!A126="","",'शालादर्पण कार्मिक DATA'!A126) ->  | C127: =UPPER(IF('शालादर्पण कार्मिक DATA'!F126="","",'शालादर्पण कार्मिक DATA'!F126)) ->  | D127: =IF('शालादर्पण कार्मिक DATA'!E126="","",'शालादर्पण कार्मिक DATA'!E126) ->  | E127: =IF('शालादर्पण कार्मिक DATA'!K126="","",'शालादर्पण कार्मिक DATA'!K126) ->  | F127: =IF('शालादर्पण कार्मिक DATA'!B126="","",'शालादर्पण कार्मिक DATA'!B126) ->  | L127: =IF('शालादर्पण कार्मिक DATA'!J126="","",'शालादर्पण कार्मिक DATA'!J126) -> 
A128: =IF(कार्मिक_विवरण[नाम]="","",ROWS($A$2:A125)) ->  | B128: =IF('शालादर्पण कार्मिक DATA'!A127="","",'शालादर्पण कार्मिक DATA'!A127) ->  | C128: =UPPER(IF('शालादर्पण कार्मिक DATA'!F127="","",'शालादर्पण कार्मिक DATA'!F127)) ->  | D128: =IF('शालादर्पण कार्मिक DATA'!E127="","",'शालादर्पण कार्मिक DATA'!E127) ->  | E128: =IF('शालादर्पण कार्मिक DATA'!K127="","",'शालादर्पण कार्मिक DATA'!K127) ->  | F128: =IF('शालादर्पण कार्मिक DATA'!B127="","",'शालादर्पण कार्मिक DATA'!B127) ->  | L128: =IF('शालादर्पण कार्मिक DATA'!J127="","",'शालादर्पण कार्मिक DATA'!J127) -> 
A129: =IF(कार्मिक_विवरण[नाम]="","",ROWS($A$2:A126)) ->  | B129: =IF('शालादर्पण कार्मिक DATA'!A128="","",'शालादर्पण कार्मिक DATA'!A128) ->  | C129: =UPPER(IF('शालादर्पण कार्मिक DATA'!F128="","",'शालादर्पण कार्मिक DATA'!F128)) ->  | D129: =IF('शालादर्पण कार्मिक DATA'!E128="","",'शालादर्पण कार्मिक DATA'!E128) ->  | E129: =IF('शालादर्पण कार्मिक DATA'!K128="","",'शालादर्पण कार्मिक DATA'!K128) ->  | F129: =IF('शालादर्पण कार्मिक DATA'!B128="","",'शालादर्पण कार्मिक DATA'!B128) ->  | L129: =IF('शालादर्पण कार्मिक DATA'!J128="","",'शालादर्पण कार्मिक DATA'!J128) -> 
A130: =IF(कार्मिक_विवरण[नाम]="","",ROWS($A$2:A127)) ->  | B130: =IF('शालादर्पण कार्मिक DATA'!A129="","",'शालादर्पण कार्मिक DATA'!A129) ->  | C130: =UPPER(IF('शालादर्पण कार्मिक DATA'!F129="","",'शालादर्पण कार्मिक DATA'!F129)) ->  | D130: =IF('शालादर्पण कार्मिक DATA'!E129="","",'शालादर्पण कार्मिक DATA'!E129) ->  | E130: =IF('शालादर्पण कार्मिक DATA'!K129="","",'शालादर्पण कार्मिक DATA'!K129) ->  | F130: =IF('शालादर्पण कार्मिक DATA'!B129="","",'शालादर्पण कार्मिक DATA'!B129) ->  | L130: =IF('शालादर्पण कार्मिक DATA'!J129="","",'शालादर्पण कार्मिक DATA'!J129) -> 
A131: =IF(कार्मिक_विवरण[नाम]="","",ROWS($A$2:A128)) ->  | B131: =IF('शालादर्पण कार्मिक DATA'!A130="","",'शालादर्पण कार्मिक DATA'!A130) ->  | C131: =UPPER(IF('शालादर्पण कार्मिक DATA'!F130="","",'शालादर्पण कार्मिक DATA'!F130)) ->  | D131: =IF('शालादर्पण कार्मिक DATA'!E130="","",'शालादर्पण कार्मिक DATA'!E130) ->  | E131: =IF('शालादर्पण कार्मिक DATA'!K130="","",'शालादर्पण कार्मिक DATA'!K130) ->  | F131: =IF('शालादर्पण कार्मिक DATA'!B130="","",'शालादर्पण कार्मिक DATA'!B130) ->  | L131: =IF('शालादर्पण कार्मिक DATA'!J130="","",'शालादर्पण कार्मिक DATA'!J130) -> 
A132: =IF(कार्मिक_विवरण[नाम]="","",ROWS($A$2:A129)) ->  | B132: =IF('शालादर्पण कार्मिक DATA'!A131="","",'शालादर्पण कार्मिक DATA'!A131) ->  | C132: =UPPER(IF('शालादर्पण कार्मिक DATA'!F131="","",'शालादर्पण कार्मिक DATA'!F131)) ->  | D132: =IF('शालादर्पण कार्मिक DATA'!E131="","",'शालादर्पण कार्मिक DATA'!E131) ->  | E132: =IF('शालादर्पण कार्मिक DATA'!K131="","",'शालादर्पण कार्मिक DATA'!K131) ->  | F132: =IF('शालादर्पण कार्मिक DATA'!B131="","",'शालादर्पण कार्मिक DATA'!B131) ->  | L132: =IF('शालादर्पण कार्मिक DATA'!J131="","",'शालादर्पण कार्मिक DATA'!J131) -> 
A133: =IF(कार्मिक_विवरण[नाम]="","",ROWS($A$2:A130)) ->  | B133: =IF('शालादर्पण कार्मिक DATA'!A132="","",'शालादर्पण कार्मिक DATA'!A132) ->  | C133: =UPPER(IF('शालादर्पण कार्मिक DATA'!F132="","",'शालादर्पण कार्मिक DATA'!F132)) ->  | D133: =IF('शालादर्पण कार्मिक DATA'!E132="","",'शालादर्पण कार्मिक DATA'!E132) ->  | E133: =IF('शालादर्पण कार्मिक DATA'!K132="","",'शालादर्पण कार्मिक DATA'!K132) ->  | F133: =IF('शालादर्पण कार्मिक DATA'!B132="","",'शालादर्पण कार्मिक DATA'!B132) ->  | L133: =IF('शालादर्पण कार्मिक DATA'!J132="","",'शालादर्पण कार्मिक DATA'!J132) -> 
A134: =IF(कार्मिक_विवरण[नाम]="","",ROWS($A$2:A131)) ->  | B134: =IF('शालादर्पण कार्मिक DATA'!A133="","",'शालादर्पण कार्मिक DATA'!A133) ->  | C134: =UPPER(IF('शालादर्पण कार्मिक DATA'!F133="","",'शालादर्पण कार्मिक DATA'!F133)) ->  | D134: =IF('शालादर्पण कार्मिक DATA'!E133="","",'शालादर्पण कार्मिक DATA'!E133) ->  | E134: =IF('शालादर्पण कार्मिक DATA'!K133="","",'शालादर्पण कार्मिक DATA'!K133) ->  | F134: =IF('शालादर्पण कार्मिक DATA'!B133="","",'शालादर्पण कार्मिक DATA'!B133) ->  | L134: =IF('शालादर्पण कार्मिक DATA'!J133="","",'शालादर्पण कार्मिक DATA'!J133) -> 
A135: =IF(कार्मिक_विवरण[नाम]="","",ROWS($A$2:A132)) ->  | B135: =IF('शालादर्पण कार्मिक DATA'!A134="","",'शालादर्पण कार्मिक DATA'!A134) ->  | C135: =UPPER(IF('शालादर्पण कार्मिक DATA'!F134="","",'शालादर्पण कार्मिक DATA'!F134)) ->  | D135: =IF('शालादर्पण कार्मिक DATA'!E134="","",'शालादर्पण कार्मिक DATA'!E134) ->  | E135: =IF('शालादर्पण कार्मिक DATA'!K134="","",'शालादर्पण कार्मिक DATA'!K134) ->  | F135: =IF('शालादर्पण कार्मिक DATA'!B134="","",'शालादर्पण कार्मिक DATA'!B134) ->  | L135: =IF('शालादर्पण कार्मिक DATA'!J134="","",'शालादर्पण कार्मिक DATA'!J134) -> 
A136: =IF(कार्मिक_विवरण[नाम]="","",ROWS($A$2:A133)) ->  | B136: =IF('शालादर्पण कार्मिक DATA'!A135="","",'शालादर्पण कार्मिक DATA'!A135) ->  | C136: =UPPER(IF('शालादर्पण कार्मिक DATA'!F135="","",'शालादर्पण कार्मिक DATA'!F135)) ->  | D136: =IF('शालादर्पण कार्मिक DATA'!E135="","",'शालादर्पण कार्मिक DATA'!E135) ->  | E136: =IF('शालादर्पण कार्मिक DATA'!K135="","",'शालादर्पण कार्मिक DATA'!K135) ->  | F136: =IF('शालादर्पण कार्मिक DATA'!B135="","",'शालादर्पण कार्मिक DATA'!B135) ->  | L136: =IF('शालादर्पण कार्मिक DATA'!J135="","",'शालादर्पण कार्मिक DATA'!J135) -> 
A137: =IF(कार्मिक_विवरण[नाम]="","",ROWS($A$2:A134)) ->  | B137: =IF('शालादर्पण कार्मिक DATA'!A136="","",'शालादर्पण कार्मिक DATA'!A136) ->  | C137: =UPPER(IF('शालादर्पण कार्मिक DATA'!F136="","",'शालादर्पण कार्मिक DATA'!F136)) ->  | D137: =IF('शालादर्पण कार्मिक DATA'!E136="","",'शालादर्पण कार्मिक DATA'!E136) ->  | E137: =IF('शालादर्पण कार्मिक DATA'!K136="","",'शालादर्पण कार्मिक DATA'!K136) ->  | F137: =IF('शालादर्पण कार्मिक DATA'!B136="","",'शालादर्पण कार्मिक DATA'!B136) ->  | L137: =IF('शालादर्पण कार्मिक DATA'!J136="","",'शालादर्पण कार्मिक DATA'!J136) -> 
A138: =IF(कार्मिक_विवरण[नाम]="","",ROWS($A$2:A135)) ->  | B138: =IF('शालादर्पण कार्मिक DATA'!A137="","",'शालादर्पण कार्मिक DATA'!A137) ->  | C138: =UPPER(IF('शालादर्पण कार्मिक DATA'!F137="","",'शालादर्पण कार्मिक DATA'!F137)) ->  | D138: =IF('शालादर्पण कार्मिक DATA'!E137="","",'शालादर्पण कार्मिक DATA'!E137) ->  | E138: =IF('शालादर्पण कार्मिक DATA'!K137="","",'शालादर्पण कार्मिक DATA'!K137) ->  | F138: =IF('शालादर्पण कार्मिक DATA'!B137="","",'शालादर्पण कार्मिक DATA'!B137) ->  | L138: =IF('शालादर्पण कार्मिक DATA'!J137="","",'शालादर्पण कार्मिक DATA'!J137) -> 
A139: =IF(कार्मिक_विवरण[नाम]="","",ROWS($A$2:A136)) ->  | B139: =IF('शालादर्पण कार्मिक DATA'!A138="","",'शालादर्पण कार्मिक DATA'!A138) ->  | C139: =UPPER(IF('शालादर्पण कार्मिक DATA'!F138="","",'शालादर्पण कार्मिक DATA'!F138)) ->  | D139: =IF('शालादर्पण कार्मिक DATA'!E138="","",'शालादर्पण कार्मिक DATA'!E138) ->  | E139: =IF('शालादर्पण कार्मिक DATA'!K138="","",'शालादर्पण कार्मिक DATA'!K138) ->  | F139: =IF('शालादर्पण कार्मिक DATA'!B138="","",'शालादर्पण कार्मिक DATA'!B138) ->  | L139: =IF('शालादर्पण कार्मिक DATA'!J138="","",'शालादर्पण कार्मिक DATA'!J138) -> 
A140: =IF(कार्मिक_विवरण[नाम]="","",ROWS($A$2:A137)) ->  | B140: =IF('शालादर्पण कार्मिक DATA'!A139="","",'शालादर्पण कार्मिक DATA'!A139) ->  | C140: =UPPER(IF('शालादर्पण कार्मिक DATA'!F139="","",'शालादर्पण कार्मिक DATA'!F139)) ->  | D140: =IF('शालादर्पण कार्मिक DATA'!E139="","",'शालादर्पण कार्मिक DATA'!E139) ->  | E140: =IF('शालादर्पण कार्मिक DATA'!K139="","",'शालादर्पण कार्मिक DATA'!K139) ->  | F140: =IF('शालादर्पण कार्मिक DATA'!B139="","",'शालादर्पण कार्मिक DATA'!B139) ->  | L140: =IF('शालादर्पण कार्मिक DATA'!J139="","",'शालादर्पण कार्मिक DATA'!J139) -> 
A141: =IF(कार्मिक_विवरण[नाम]="","",ROWS($A$2:A138)) ->  | B141: =IF('शालादर्पण कार्मिक DATA'!A140="","",'शालादर्पण कार्मिक DATA'!A140) ->  | C141: =UPPER(IF('शालादर्पण कार्मिक DATA'!F140="","",'शालादर्पण कार्मिक DATA'!F140)) ->  | D141: =IF('शालादर्पण कार्मिक DATA'!E140="","",'शालादर्पण कार्मिक DATA'!E140) ->  | E141: =IF('शालादर्पण कार्मिक DATA'!K140="","",'शालादर्पण कार्मिक DATA'!K140) ->  | F141: =IF('शालादर्पण कार्मिक DATA'!B140="","",'शालादर्पण कार्मिक DATA'!B140) ->  | L141: =IF('शालादर्पण कार्मिक DATA'!J140="","",'शालादर्पण कार्मिक DATA'!J140) -> 
A142: =IF(कार्मिक_विवरण[नाम]="","",ROWS($A$2:A139)) ->  | B142: =IF('शालादर्पण कार्मिक DATA'!A141="","",'शालादर्पण कार्मिक DATA'!A141) ->  | C142: =UPPER(IF('शालादर्पण कार्मिक DATA'!F141="","",'शालादर्पण कार्मिक DATA'!F141)) ->  | D142: =IF('शालादर्पण कार्मिक DATA'!E141="","",'शालादर्पण कार्मिक DATA'!E141) ->  | E142: =IF('शालादर्पण कार्मिक DATA'!K141="","",'शालादर्पण कार्मिक DATA'!K141) ->  | F142: =IF('शालादर्पण कार्मिक DATA'!B141="","",'शालादर्पण कार्मिक DATA'!B141) ->  | L142: =IF('शालादर्पण कार्मिक DATA'!J141="","",'शालादर्पण कार्मिक DATA'!J141) -> 
A143: =IF(कार्मिक_विवरण[नाम]="","",ROWS($A$2:A140)) ->  | B143: =IF('शालादर्पण कार्मिक DATA'!A142="","",'शालादर्पण कार्मिक DATA'!A142) ->  | C143: =UPPER(IF('शालादर्पण कार्मिक DATA'!F142="","",'शालादर्पण कार्मिक DATA'!F142)) ->  | D143: =IF('शालादर्पण कार्मिक DATA'!E142="","",'शालादर्पण कार्मिक DATA'!E142) ->  | E143: =IF('शालादर्पण कार्मिक DATA'!K142="","",'शालादर्पण कार्मिक DATA'!K142) ->  | F143: =IF('शालादर्पण कार्मिक DATA'!B142="","",'शालादर्पण कार्मिक DATA'!B142) ->  | L143: =IF('शालादर्पण कार्मिक DATA'!J142="","",'शालादर्पण कार्मिक DATA'!J142) -> 
A144: =IF(कार्मिक_विवरण[नाम]="","",ROWS($A$2:A141)) ->  | B144: =IF('शालादर्पण कार्मिक DATA'!A143="","",'शालादर्पण कार्मिक DATA'!A143) ->  | C144: =UPPER(IF('शालादर्पण कार्मिक DATA'!F143="","",'शालादर्पण कार्मिक DATA'!F143)) ->  | D144: =IF('शालादर्पण कार्मिक DATA'!E143="","",'शालादर्पण कार्मिक DATA'!E143) ->  | E144: =IF('शालादर्पण कार्मिक DATA'!K143="","",'शालादर्पण कार्मिक DATA'!K143) ->  | F144: =IF('शालादर्पण कार्मिक DATA'!B143="","",'शालादर्पण कार्मिक DATA'!B143) ->  | L144: =IF('शालादर्पण कार्मिक DATA'!J143="","",'शालादर्पण कार्मिक DATA'!J143) -> 
A145: =IF(कार्मिक_विवरण[नाम]="","",ROWS($A$2:A142)) ->  | B145: =IF('शालादर्पण कार्मिक DATA'!A144="","",'शालादर्पण कार्मिक DATA'!A144) ->  | C145: =UPPER(IF('शालादर्पण कार्मिक DATA'!F144="","",'शालादर्पण कार्मिक DATA'!F144)) ->  | D145: =IF('शालादर्पण कार्मिक DATA'!E144="","",'शालादर्पण कार्मिक DATA'!E144) ->  | E145: =IF('शालादर्पण कार्मिक DATA'!K144="","",'शालादर्पण कार्मिक DATA'!K144) ->  | F145: =IF('शालादर्पण कार्मिक DATA'!B144="","",'शालादर्पण कार्मिक DATA'!B144) ->  | L145: =IF('शालादर्पण कार्मिक DATA'!J144="","",'शालादर्पण कार्मिक DATA'!J144) -> 
A146: =IF(कार्मिक_विवरण[नाम]="","",ROWS($A$2:A143)) ->  | B146: =IF('शालादर्पण कार्मिक DATA'!A145="","",'शालादर्पण कार्मिक DATA'!A145) ->  | C146: =UPPER(IF('शालादर्पण कार्मिक DATA'!F145="","",'शालादर्पण कार्मिक DATA'!F145)) ->  | D146: =IF('शालादर्पण कार्मिक DATA'!E145="","",'शालादर्पण कार्मिक DATA'!E145) ->  | E146: =IF('शालादर्पण कार्मिक DATA'!K145="","",'शालादर्पण कार्मिक DATA'!K145) ->  | F146: =IF('शालादर्पण कार्मिक DATA'!B145="","",'शालादर्पण कार्मिक DATA'!B145) ->  | L146: =IF('शालादर्पण कार्मिक DATA'!J145="","",'शालादर्पण कार्मिक DATA'!J145) -> 
A147: =IF(कार्मिक_विवरण[नाम]="","",ROWS($A$2:A144)) ->  | B147: =IF('शालादर्पण कार्मिक DATA'!A146="","",'शालादर्पण कार्मिक DATA'!A146) ->  | C147: =UPPER(IF('शालादर्पण कार्मिक DATA'!F146="","",'शालादर्पण कार्मिक DATA'!F146)) ->  | D147: =IF('शालादर्पण कार्मिक DATA'!E146="","",'शालादर्पण कार्मिक DATA'!E146) ->  | E147: =IF('शालादर्पण कार्मिक DATA'!K146="","",'शालादर्पण कार्मिक DATA'!K146) ->  | F147: =IF('शालादर्पण कार्मिक DATA'!B146="","",'शालादर्पण कार्मिक DATA'!B146) ->  | L147: =IF('शालादर्पण कार्मिक DATA'!J146="","",'शालादर्पण कार्मिक DATA'!J146) -> 
A148: =IF(कार्मिक_विवरण[नाम]="","",ROWS($A$2:A145)) ->  | B148: =IF('शालादर्पण कार्मिक DATA'!A147="","",'शालादर्पण कार्मिक DATA'!A147) ->  | C148: =UPPER(IF('शालादर्पण कार्मिक DATA'!F147="","",'शालादर्पण कार्मिक DATA'!F147)) ->  | D148: =IF('शालादर्पण कार्मिक DATA'!E147="","",'शालादर्पण कार्मिक DATA'!E147) ->  | E148: =IF('शालादर्पण कार्मिक DATA'!K147="","",'शालादर्पण कार्मिक DATA'!K147) ->  | F148: =IF('शालादर्पण कार्मिक DATA'!B147="","",'शालादर्पण कार्मिक DATA'!B147) ->  | L148: =IF('शालादर्पण कार्मिक DATA'!J147="","",'शालादर्पण कार्मिक DATA'!J147) -> 
A149: =IF(कार्मिक_विवरण[नाम]="","",ROWS($A$2:A146)) ->  | B149: =IF('शालादर्पण कार्मिक DATA'!A148="","",'शालादर्पण कार्मिक DATA'!A148) ->  | C149: =UPPER(IF('शालादर्पण कार्मिक DATA'!F148="","",'शालादर्पण कार्मिक DATA'!F148)) ->  | D149: =IF('शालादर्पण कार्मिक DATA'!E148="","",'शालादर्पण कार्मिक DATA'!E148) ->  | E149: =IF('शालादर्पण कार्मिक DATA'!K148="","",'शालादर्पण कार्मिक DATA'!K148) ->  | F149: =IF('शालादर्पण कार्मिक DATA'!B148="","",'शालादर्पण कार्मिक DATA'!B148) ->  | L149: =IF('शालादर्पण कार्मिक DATA'!J148="","",'शालादर्पण कार्मिक DATA'!J148) -> 
A150: =IF(कार्मिक_विवरण[नाम]="","",ROWS($A$2:A147)) ->  | B150: =IF('शालादर्पण कार्मिक DATA'!A149="","",'शालादर्पण कार्मिक DATA'!A149) ->  | C150: =UPPER(IF('शालादर्पण कार्मिक DATA'!F149="","",'शालादर्पण कार्मिक DATA'!F149)) ->  | D150: =IF('शालादर्पण कार्मिक DATA'!E149="","",'शालादर्पण कार्मिक DATA'!E149) ->  | E150: =IF('शालादर्पण कार्मिक DATA'!K149="","",'शालादर्पण कार्मिक DATA'!K149) ->  | F150: =IF('शालादर्पण कार्मिक DATA'!B149="","",'शालादर्पण कार्मिक DATA'!B149) ->  | L150: =IF('शालादर्पण कार्मिक DATA'!J149="","",'शालादर्पण कार्मिक DATA'!J149) -> 
A151: =IF(कार्मिक_विवरण[नाम]="","",ROWS($A$2:A148)) ->  | B151: =IF('शालादर्पण कार्मिक DATA'!A150="","",'शालादर्पण कार्मिक DATA'!A150) ->  | C151: =UPPER(IF('शालादर्पण कार्मिक DATA'!F150="","",'शालादर्पण कार्मिक DATA'!F150)) ->  | D151: =IF('शालादर्पण कार्मिक DATA'!E150="","",'शालादर्पण कार्मिक DATA'!E150) ->  | E151: =IF('शालादर्पण कार्मिक DATA'!K150="","",'शालादर्पण कार्मिक DATA'!K150) ->  | F151: =IF('शालादर्पण कार्मिक DATA'!B150="","",'शालादर्पण कार्मिक DATA'!B150) ->  | L151: =IF('शालादर्पण कार्मिक DATA'!J150="","",'शालादर्पण कार्मिक DATA'!J150) -> 
A152: =IF(कार्मिक_विवरण[नाम]="","",ROWS($A$2:A149)) ->  | B152: =IF('शालादर्पण कार्मिक DATA'!A151="","",'शालादर्पण कार्मिक DATA'!A151) ->  | C152: =UPPER(IF('शालादर्पण कार्मिक DATA'!F151="","",'शालादर्पण कार्मिक DATA'!F151)) ->  | D152: =IF('शालादर्पण कार्मिक DATA'!E151="","",'शालादर्पण कार्मिक DATA'!E151) ->  | E152: =IF('शालादर्पण कार्मिक DATA'!K151="","",'शालादर्पण कार्मिक DATA'!K151) ->  | F152: =IF('शालादर्पण कार्मिक DATA'!B151="","",'शालादर्पण कार्मिक DATA'!B151) ->  | L152: =IF('शालादर्पण कार्मिक DATA'!J151="","",'शालादर्पण कार्मिक DATA'!J151) -> 
A153: =IF(कार्मिक_विवरण[नाम]="","",ROWS($A$2:A150)) ->  | B153: =IF('शालादर्पण कार्मिक DATA'!A152="","",'शालादर्पण कार्मिक DATA'!A152) ->  | C153: =UPPER(IF('शालादर्पण कार्मिक DATA'!F152="","",'शालादर्पण कार्मिक DATA'!F152)) ->  | D153: =IF('शालादर्पण कार्मिक DATA'!E152="","",'शालादर्पण कार्मिक DATA'!E152) ->  | E153: =IF('शालादर्पण कार्मिक DATA'!K152="","",'शालादर्पण कार्मिक DATA'!K152) ->  | F153: =IF('शालादर्पण कार्मिक DATA'!B152="","",'शालादर्पण कार्मिक DATA'!B152) ->  | L153: =IF('शालादर्पण कार्मिक DATA'!J152="","",'शालादर्पण कार्मिक DATA'!J152) -> 
A154: =IF(कार्मिक_विवरण[नाम]="","",ROWS($A$2:A151)) ->  | B154: =IF('शालादर्पण कार्मिक DATA'!A153="","",'शालादर्पण कार्मिक DATA'!A153) ->  | C154: =UPPER(IF('शालादर्पण कार्मिक DATA'!F153="","",'शालादर्पण कार्मिक DATA'!F153)) ->  | D154: =IF('शालादर्पण कार्मिक DATA'!E153="","",'शालादर्पण कार्मिक DATA'!E153) ->  | E154: =IF('शालादर्पण कार्मिक DATA'!K153="","",'शालादर्पण कार्मिक DATA'!K153) ->  | F154: =IF('शालादर्पण कार्मिक DATA'!B153="","",'शालादर्पण कार्मिक DATA'!B153) ->  | L154: =IF('शालादर्पण कार्मिक DATA'!J153="","",'शालादर्पण कार्मिक DATA'!J153) -> 
A155: =IF(कार्मिक_विवरण[नाम]="","",ROWS($A$2:A152)) ->  | B155: =IF('शालादर्पण कार्मिक DATA'!A154="","",'शालादर्पण कार्मिक DATA'!A154) ->  | C155: =UPPER(IF('शालादर्पण कार्मिक DATA'!F154="","",'शालादर्पण कार्मिक DATA'!F154)) ->  | D155: =IF('शालादर्पण कार्मिक DATA'!E154="","",'शालादर्पण कार्मिक DATA'!E154) ->  | E155: =IF('शालादर्पण कार्मिक DATA'!K154="","",'शालादर्पण कार्मिक DATA'!K154) ->  | F155: =IF('शालादर्पण कार्मिक DATA'!B154="","",'शालादर्पण कार्मिक DATA'!B154) ->  | L155: =IF('शालादर्पण कार्मिक DATA'!J154="","",'शालादर्पण कार्मिक DATA'!J154) -> 
A156: =IF(कार्मिक_विवरण[नाम]="","",ROWS($A$2:A153)) ->  | B156: =IF('शालादर्पण कार्मिक DATA'!A155="","",'शालादर्पण कार्मिक DATA'!A155) ->  | C156: =UPPER(IF('शालादर्पण कार्मिक DATA'!F155="","",'शालादर्पण कार्मिक DATA'!F155)) ->  | D156: =IF('शालादर्पण कार्मिक DATA'!E155="","",'शालादर्पण कार्मिक DATA'!E155) ->  | E156: =IF('शालादर्पण कार्मिक DATA'!K155="","",'शालादर्पण कार्मिक DATA'!K155) ->  | F156: =IF('शालादर्पण कार्मिक DATA'!B155="","",'शालादर्पण कार्मिक DATA'!B155) ->  | L156: =IF('शालादर्पण कार्मिक DATA'!J155="","",'शालादर्पण कार्मिक DATA'!J155) -> 
A157: =IF(कार्मिक_विवरण[नाम]="","",ROWS($A$2:A154)) ->  | B157: =IF('शालादर्पण कार्मिक DATA'!A156="","",'शालादर्पण कार्मिक DATA'!A156) ->  | C157: =UPPER(IF('शालादर्पण कार्मिक DATA'!F156="","",'शालादर्पण कार्मिक DATA'!F156)) ->  | D157: =IF('शालादर्पण कार्मिक DATA'!E156="","",'शालादर्पण कार्मिक DATA'!E156) ->  | E157: =IF('शालादर्पण कार्मिक DATA'!K156="","",'शालादर्पण कार्मिक DATA'!K156) ->  | F157: =IF('शालादर्पण कार्मिक DATA'!B156="","",'शालादर्पण कार्मिक DATA'!B156) ->  | L157: =IF('शालादर्पण कार्मिक DATA'!J156="","",'शालादर्पण कार्मिक DATA'!J156) -> 
A158: =IF(कार्मिक_विवरण[नाम]="","",ROWS($A$2:A155)) ->  | B158: =IF('शालादर्पण कार्मिक DATA'!A157="","",'शालादर्पण कार्मिक DATA'!A157) ->  | C158: =UPPER(IF('शालादर्पण कार्मिक DATA'!F157="","",'शालादर्पण कार्मिक DATA'!F157)) ->  | D158: =IF('शालादर्पण कार्मिक DATA'!E157="","",'शालादर्पण कार्मिक DATA'!E157) ->  | E158: =IF('शालादर्पण कार्मिक DATA'!K157="","",'शालादर्पण कार्मिक DATA'!K157) ->  | F158: =IF('शालादर्पण कार्मिक DATA'!B157="","",'शालादर्पण कार्मिक DATA'!B157) ->  | L158: =IF('शालादर्पण कार्मिक DATA'!J157="","",'शालादर्पण कार्मिक DATA'!J157) -> 
A159: =IF(कार्मिक_विवरण[नाम]="","",ROWS($A$2:A156)) ->  | B159: =IF('शालादर्पण कार्मिक DATA'!A158="","",'शालादर्पण कार्मिक DATA'!A158) ->  | C159: =UPPER(IF('शालादर्पण कार्मिक DATA'!F158="","",'शालादर्पण कार्मिक DATA'!F158)) ->  | D159: =IF('शालादर्पण कार्मिक DATA'!E158="","",'शालादर्पण कार्मिक DATA'!E158) ->  | E159: =IF('शालादर्पण कार्मिक DATA'!K158="","",'शालादर्पण कार्मिक DATA'!K158) ->  | F159: =IF('शालादर्पण कार्मिक DATA'!B158="","",'शालादर्पण कार्मिक DATA'!B158) ->  | L159: =IF('शालादर्पण कार्मिक DATA'!J158="","",'शालादर्पण कार्मिक DATA'!J158) -> 
A160: =IF(कार्मिक_विवरण[नाम]="","",ROWS($A$2:A157)) ->  | B160: =IF('शालादर्पण कार्मिक DATA'!A159="","",'शालादर्पण कार्मिक DATA'!A159) ->  | C160: =UPPER(IF('शालादर्पण कार्मिक DATA'!F159="","",'शालादर्पण कार्मिक DATA'!F159)) ->  | D160: =IF('शालादर्पण कार्मिक DATA'!E159="","",'शालादर्पण कार्मिक DATA'!E159) ->  | E160: =IF('शालादर्पण कार्मिक DATA'!K159="","",'शालादर्पण कार्मिक DATA'!K159) ->  | F160: =IF('शालादर्पण कार्मिक DATA'!B159="","",'शालादर्पण कार्मिक DATA'!B159) ->  | L160: =IF('शालादर्पण कार्मिक DATA'!J159="","",'शालादर्पण कार्मिक DATA'!J159) -> 
A161: =IF(कार्मिक_विवरण[नाम]="","",ROWS($A$2:A158)) ->  | B161: =IF('शालादर्पण कार्मिक DATA'!A160="","",'शालादर्पण कार्मिक DATA'!A160) ->  | C161: =UPPER(IF('शालादर्पण कार्मिक DATA'!F160="","",'शालादर्पण कार्मिक DATA'!F160)) ->  | D161: =IF('शालादर्पण कार्मिक DATA'!E160="","",'शालादर्पण कार्मिक DATA'!E160) ->  | E161: =IF('शालादर्पण कार्मिक DATA'!K160="","",'शालादर्पण कार्मिक DATA'!K160) ->  | F161: =IF('शालादर्पण कार्मिक DATA'!B160="","",'शालादर्पण कार्मिक DATA'!B160) ->  | L161: =IF('शालादर्पण कार्मिक DATA'!J160="","",'शालादर्पण कार्मिक DATA'!J160) -> 
A162: =IF(कार्मिक_विवरण[नाम]="","",ROWS($A$2:A159)) ->  | B162: =IF('शालादर्पण कार्मिक DATA'!A161="","",'शालादर्पण कार्मिक DATA'!A161) ->  | C162: =UPPER(IF('शालादर्पण कार्मिक DATA'!F161="","",'शालादर्पण कार्मिक DATA'!F161)) ->  | D162: =IF('शालादर्पण कार्मिक DATA'!E161="","",'शालादर्पण कार्मिक DATA'!E161) ->  | E162: =IF('शालादर्पण कार्मिक DATA'!K161="","",'शालादर्पण कार्मिक DATA'!K161) ->  | F162: =IF('शालादर्पण कार्मिक DATA'!B161="","",'शालादर्पण कार्मिक DATA'!B161) ->  | L162: =IF('शालादर्पण कार्मिक DATA'!J161="","",'शालादर्पण कार्मिक DATA'!J161) -> 
A163: =IF(कार्मिक_विवरण[नाम]="","",ROWS($A$2:A160)) ->  | B163: =IF('शालादर्पण कार्मिक DATA'!A162="","",'शालादर्पण कार्मिक DATA'!A162) ->  | C163: =UPPER(IF('शालादर्पण कार्मिक DATA'!F162="","",'शालादर्पण कार्मिक DATA'!F162)) ->  | D163: =IF('शालादर्पण कार्मिक DATA'!E162="","",'शालादर्पण कार्मिक DATA'!E162) ->  | E163: =IF('शालादर्पण कार्मिक DATA'!K162="","",'शालादर्पण कार्मिक DATA'!K162) ->  | F163: =IF('शालादर्पण कार्मिक DATA'!B162="","",'शालादर्पण कार्मिक DATA'!B162) ->  | L163: =IF('शालादर्पण कार्मिक DATA'!J162="","",'शालादर्पण कार्मिक DATA'!J162) -> 
A164: =IF(कार्मिक_विवरण[नाम]="","",ROWS($A$2:A161)) ->  | B164: =IF('शालादर्पण कार्मिक DATA'!A163="","",'शालादर्पण कार्मिक DATA'!A163) ->  | C164: =UPPER(IF('शालादर्पण कार्मिक DATA'!F163="","",'शालादर्पण कार्मिक DATA'!F163)) ->  | D164: =IF('शालादर्पण कार्मिक DATA'!E163="","",'शालादर्पण कार्मिक DATA'!E163) ->  | E164: =IF('शालादर्पण कार्मिक DATA'!K163="","",'शालादर्पण कार्मिक DATA'!K163) ->  | F164: =IF('शालादर्पण कार्मिक DATA'!B163="","",'शालादर्पण कार्मिक DATA'!B163) ->  | L164: =IF('शालादर्पण कार्मिक DATA'!J163="","",'शालादर्पण कार्मिक DATA'!J163) -> 
A165: =IF(कार्मिक_विवरण[नाम]="","",ROWS($A$2:A162)) ->  | B165: =IF('शालादर्पण कार्मिक DATA'!A164="","",'शालादर्पण कार्मिक DATA'!A164) ->  | C165: =UPPER(IF('शालादर्पण कार्मिक DATA'!F164="","",'शालादर्पण कार्मिक DATA'!F164)) ->  | D165: =IF('शालादर्पण कार्मिक DATA'!E164="","",'शालादर्पण कार्मिक DATA'!E164) ->  | E165: =IF('शालादर्पण कार्मिक DATA'!K164="","",'शालादर्पण कार्मिक DATA'!K164) ->  | F165: =IF('शालादर्पण कार्मिक DATA'!B164="","",'शालादर्पण कार्मिक DATA'!B164) ->  | L165: =IF('शालादर्पण कार्मिक DATA'!J164="","",'शालादर्पण कार्मिक DATA'!J164) -> 
A166: =IF(कार्मिक_विवरण[नाम]="","",ROWS($A$2:A163)) ->  | B166: =IF('शालादर्पण कार्मिक DATA'!A165="","",'शालादर्पण कार्मिक DATA'!A165) ->  | C166: =UPPER(IF('शालादर्पण कार्मिक DATA'!F165="","",'शालादर्पण कार्मिक DATA'!F165)) ->  | D166: =IF('शालादर्पण कार्मिक DATA'!E165="","",'शालादर्पण कार्मिक DATA'!E165) ->  | E166: =IF('शालादर्पण कार्मिक DATA'!K165="","",'शालादर्पण कार्मिक DATA'!K165) ->  | F166: =IF('शालादर्पण कार्मिक DATA'!B165="","",'शालादर्पण कार्मिक DATA'!B165) ->  | L166: =IF('शालादर्पण कार्मिक DATA'!J165="","",'शालादर्पण कार्मिक DATA'!J165) -> 
A167: =IF(कार्मिक_विवरण[नाम]="","",ROWS($A$2:A164)) ->  | B167: =IF('शालादर्पण कार्मिक DATA'!A166="","",'शालादर्पण कार्मिक DATA'!A166) ->  | C167: =UPPER(IF('शालादर्पण कार्मिक DATA'!F166="","",'शालादर्पण कार्मिक DATA'!F166)) ->  | D167: =IF('शालादर्पण कार्मिक DATA'!E166="","",'शालादर्पण कार्मिक DATA'!E166) ->  | E167: =IF('शालादर्पण कार्मिक DATA'!K166="","",'शालादर्पण कार्मिक DATA'!K166) ->  | F167: =IF('शालादर्पण कार्मिक DATA'!B166="","",'शालादर्पण कार्मिक DATA'!B166) ->  | L167: =IF('शालादर्पण कार्मिक DATA'!J166="","",'शालादर्पण कार्मिक DATA'!J166) -> 
A168: =IF(कार्मिक_विवरण[नाम]="","",ROWS($A$2:A165)) ->  | B168: =IF('शालादर्पण कार्मिक DATA'!A167="","",'शालादर्पण कार्मिक DATA'!A167) ->  | C168: =UPPER(IF('शालादर्पण कार्मिक DATA'!F167="","",'शालादर्पण कार्मिक DATA'!F167)) ->  | D168: =IF('शालादर्पण कार्मिक DATA'!E167="","",'शालादर्पण कार्मिक DATA'!E167) ->  | E168: =IF('शालादर्पण कार्मिक DATA'!K167="","",'शालादर्पण कार्मिक DATA'!K167) ->  | F168: =IF('शालादर्पण कार्मिक DATA'!B167="","",'शालादर्पण कार्मिक DATA'!B167) ->  | L168: =IF('शालादर्पण कार्मिक DATA'!J167="","",'शालादर्पण कार्मिक DATA'!J167) -> 
A169: =IF(कार्मिक_विवरण[नाम]="","",ROWS($A$2:A166)) ->  | B169: =IF('शालादर्पण कार्मिक DATA'!A168="","",'शालादर्पण कार्मिक DATA'!A168) ->  | C169: =UPPER(IF('शालादर्पण कार्मिक DATA'!F168="","",'शालादर्पण कार्मिक DATA'!F168)) ->  | D169: =IF('शालादर्पण कार्मिक DATA'!E168="","",'शालादर्पण कार्मिक DATA'!E168) ->  | E169: =IF('शालादर्पण कार्मिक DATA'!K168="","",'शालादर्पण कार्मिक DATA'!K168) ->  | F169: =IF('शालादर्पण कार्मिक DATA'!B168="","",'शालादर्पण कार्मिक DATA'!B168) ->  | L169: =IF('शालादर्पण कार्मिक DATA'!J168="","",'शालादर्पण कार्मिक DATA'!J168) -> 
A170: =IF(कार्मिक_विवरण[नाम]="","",ROWS($A$2:A167)) ->  | B170: =IF('शालादर्पण कार्मिक DATA'!A169="","",'शालादर्पण कार्मिक DATA'!A169) ->  | C170: =UPPER(IF('शालादर्पण कार्मिक DATA'!F169="","",'शालादर्पण कार्मिक DATA'!F169)) ->  | D170: =IF('शालादर्पण कार्मिक DATA'!E169="","",'शालादर्पण कार्मिक DATA'!E169) ->  | E170: =IF('शालादर्पण कार्मिक DATA'!K169="","",'शालादर्पण कार्मिक DATA'!K169) ->  | F170: =IF('शालादर्पण कार्मिक DATA'!B169="","",'शालादर्पण कार्मिक DATA'!B169) ->  | L170: =IF('शालादर्पण कार्मिक DATA'!J169="","",'शालादर्पण कार्मिक DATA'!J169) -> 
A171: =IF(कार्मिक_विवरण[नाम]="","",ROWS($A$2:A168)) ->  | B171: =IF('शालादर्पण कार्मिक DATA'!A170="","",'शालादर्पण कार्मिक DATA'!A170) ->  | C171: =UPPER(IF('शालादर्पण कार्मिक DATA'!F170="","",'शालादर्पण कार्मिक DATA'!F170)) ->  | D171: =IF('शालादर्पण कार्मिक DATA'!E170="","",'शालादर्पण कार्मिक DATA'!E170) ->  | E171: =IF('शालादर्पण कार्मिक DATA'!K170="","",'शालादर्पण कार्मिक DATA'!K170) ->  | F171: =IF('शालादर्पण कार्मिक DATA'!B170="","",'शालादर्पण कार्मिक DATA'!B170) ->  | L171: =IF('शालादर्पण कार्मिक DATA'!J170="","",'शालादर्पण कार्मिक DATA'!J170) -> 
A172: =IF(कार्मिक_विवरण[नाम]="","",ROWS($A$2:A169)) ->  | B172: =IF('शालादर्पण कार्मिक DATA'!A171="","",'शालादर्पण कार्मिक DATA'!A171) ->  | C172: =UPPER(IF('शालादर्पण कार्मिक DATA'!F171="","",'शालादर्पण कार्मिक DATA'!F171)) ->  | D172: =IF('शालादर्पण कार्मिक DATA'!E171="","",'शालादर्पण कार्मिक DATA'!E171) ->  | E172: =IF('शालादर्पण कार्मिक DATA'!K171="","",'शालादर्पण कार्मिक DATA'!K171) ->  | F172: =IF('शालादर्पण कार्मिक DATA'!B171="","",'शालादर्पण कार्मिक DATA'!B171) ->  | L172: =IF('शालादर्पण कार्मिक DATA'!J171="","",'शालादर्पण कार्मिक DATA'!J171) -> 
A173: =IF(कार्मिक_विवरण[नाम]="","",ROWS($A$2:A170)) ->  | B173: =IF('शालादर्पण कार्मिक DATA'!A172="","",'शालादर्पण कार्मिक DATA'!A172) ->  | C173: =UPPER(IF('शालादर्पण कार्मिक DATA'!F172="","",'शालादर्पण कार्मिक DATA'!F172)) ->  | D173: =IF('शालादर्पण कार्मिक DATA'!E172="","",'शालादर्पण कार्मिक DATA'!E172) ->  | E173: =IF('शालादर्पण कार्मिक DATA'!K172="","",'शालादर्पण कार्मिक DATA'!K172) ->  | F173: =IF('शालादर्पण कार्मिक DATA'!B172="","",'शालादर्पण कार्मिक DATA'!B172) ->  | L173: =IF('शालादर्पण कार्मिक DATA'!J172="","",'शालादर्पण कार्मिक DATA'!J172) -> 
A174: =IF(कार्मिक_विवरण[नाम]="","",ROWS($A$2:A171)) ->  | B174: =IF('शालादर्पण कार्मिक DATA'!A173="","",'शालादर्पण कार्मिक DATA'!A173) ->  | C174: =UPPER(IF('शालादर्पण कार्मिक DATA'!F173="","",'शालादर्पण कार्मिक DATA'!F173)) ->  | D174: =IF('शालादर्पण कार्मिक DATA'!E173="","",'शालादर्पण कार्मिक DATA'!E173) ->  | E174: =IF('शालादर्पण कार्मिक DATA'!K173="","",'शालादर्पण कार्मिक DATA'!K173) ->  | F174: =IF('शालादर्पण कार्मिक DATA'!B173="","",'शालादर्पण कार्मिक DATA'!B173) ->  | L174: =IF('शालादर्पण कार्मिक DATA'!J173="","",'शालादर्पण कार्मिक DATA'!J173) -> 
A175: =IF(कार्मिक_विवरण[नाम]="","",ROWS($A$2:A172)) ->  | B175: =IF('शालादर्पण कार्मिक DATA'!A174="","",'शालादर्पण कार्मिक DATA'!A174) ->  | C175: =UPPER(IF('शालादर्पण कार्मिक DATA'!F174="","",'शालादर्पण कार्मिक DATA'!F174)) ->  | D175: =IF('शालादर्पण कार्मिक DATA'!E174="","",'शालादर्पण कार्मिक DATA'!E174) ->  | E175: =IF('शालादर्पण कार्मिक DATA'!K174="","",'शालादर्पण कार्मिक DATA'!K174) ->  | F175: =IF('शालादर्पण कार्मिक DATA'!B174="","",'शालादर्पण कार्मिक DATA'!B174) ->  | L175: =IF('शालादर्पण कार्मिक DATA'!J174="","",'शालादर्पण कार्मिक DATA'!J174) -> 
A176: =IF(कार्मिक_विवरण[नाम]="","",ROWS($A$2:A173)) ->  | B176: =IF('शालादर्पण कार्मिक DATA'!A175="","",'शालादर्पण कार्मिक DATA'!A175) ->  | C176: =UPPER(IF('शालादर्पण कार्मिक DATA'!F175="","",'शालादर्पण कार्मिक DATA'!F175)) ->  | D176: =IF('शालादर्पण कार्मिक DATA'!E175="","",'शालादर्पण कार्मिक DATA'!E175) ->  | E176: =IF('शालादर्पण कार्मिक DATA'!K175="","",'शालादर्पण कार्मिक DATA'!K175) ->  | F176: =IF('शालादर्पण कार्मिक DATA'!B175="","",'शालादर्पण कार्मिक DATA'!B175) ->  | L176: =IF('शालादर्पण कार्मिक DATA'!J175="","",'शालादर्पण कार्मिक DATA'!J175) -> 
A177: =IF(कार्मिक_विवरण[नाम]="","",ROWS($A$2:A174)) ->  | B177: =IF('शालादर्पण कार्मिक DATA'!A176="","",'शालादर्पण कार्मिक DATA'!A176) ->  | C177: =UPPER(IF('शालादर्पण कार्मिक DATA'!F176="","",'शालादर्पण कार्मिक DATA'!F176)) ->  | D177: =IF('शालादर्पण कार्मिक DATA'!E176="","",'शालादर्पण कार्मिक DATA'!E176) ->  | E177: =IF('शालादर्पण कार्मिक DATA'!K176="","",'शालादर्पण कार्मिक DATA'!K176) ->  | F177: =IF('शालादर्पण कार्मिक DATA'!B176="","",'शालादर्पण कार्मिक DATA'!B176) ->  | L177: =IF('शालादर्पण कार्मिक DATA'!J176="","",'शालादर्पण कार्मिक DATA'!J176) -> 
A178: =IF(कार्मिक_विवरण[नाम]="","",ROWS($A$2:A175)) ->  | B178: =IF('शालादर्पण कार्मिक DATA'!A177="","",'शालादर्पण कार्मिक DATA'!A177) ->  | C178: =UPPER(IF('शालादर्पण कार्मिक DATA'!F177="","",'शालादर्पण कार्मिक DATA'!F177)) ->  | D178: =IF('शालादर्पण कार्मिक DATA'!E177="","",'शालादर्पण कार्मिक DATA'!E177) ->  | E178: =IF('शालादर्पण कार्मिक DATA'!K177="","",'शालादर्पण कार्मिक DATA'!K177) ->  | F178: =IF('शालादर्पण कार्मिक DATA'!B177="","",'शालादर्पण कार्मिक DATA'!B177) ->  | L178: =IF('शालादर्पण कार्मिक DATA'!J177="","",'शालादर्पण कार्मिक DATA'!J177) -> 
A179: =IF(कार्मिक_विवरण[नाम]="","",ROWS($A$2:A176)) ->  | B179: =IF('शालादर्पण कार्मिक DATA'!A178="","",'शालादर्पण कार्मिक DATA'!A178) ->  | C179: =UPPER(IF('शालादर्पण कार्मिक DATA'!F178="","",'शालादर्पण कार्मिक DATA'!F178)) ->  | D179: =IF('शालादर्पण कार्मिक DATA'!E178="","",'शालादर्पण कार्मिक DATA'!E178) ->  | E179: =IF('शालादर्पण कार्मिक DATA'!K178="","",'शालादर्पण कार्मिक DATA'!K178) ->  | F179: =IF('शालादर्पण कार्मिक DATA'!B178="","",'शालादर्पण कार्मिक DATA'!B178) ->  | L179: =IF('शालादर्पण कार्मिक DATA'!J178="","",'शालादर्पण कार्मिक DATA'!J178) -> 
A180: =IF(कार्मिक_विवरण[नाम]="","",ROWS($A$2:A177)) ->  | B180: =IF('शालादर्पण कार्मिक DATA'!A179="","",'शालादर्पण कार्मिक DATA'!A179) ->  | C180: =UPPER(IF('शालादर्पण कार्मिक DATA'!F179="","",'शालादर्पण कार्मिक DATA'!F179)) ->  | D180: =IF('शालादर्पण कार्मिक DATA'!E179="","",'शालादर्पण कार्मिक DATA'!E179) ->  | E180: =IF('शालादर्पण कार्मिक DATA'!K179="","",'शालादर्पण कार्मिक DATA'!K179) ->  | F180: =IF('शालादर्पण कार्मिक DATA'!B179="","",'शालादर्पण कार्मिक DATA'!B179) ->  | L180: =IF('शालादर्पण कार्मिक DATA'!J179="","",'शालादर्पण कार्मिक DATA'!J179) -> 
A181: =IF(कार्मिक_विवरण[नाम]="","",ROWS($A$2:A178)) ->  | B181: =IF('शालादर्पण कार्मिक DATA'!A180="","",'शालादर्पण कार्मिक DATA'!A180) ->  | C181: =UPPER(IF('शालादर्पण कार्मिक DATA'!F180="","",'शालादर्पण कार्मिक DATA'!F180)) ->  | D181: =IF('शालादर्पण कार्मिक DATA'!E180="","",'शालादर्पण कार्मिक DATA'!E180) ->  | E181: =IF('शालादर्पण कार्मिक DATA'!K180="","",'शालादर्पण कार्मिक DATA'!K180) ->  | F181: =IF('शालादर्पण कार्मिक DATA'!B180="","",'शालादर्पण कार्मिक DATA'!B180) ->  | L181: =IF('शालादर्पण कार्मिक DATA'!J180="","",'शालादर्पण कार्मिक DATA'!J180) -> 
A182: =IF(कार्मिक_विवरण[नाम]="","",ROWS($A$2:A179)) ->  | B182: =IF('शालादर्पण कार्मिक DATA'!A181="","",'शालादर्पण कार्मिक DATA'!A181) ->  | C182: =UPPER(IF('शालादर्पण कार्मिक DATA'!F181="","",'शालादर्पण कार्मिक DATA'!F181)) ->  | D182: =IF('शालादर्पण कार्मिक DATA'!E181="","",'शालादर्पण कार्मिक DATA'!E181) ->  | E182: =IF('शालादर्पण कार्मिक DATA'!K181="","",'शालादर्पण कार्मिक DATA'!K181) ->  | F182: =IF('शालादर्पण कार्मिक DATA'!B181="","",'शालादर्पण कार्मिक DATA'!B181) ->  | L182: =IF('शालादर्पण कार्मिक DATA'!J181="","",'शालादर्पण कार्मिक DATA'!J181) -> 
A183: =IF(कार्मिक_विवरण[नाम]="","",ROWS($A$2:A180)) ->  | B183: =IF('शालादर्पण कार्मिक DATA'!A182="","",'शालादर्पण कार्मिक DATA'!A182) ->  | C183: =UPPER(IF('शालादर्पण कार्मिक DATA'!F182="","",'शालादर्पण कार्मिक DATA'!F182)) ->  | D183: =IF('शालादर्पण कार्मिक DATA'!E182="","",'शालादर्पण कार्मिक DATA'!E182) ->  | E183: =IF('शालादर्पण कार्मिक DATA'!K182="","",'शालादर्पण कार्मिक DATA'!K182) ->  | F183: =IF('शालादर्पण कार्मिक DATA'!B182="","",'शालादर्पण कार्मिक DATA'!B182) ->  | L183: =IF('शालादर्पण कार्मिक DATA'!J182="","",'शालादर्पण कार्मिक DATA'!J182) -> 
A184: =IF(कार्मिक_विवरण[नाम]="","",ROWS($A$2:A181)) ->  | B184: =IF('शालादर्पण कार्मिक DATA'!A183="","",'शालादर्पण कार्मिक DATA'!A183) ->  | C184: =UPPER(IF('शालादर्पण कार्मिक DATA'!F183="","",'शालादर्पण कार्मिक DATA'!F183)) ->  | D184: =IF('शालादर्पण कार्मिक DATA'!E183="","",'शालादर्पण कार्मिक DATA'!E183) ->  | E184: =IF('शालादर्पण कार्मिक DATA'!K183="","",'शालादर्पण कार्मिक DATA'!K183) ->  | F184: =IF('शालादर्पण कार्मिक DATA'!B183="","",'शालादर्पण कार्मिक DATA'!B183) ->  | L184: =IF('शालादर्पण कार्मिक DATA'!J183="","",'शालादर्पण कार्मिक DATA'!J183) -> 
A185: =IF(कार्मिक_विवरण[नाम]="","",ROWS($A$2:A182)) ->  | B185: =IF('शालादर्पण कार्मिक DATA'!A184="","",'शालादर्पण कार्मिक DATA'!A184) ->  | C185: =UPPER(IF('शालादर्पण कार्मिक DATA'!F184="","",'शालादर्पण कार्मिक DATA'!F184)) ->  | D185: =IF('शालादर्पण कार्मिक DATA'!E184="","",'शालादर्पण कार्मिक DATA'!E184) ->  | E185: =IF('शालादर्पण कार्मिक DATA'!K184="","",'शालादर्पण कार्मिक DATA'!K184) ->  | F185: =IF('शालादर्पण कार्मिक DATA'!B184="","",'शालादर्पण कार्मिक DATA'!B184) ->  | L185: =IF('शालादर्पण कार्मिक DATA'!J184="","",'शालादर्पण कार्मिक DATA'!J184) -> 
A186: =IF(कार्मिक_विवरण[नाम]="","",ROWS($A$2:A183)) ->  | B186: =IF('शालादर्पण कार्मिक DATA'!A185="","",'शालादर्पण कार्मिक DATA'!A185) ->  | C186: =UPPER(IF('शालादर्पण कार्मिक DATA'!F185="","",'शालादर्पण कार्मिक DATA'!F185)) ->  | D186: =IF('शालादर्पण कार्मिक DATA'!E185="","",'शालादर्पण कार्मिक DATA'!E185) ->  | E186: =IF('शालादर्पण कार्मिक DATA'!K185="","",'शालादर्पण कार्मिक DATA'!K185) ->  | F186: =IF('शालादर्पण कार्मिक DATA'!B185="","",'शालादर्पण कार्मिक DATA'!B185) ->  | L186: =IF('शालादर्पण कार्मिक DATA'!J185="","",'शालादर्पण कार्मिक DATA'!J185) -> 
A187: =IF(कार्मिक_विवरण[नाम]="","",ROWS($A$2:A184)) ->  | B187: =IF('शालादर्पण कार्मिक DATA'!A186="","",'शालादर्पण कार्मिक DATA'!A186) ->  | C187: =UPPER(IF('शालादर्पण कार्मिक DATA'!F186="","",'शालादर्पण कार्मिक DATA'!F186)) ->  | D187: =IF('शालादर्पण कार्मिक DATA'!E186="","",'शालादर्पण कार्मिक DATA'!E186) ->  | E187: =IF('शालादर्पण कार्मिक DATA'!K186="","",'शालादर्पण कार्मिक DATA'!K186) ->  | F187: =IF('शालादर्पण कार्मिक DATA'!B186="","",'शालादर्पण कार्मिक DATA'!B186) ->  | L187: =IF('शालादर्पण कार्मिक DATA'!J186="","",'शालादर्पण कार्मिक DATA'!J186) -> 
A188: =IF(कार्मिक_विवरण[नाम]="","",ROWS($A$2:A185)) ->  | B188: =IF('शालादर्पण कार्मिक DATA'!A187="","",'शालादर्पण कार्मिक DATA'!A187) ->  | C188: =UPPER(IF('शालादर्पण कार्मिक DATA'!F187="","",'शालादर्पण कार्मिक DATA'!F187)) ->  | D188: =IF('शालादर्पण कार्मिक DATA'!E187="","",'शालादर्पण कार्मिक DATA'!E187) ->  | E188: =IF('शालादर्पण कार्मिक DATA'!K187="","",'शालादर्पण कार्मिक DATA'!K187) ->  | F188: =IF('शालादर्पण कार्मिक DATA'!B187="","",'शालादर्पण कार्मिक DATA'!B187) ->  | L188: =IF('शालादर्पण कार्मिक DATA'!J187="","",'शालादर्पण कार्मिक DATA'!J187) -> 
A189: =IF(कार्मिक_विवरण[नाम]="","",ROWS($A$2:A186)) ->  | B189: =IF('शालादर्पण कार्मिक DATA'!A188="","",'शालादर्पण कार्मिक DATA'!A188) ->  | C189: =UPPER(IF('शालादर्पण कार्मिक DATA'!F188="","",'शालादर्पण कार्मिक DATA'!F188)) ->  | D189: =IF('शालादर्पण कार्मिक DATA'!E188="","",'शालादर्पण कार्मिक DATA'!E188) ->  | E189: =IF('शालादर्पण कार्मिक DATA'!K188="","",'शालादर्पण कार्मिक DATA'!K188) ->  | F189: =IF('शालादर्पण कार्मिक DATA'!B188="","",'शालादर्पण कार्मिक DATA'!B188) ->  | L189: =IF('शालादर्पण कार्मिक DATA'!J188="","",'शालादर्पण कार्मिक DATA'!J188) -> 
A190: =IF(कार्मिक_विवरण[नाम]="","",ROWS($A$2:A187)) ->  | B190: =IF('शालादर्पण कार्मिक DATA'!A189="","",'शालादर्पण कार्मिक DATA'!A189) ->  | C190: =UPPER(IF('शालादर्पण कार्मिक DATA'!F189="","",'शालादर्पण कार्मिक DATA'!F189)) ->  | D190: =IF('शालादर्पण कार्मिक DATA'!E189="","",'शालादर्पण कार्मिक DATA'!E189) ->  | E190: =IF('शालादर्पण कार्मिक DATA'!K189="","",'शालादर्पण कार्मिक DATA'!K189) ->  | F190: =IF('शालादर्पण कार्मिक DATA'!B189="","",'शालादर्पण कार्मिक DATA'!B189) ->  | L190: =IF('शालादर्पण कार्मिक DATA'!J189="","",'शालादर्पण कार्मिक DATA'!J189) -> 
A191: =IF(कार्मिक_विवरण[नाम]="","",ROWS($A$2:A188)) ->  | B191: =IF('शालादर्पण कार्मिक DATA'!A190="","",'शालादर्पण कार्मिक DATA'!A190) ->  | C191: =UPPER(IF('शालादर्पण कार्मिक DATA'!F190="","",'शालादर्पण कार्मिक DATA'!F190)) ->  | D191: =IF('शालादर्पण कार्मिक DATA'!E190="","",'शालादर्पण कार्मिक DATA'!E190) ->  | E191: =IF('शालादर्पण कार्मिक DATA'!K190="","",'शालादर्पण कार्मिक DATA'!K190) ->  | F191: =IF('शालादर्पण कार्मिक DATA'!B190="","",'शालादर्पण कार्मिक DATA'!B190) ->  | L191: =IF('शालादर्पण कार्मिक DATA'!J190="","",'शालादर्पण कार्मिक DATA'!J190) -> 
A192: =IF(कार्मिक_विवरण[नाम]="","",ROWS($A$2:A189)) ->  | B192: =IF('शालादर्पण कार्मिक DATA'!A191="","",'शालादर्पण कार्मिक DATA'!A191) ->  | C192: =UPPER(IF('शालादर्पण कार्मिक DATA'!F191="","",'शालादर्पण कार्मिक DATA'!F191)) ->  | D192: =IF('शालादर्पण कार्मिक DATA'!E191="","",'शालादर्पण कार्मिक DATA'!E191) ->  | E192: =IF('शालादर्पण कार्मिक DATA'!K191="","",'शालादर्पण कार्मिक DATA'!K191) ->  | F192: =IF('शालादर्पण कार्मिक DATA'!B191="","",'शालादर्पण कार्मिक DATA'!B191) ->  | L192: =IF('शालादर्पण कार्मिक DATA'!J191="","",'शालादर्पण कार्मिक DATA'!J191) -> 
A193: =IF(कार्मिक_विवरण[नाम]="","",ROWS($A$2:A190)) ->  | B193: =IF('शालादर्पण कार्मिक DATA'!A192="","",'शालादर्पण कार्मिक DATA'!A192) ->  | C193: =UPPER(IF('शालादर्पण कार्मिक DATA'!F192="","",'शालादर्पण कार्मिक DATA'!F192)) ->  | D193: =IF('शालादर्पण कार्मिक DATA'!E192="","",'शालादर्पण कार्मिक DATA'!E192) ->  | E193: =IF('शालादर्पण कार्मिक DATA'!K192="","",'शालादर्पण कार्मिक DATA'!K192) ->  | F193: =IF('शालादर्पण कार्मिक DATA'!B192="","",'शालादर्पण कार्मिक DATA'!B192) ->  | L193: =IF('शालादर्पण कार्मिक DATA'!J192="","",'शालादर्पण कार्मिक DATA'!J192) -> 
A194: =IF(कार्मिक_विवरण[नाम]="","",ROWS($A$2:A191)) ->  | B194: =IF('शालादर्पण कार्मिक DATA'!A193="","",'शालादर्पण कार्मिक DATA'!A193) ->  | C194: =UPPER(IF('शालादर्पण कार्मिक DATA'!F193="","",'शालादर्पण कार्मिक DATA'!F193)) ->  | D194: =IF('शालादर्पण कार्मिक DATA'!E193="","",'शालादर्पण कार्मिक DATA'!E193) ->  | E194: =IF('शालादर्पण कार्मिक DATA'!K193="","",'शालादर्पण कार्मिक DATA'!K193) ->  | F194: =IF('शालादर्पण कार्मिक DATA'!B193="","",'शालादर्पण कार्मिक DATA'!B193) ->  | L194: =IF('शालादर्पण कार्मिक DATA'!J193="","",'शालादर्पण कार्मिक DATA'!J193) -> 
A195: =IF(कार्मिक_विवरण[नाम]="","",ROWS($A$2:A192)) ->  | B195: =IF('शालादर्पण कार्मिक DATA'!A194="","",'शालादर्पण कार्मिक DATA'!A194) ->  | C195: =UPPER(IF('शालादर्पण कार्मिक DATA'!F194="","",'शालादर्पण कार्मिक DATA'!F194)) ->  | D195: =IF('शालादर्पण कार्मिक DATA'!E194="","",'शालादर्पण कार्मिक DATA'!E194) ->  | E195: =IF('शालादर्पण कार्मिक DATA'!K194="","",'शालादर्पण कार्मिक DATA'!K194) ->  | F195: =IF('शालादर्पण कार्मिक DATA'!B194="","",'शालादर्पण कार्मिक DATA'!B194) ->  | L195: =IF('शालादर्पण कार्मिक DATA'!J194="","",'शालादर्पण कार्मिक DATA'!J194) -> 
A196: =IF(कार्मिक_विवरण[नाम]="","",ROWS($A$2:A193)) ->  | B196: =IF('शालादर्पण कार्मिक DATA'!A195="","",'शालादर्पण कार्मिक DATA'!A195) ->  | C196: =UPPER(IF('शालादर्पण कार्मिक DATA'!F195="","",'शालादर्पण कार्मिक DATA'!F195)) ->  | D196: =IF('शालादर्पण कार्मिक DATA'!E195="","",'शालादर्पण कार्मिक DATA'!E195) ->  | E196: =IF('शालादर्पण कार्मिक DATA'!K195="","",'शालादर्पण कार्मिक DATA'!K195) ->  | F196: =IF('शालादर्पण कार्मिक DATA'!B195="","",'शालादर्पण कार्मिक DATA'!B195) ->  | L196: =IF('शालादर्पण कार्मिक DATA'!J195="","",'शालादर्पण कार्मिक DATA'!J195) -> 
A197: =IF(कार्मिक_विवरण[नाम]="","",ROWS($A$2:A194)) ->  | B197: =IF('शालादर्पण कार्मिक DATA'!A196="","",'शालादर्पण कार्मिक DATA'!A196) ->  | C197: =UPPER(IF('शालादर्पण कार्मिक DATA'!F196="","",'शालादर्पण कार्मिक DATA'!F196)) ->  | D197: =IF('शालादर्पण कार्मिक DATA'!E196="","",'शालादर्पण कार्मिक DATA'!E196) ->  | E197: =IF('शालादर्पण कार्मिक DATA'!K196="","",'शालादर्पण कार्मिक DATA'!K196) ->  | F197: =IF('शालादर्पण कार्मिक DATA'!B196="","",'शालादर्पण कार्मिक DATA'!B196) ->  | L197: =IF('शालादर्पण कार्मिक DATA'!J196="","",'शालादर्पण कार्मिक DATA'!J196) -> 
A198: =IF(कार्मिक_विवरण[नाम]="","",ROWS($A$2:A195)) ->  | B198: =IF('शालादर्पण कार्मिक DATA'!A197="","",'शालादर्पण कार्मिक DATA'!A197) ->  | C198: =UPPER(IF('शालादर्पण कार्मिक DATA'!F197="","",'शालादर्पण कार्मिक DATA'!F197)) ->  | D198: =IF('शालादर्पण कार्मिक DATA'!E197="","",'शालादर्पण कार्मिक DATA'!E197) ->  | E198: =IF('शालादर्पण कार्मिक DATA'!K197="","",'शालादर्पण कार्मिक DATA'!K197) ->  | F198: =IF('शालादर्पण कार्मिक DATA'!B197="","",'शालादर्पण कार्मिक DATA'!B197) ->  | L198: =IF('शालादर्पण कार्मिक DATA'!J197="","",'शालादर्पण कार्मिक DATA'!J197) -> 
A199: =IF(कार्मिक_विवरण[नाम]="","",ROWS($A$2:A196)) ->  | B199: =IF('शालादर्पण कार्मिक DATA'!A198="","",'शालादर्पण कार्मिक DATA'!A198) ->  | C199: =UPPER(IF('शालादर्पण कार्मिक DATA'!F198="","",'शालादर्पण कार्मिक DATA'!F198)) ->  | D199: =IF('शालादर्पण कार्मिक DATA'!E198="","",'शालादर्पण कार्मिक DATA'!E198) ->  | E199: =IF('शालादर्पण कार्मिक DATA'!K198="","",'शालादर्पण कार्मिक DATA'!K198) ->  | F199: =IF('शालादर्पण कार्मिक DATA'!B198="","",'शालादर्पण कार्मिक DATA'!B198) ->  | L199: =IF('शालादर्पण कार्मिक DATA'!J198="","",'शालादर्पण कार्मिक DATA'!J198) -> 
A200: =IF(कार्मिक_विवरण[नाम]="","",ROWS($A$2:A197)) ->  | B200: =IF('शालादर्पण कार्मिक DATA'!A199="","",'शालादर्पण कार्मिक DATA'!A199) ->  | C200: =UPPER(IF('शालादर्पण कार्मिक DATA'!F199="","",'शालादर्पण कार्मिक DATA'!F199)) ->  | D200: =IF('शालादर्पण कार्मिक DATA'!E199="","",'शालादर्पण कार्मिक DATA'!E199) ->  | E200: =IF('शालादर्पण कार्मिक DATA'!K199="","",'शालादर्पण कार्मिक DATA'!K199) ->  | F200: =IF('शालादर्पण कार्मिक DATA'!B199="","",'शालादर्पण कार्मिक DATA'!B199) ->  | L200: =IF('शालादर्पण कार्मिक DATA'!J199="","",'शालादर्पण कार्मिक DATA'!J199) -> 
... 100 more rows

Sheet बिल और T.V.न.
A1: MADE BY:-भागीरथ मल कलवानियाँ कोलिया MOB. NO 982879204
A2: ='कार्मिक विवरण'!A2 -> राजकीय उच्च माध्यमिक विद्यालय डसाणा खुर्द,मौलासर,नागौर
A3: BILL NO. AND TV NO.DETAIL
A4: क्र.सं. | B4: माह का नाम | C4: बिल नं. | D4: DATE | E4: टी.वी. नं. | F4: DATE
A5: 1 | B5: APR | C5: 3 | D5: 2023-05-07 | E5: 15843 | F5: 2023-05-13
A6: 2 | B6: MAY | C6: 9 | D6: 2023-05-08 | E6: 22151 | F6: 2023-05-14
A7: 3 | B7: JUN | C7: 11 | D7: 2023-05-09 | E7: 33751 | F7: 2023-05-15
A8: 4 | B8: JUL | C8: 17 | D8: 2023-05-10 | E8: 45857 | F8: 2023-05-16
A9: 5 | B9: AUG | C9: 20 | D9: 2023-05-11 | E9: 54785 | F9: 2023-05-17
A10: 6 | B10: SEP | C10: 22 | D10: 2023-05-12 | E10: 65093 | F10: 2023-05-18
A11: 7 | B11: OCT | C11: 27 | D11: 2023-05-13 | E11: 74203 | F11: 2023-05-19
A12: 8 | B12: NOV | C12: 31 | D12: 2023-05-14 | E12: 87547 | F12: 2023-05-20
A13: 9 | B13: DEC | C13: 33 | D13: 2023-05-15 | E13: 98298 | F13: 2023-05-21
A14: 10 | B14: JAN | C14: 36 | D14: 2023-05-16 | E14: 108163 | F14: 2023-05-22
A15: 11 | B15: FEB | C15: 41 | D15: 2023-05-17 | E15: 123382 | F15: 2023-05-23
A16: 12 | B16: MAR | D16: 2023-05-18 | F16: 2023-05-24
A17: 12 | D17: 2023-05-19 | F17: 2023-05-25
A18: 12 | D18: 2023-05-20 | F18: 2023-05-26
A19: 12 | D19: 2023-05-21 | F19: 2023-05-27
A20: 12 | D20: 2023-05-22 | F20: 2023-05-28
A21: 12 | D21: 2023-05-23 | F21: 2023-05-29
A22: 12 | F22: 2023-05-30
A23: 12 | F23: 2023-05-31
A24: 12 | F24: 2023-06-01
A25: 12 | F25: 2023-06-02
A26: 12 | F26: 2023-06-03

Sheet भते
A1: MADE BY:-भागीरथ मल कलवानियाँ कोलिया MOB. NO 982879204
A2: ='कार्मिक विवरण'!A2 -> राजकीय उच्च माध्यमिक विद्यालय डसाणा खुर्द,मौलासर,नागौर
A3: ALLOWANCES DETAIL
A4: क्र.सं. | B4: नाम | C4: APRIL MONTH मूल वेतन | D4: अवकाश वेतन | E4: विशेष वेतन | F4: विकलांग भत्ता | G4: शहरी भत्ता | H4: अन्य 1 | I4: अन्य 2 | J4: अन्य 3 | K4: योग 1
A5: =IF(भते[नाम]="","",ROWS($A$2:A2)) -> 1 | B5: =IF('शालादर्पण कार्मिक DATA'!A4="","",'शालादर्पण कार्मिक DATA'!A4) -> BHAGIRATH MAL | C5: 69200 | K5: =SUM(C5:J5) -> 69200
A6: =IF(भते[नाम]="","",ROWS($A$2:A3)) -> 2 | B6: =IF('शालादर्पण कार्मिक DATA'!A5="","",'शालादर्पण कार्मिक DATA'!A5) -> B | C6: 67200 | K6: =SUM(C6:J6) -> 67200
A7: =IF(भते[नाम]="","",ROWS($A$2:A4)) -> 3 | B7: =IF('शालादर्पण कार्मिक DATA'!A6="","",'शालादर्पण कार्मिक DATA'!A6) -> C | C7: 26500 | K7: 26500
A8: =IF(भते[नाम]="","",ROWS($A$2:A5)) -> 4 | B8: =IF('शालादर्पण कार्मिक DATA'!A7="","",'शालादर्पण कार्मिक DATA'!A7) -> D | C8: 41300 | K8: 41300
A9: =IF(भते[नाम]="","",ROWS($A$2:A6)) -> 5 | B9: =IF('शालादर्पण कार्मिक DATA'!A8="","",'शालादर्पण कार्मिक DATA'!A8) -> E | C9: 61300 | K9: 61300
A10: =IF(भते[नाम]="","",ROWS($A$2:A7)) -> 6 | B10: =IF('शालादर्पण कार्मिक DATA'!A9="","",'शालादर्पण कार्मिक DATA'!A9) -> F | C10: 45100 | K10: 45100
A11: =IF(भते[नाम]="","",ROWS($A$2:A8)) -> 7 | B11: =IF('शालादर्पण कार्मिक DATA'!A10="","",'शालादर्पण कार्मिक DATA'!A10) -> G | C11: 18200 | H11: 150 | K11: 18350
A12: =IF(भते[नाम]="","",ROWS($A$2:A9)) -> 8 | B12: =IF('शालादर्पण कार्मिक DATA'!A11="","",'शालादर्पण कार्मिक DATA'!A11) -> H | C12: 35800 | K12: 35800
A13: =IF(भते[नाम]="","",ROWS($A$2:A10)) -> 9 | B13: =IF('शालादर्पण कार्मिक DATA'!A12="","",'शालादर्पण कार्मिक DATA'!A12) -> I | C13: 39100 | K13: 39100
A14: =IF(भते[नाम]="","",ROWS($A$2:A11)) -> 10 | B14: =IF('शालादर्पण कार्मिक DATA'!A13="","",'शालादर्पण कार्मिक DATA'!A13) -> J | C14: 42500 | K14: 42500
A15: =IF(भते[नाम]="","",ROWS($A$2:A12)) -> 11 | B15: =IF('शालादर्पण कार्मिक DATA'!A14="","",'शालादर्पण कार्मिक DATA'!A14) -> K | C15: 43800 | K15: 43800
A16: =IF(भते[नाम]="","",ROWS($A$2:A13)) -> 12 | B16: =IF('शालादर्पण कार्मिक DATA'!A15="","",'शालादर्पण कार्मिक DATA'!A15) -> L | C16: 14600 | K16: 14600
A17: =IF(भते[नाम]="","",ROWS($A$2:A14)) -> 13 | B17: =IF('शालादर्पण कार्मिक DATA'!A16="","",'शालादर्पण कार्मिक DATA'!A16) -> M | K17: 0
A18: =IF(भते[नाम]="","",ROWS($A$2:A15)) -> 14 | B18: =IF('शालादर्पण कार्मिक DATA'!A17="","",'शालादर्पण कार्मिक DATA'!A17) -> N | K18: 0
A19: =IF(भते[नाम]="","",ROWS($A$2:A16)) -> 15 | B19: =IF('शालादर्पण कार्मिक DATA'!A18="","",'शालादर्पण कार्मिक DATA'!A18) -> O | K19: 0
A20: =IF(भते[नाम]="","",ROWS($A$2:A17)) -> 16 | B20: =IF('शालादर्पण कार्मिक DATA'!A19="","",'शालादर्पण कार्मिक DATA'!A19) -> P | K20: 0
A21: =IF(भते[नाम]="","",ROWS($A$2:A18)) -> 17 | B21: =IF('शालादर्पण कार्मिक DATA'!A20="","",'शालादर्पण कार्मिक DATA'!A20) -> Q | K21: 0
A22: =IF(भते[नाम]="","",ROWS($A$2:A19)) -> 18 | B22: =IF('शालादर्पण कार्मिक DATA'!A21="","",'शालादर्पण कार्मिक DATA'!A21) -> R | K22: 0
A23: =IF(भते[नाम]="","",ROWS($A$2:A20)) -> 19 | B23: =IF('शालादर्पण कार्मिक DATA'!A22="","",'शालादर्पण कार्मिक DATA'!A22) -> S | K23: 0
A24: =IF(भते[नाम]="","",ROWS($A$2:A21)) -> 20 | B24: =IF('शालादर्पण कार्मिक DATA'!A23="","",'शालादर्पण कार्मिक DATA'!A23) -> T | K24: 0
A25: =IF(भते[नाम]="","",ROWS($A$2:A22)) -> 21 | B25: =IF('शालादर्पण कार्मिक DATA'!A24="","",'शालादर्पण कार्मिक DATA'!A24) -> U | K25: 0
A26: =IF(भते[नाम]="","",ROWS($A$2:A23)) -> 22 | B26: =IF('शालादर्पण कार्मिक DATA'!A25="","",'शालादर्पण कार्मिक DATA'!A25) -> V | K26: 0
A27: =IF(भते[नाम]="","",ROWS($A$2:A24)) -> 23 | B27: =IF('शालादर्पण कार्मिक DATA'!A26="","",'शालादर्पण कार्मिक DATA'!A26) -> W | K27: 0
A28: =IF(भते[नाम]="","",ROWS($A$2:A25)) -> 24 | B28: =IF('शालादर्पण कार्मिक DATA'!A27="","",'शालादर्पण कार्मिक DATA'!A27) -> X | K28: 0
A29: =IF(भते[नाम]="","",ROWS($A$2:A26)) -> 25 | B29: =IF('शालादर्पण कार्मिक DATA'!A28="","",'शालादर्पण कार्मिक DATA'!A28) -> Z | K29: 0
A30: =IF(भते[नाम]="","",ROWS($A$2:A27)) ->  | B30: =IF('शालादर्पण कार्मिक DATA'!A29="","",'शालादर्पण कार्मिक DATA'!A29) ->  | K30: 0
A31: =IF(भते[नाम]="","",ROWS($A$2:A28)) ->  | B31: =IF('शालादर्पण कार्मिक DATA'!A30="","",'शालादर्पण कार्मिक DATA'!A30) ->  | K31: 0
A32: =IF(भते[नाम]="","",ROWS($A$2:A29)) ->  | B32: =IF('शालादर्पण कार्मिक DATA'!A31="","",'शालादर्पण कार्मिक DATA'!A31) ->  | K32: 0
A33: =IF(भते[नाम]="","",ROWS($A$2:A30)) ->  | B33: =IF('शालादर्पण कार्मिक DATA'!A32="","",'शालादर्पण कार्मिक DATA'!A32) ->  | K33: 0
A34: =IF(भते[नाम]="","",ROWS($A$2:A31)) ->  | B34: =IF('शालादर्पण कार्मिक DATA'!A33="","",'शालादर्पण कार्मिक DATA'!A33) ->  | K34: 0
A35: =IF(भते[नाम]="","",ROWS($A$2:A32)) ->  | B35: =IF('शालादर्पण कार्मिक DATA'!A34="","",'शालादर्पण कार्मिक DATA'!A34) ->  | K35: 0
A36: =IF(भते[नाम]="","",ROWS($A$2:A33)) ->  | B36: =IF('शालादर्पण कार्मिक DATA'!A35="","",'शालादर्पण कार्मिक DATA'!A35) ->  | K36: 0
A37: =IF(भते[नाम]="","",ROWS($A$2:A34)) ->  | B37: =IF('शालादर्पण कार्मिक DATA'!A36="","",'शालादर्पण कार्मिक DATA'!A36) ->  | K37: 0
A38: =IF(भते[नाम]="","",ROWS($A$2:A35)) ->  | B38: =IF('शालादर्पण कार्मिक DATA'!A37="","",'शालादर्पण कार्मिक DATA'!A37) ->  | K38: 0
A39: =IF(भते[नाम]="","",ROWS($A$2:A36)) ->  | B39: =IF('शालादर्पण कार्मिक DATA'!A38="","",'शालादर्पण कार्मिक DATA'!A38) ->  | K39: 0
A40: =IF(भते[नाम]="","",ROWS($A$2:A37)) ->  | B40: =IF('शालादर्पण कार्मिक DATA'!A39="","",'शालादर्पण कार्मिक DATA'!A39) ->  | K40: 0
A41: =IF(भते[नाम]="","",ROWS($A$2:A38)) ->  | B41: =IF('शालादर्पण कार्मिक DATA'!A40="","",'शालादर्पण कार्मिक DATA'!A40) ->  | K41: 0
A42: =IF(भते[नाम]="","",ROWS($A$2:A39)) ->  | B42: =IF('शालादर्पण कार्मिक DATA'!A41="","",'शालादर्पण कार्मिक DATA'!A41) ->  | K42: 0
A43: =IF(भते[नाम]="","",ROWS($A$2:A40)) ->  | B43: =IF('शालादर्पण कार्मिक DATA'!A42="","",'शालादर्पण कार्मिक DATA'!A42) ->  | K43: 0
A44: =IF(भते[नाम]="","",ROWS($A$2:A41)) ->  | B44: =IF('शालादर्पण कार्मिक DATA'!A43="","",'शालादर्पण कार्मिक DATA'!A43) ->  | K44: 0
A45: =IF(भते[नाम]="","",ROWS($A$2:A42)) ->  | B45: =IF('शालादर्पण कार्मिक DATA'!A44="","",'शालादर्पण कार्मिक DATA'!A44) ->  | K45: 0
A46: =IF(भते[नाम]="","",ROWS($A$2:A43)) ->  | B46: =IF('शालादर्पण कार्मिक DATA'!A45="","",'शालादर्पण कार्मिक DATA'!A45) ->  | K46: 0
A47: =IF(भते[नाम]="","",ROWS($A$2:A44)) ->  | B47: =IF('शालादर्पण कार्मिक DATA'!A46="","",'शालादर्पण कार्मिक DATA'!A46) ->  | K47: 0
A48: =IF(भते[नाम]="","",ROWS($A$2:A45)) ->  | B48: =IF('शालादर्पण कार्मिक DATA'!A47="","",'शालादर्पण कार्मिक DATA'!A47) ->  | K48: 0
A49: =IF(भते[नाम]="","",ROWS($A$2:A46)) ->  | B49: =IF('शालादर्पण कार्मिक DATA'!A48="","",'शालादर्पण कार्मिक DATA'!A48) ->  | K49: 0
A50: =IF(भते[नाम]="","",ROWS($A$2:A47)) ->  | B50: =IF('शालादर्पण कार्मिक DATA'!A49="","",'शालादर्पण कार्मिक DATA'!A49) ->  | K50: 0
A51: =IF(भते[नाम]="","",ROWS($A$2:A48)) ->  | B51: =IF('शालादर्पण कार्मिक DATA'!A50="","",'शालादर्पण कार्मिक DATA'!A50) ->  | K51: 0
A52: =IF(भते[नाम]="","",ROWS($A$2:A49)) ->  | B52: =IF('शालादर्पण कार्मिक DATA'!A51="","",'शालादर्पण कार्मिक DATA'!A51) ->  | K52: 0
A53: =IF(भते[नाम]="","",ROWS($A$2:A50)) ->  | B53: =IF('शालादर्पण कार्मिक DATA'!A52="","",'शालादर्पण कार्मिक DATA'!A52) ->  | K53: 0
A54: =IF(भते[नाम]="","",ROWS($A$2:A51)) ->  | B54: =IF('शालादर्पण कार्मिक DATA'!A53="","",'शालादर्पण कार्मिक DATA'!A53) ->  | K54: 0
A55: =IF(भते[नाम]="","",ROWS($A$2:A52)) ->  | B55: =IF('शालादर्पण कार्मिक DATA'!A54="","",'शालादर्पण कार्मिक DATA'!A54) ->  | K55: 0
A56: =IF(भते[नाम]="","",ROWS($A$2:A53)) ->  | B56: =IF('शालादर्पण कार्मिक DATA'!A55="","",'शालादर्पण कार्मिक DATA'!A55) ->  | K56: 0
A57: =IF(भते[नाम]="","",ROWS($A$2:A54)) ->  | B57: =IF('शालादर्पण कार्मिक DATA'!A56="","",'शालादर्पण कार्मिक DATA'!A56) ->  | K57: 0
A58: =IF(भते[नाम]="","",ROWS($A$2:A55)) ->  | B58: =IF('शालादर्पण कार्मिक DATA'!A57="","",'शालादर्पण कार्मिक DATA'!A57) ->  | K58: 0
A59: =IF(भते[नाम]="","",ROWS($A$2:A56)) ->  | B59: =IF('शालादर्पण कार्मिक DATA'!A58="","",'शालादर्पण कार्मिक DATA'!A58) ->  | K59: 0
A60: =IF(भते[नाम]="","",ROWS($A$2:A57)) ->  | B60: =IF('शालादर्पण कार्मिक DATA'!A59="","",'शालादर्पण कार्मिक DATA'!A59) ->  | K60: 0
A61: =IF(भते[नाम]="","",ROWS($A$2:A58)) ->  | B61: =IF('शालादर्पण कार्मिक DATA'!A60="","",'शालादर्पण कार्मिक DATA'!A60) ->  | K61: 0
A62: =IF(भते[नाम]="","",ROWS($A$2:A59)) ->  | B62: =IF('शालादर्पण कार्मिक DATA'!A61="","",'शालादर्पण कार्मिक DATA'!A61) ->  | K62: 0
A63: =IF(भते[नाम]="","",ROWS($A$2:A60)) ->  | B63: =IF('शालादर्पण कार्मिक DATA'!A62="","",'शालादर्पण कार्मिक DATA'!A62) ->  | K63: 0
A64: =IF(भते[नाम]="","",ROWS($A$2:A61)) ->  | B64: =IF('शालादर्पण कार्मिक DATA'!A63="","",'शालादर्पण कार्मिक DATA'!A63) ->  | K64: 0
A65: =IF(भते[नाम]="","",ROWS($A$2:A62)) ->  | B65: =IF('शालादर्पण कार्मिक DATA'!A64="","",'शालादर्पण कार्मिक DATA'!A64) ->  | K65: 0
A66: =IF(भते[नाम]="","",ROWS($A$2:A63)) ->  | B66: =IF('शालादर्पण कार्मिक DATA'!A65="","",'शालादर्पण कार्मिक DATA'!A65) ->  | K66: 0
A67: =IF(भते[नाम]="","",ROWS($A$2:A64)) ->  | B67: =IF('शालादर्पण कार्मिक DATA'!A66="","",'शालादर्पण कार्मिक DATA'!A66) ->  | K67: 0
A68: =IF(भते[नाम]="","",ROWS($A$2:A65)) ->  | B68: =IF('शालादर्पण कार्मिक DATA'!A67="","",'शालादर्पण कार्मिक DATA'!A67) ->  | K68: 0
A69: =IF(भते[नाम]="","",ROWS($A$2:A66)) ->  | B69: =IF('शालादर्पण कार्मिक DATA'!A68="","",'शालादर्पण कार्मिक DATA'!A68) ->  | K69: 0
A70: =IF(भते[नाम]="","",ROWS($A$2:A67)) ->  | B70: =IF('शालादर्पण कार्मिक DATA'!A69="","",'शालादर्पण कार्मिक DATA'!A69) ->  | K70: =SUM(C70:J70) -> 0
A71: =IF(भते[नाम]="","",ROWS($A$2:A68)) ->  | B71: =IF('शालादर्पण कार्मिक DATA'!A70="","",'शालादर्पण कार्मिक DATA'!A70) ->  | K71: 0
A72: =IF(भते[नाम]="","",ROWS($A$2:A69)) ->  | B72: =IF('शालादर्पण कार्मिक DATA'!A71="","",'शालादर्पण कार्मिक DATA'!A71) ->  | K72: 0
A73: =IF(भते[नाम]="","",ROWS($A$2:A70)) ->  | B73: =IF('शालादर्पण कार्मिक DATA'!A72="","",'शालादर्पण कार्मिक DATA'!A72) ->  | K73: 0
A74: =IF(भते[नाम]="","",ROWS($A$2:A71)) ->  | B74: =IF('शालादर्पण कार्मिक DATA'!A73="","",'शालादर्पण कार्मिक DATA'!A73) ->  | K74: 0
A75: =IF(भते[नाम]="","",ROWS($A$2:A72)) ->  | B75: =IF('शालादर्पण कार्मिक DATA'!A74="","",'शालादर्पण कार्मिक DATA'!A74) ->  | K75: 0
A76: =IF(भते[नाम]="","",ROWS($A$2:A73)) ->  | B76: =IF('शालादर्पण कार्मिक DATA'!A75="","",'शालादर्पण कार्मिक DATA'!A75) ->  | K76: 0
A77: =IF(भते[नाम]="","",ROWS($A$2:A74)) ->  | B77: =IF('शालादर्पण कार्मिक DATA'!A76="","",'शालादर्पण कार्मिक DATA'!A76) ->  | K77: 0
A78: =IF(भते[नाम]="","",ROWS($A$2:A75)) ->  | B78: =IF('शालादर्पण कार्मिक DATA'!A77="","",'शालादर्पण कार्मिक DATA'!A77) ->  | K78: 0
A79: =IF(भते[नाम]="","",ROWS($A$2:A76)) ->  | B79: =IF('शालादर्पण कार्मिक DATA'!A78="","",'शालादर्पण कार्मिक DATA'!A78) ->  | K79: 0
A80: =IF(भते[नाम]="","",ROWS($A$2:A77)) ->  | B80: =IF('शालादर्पण कार्मिक DATA'!A79="","",'शालादर्पण कार्मिक DATA'!A79) ->  | K80: 0
A81: =IF(भते[नाम]="","",ROWS($A$2:A78)) ->  | B81: =IF('शालादर्पण कार्मिक DATA'!A80="","",'शालादर्पण कार्मिक DATA'!A80) ->  | K81: 0
A82: =IF(भते[नाम]="","",ROWS($A$2:A79)) ->  | B82: =IF('शालादर्पण कार्मिक DATA'!A81="","",'शालादर्पण कार्मिक DATA'!A81) ->  | K82: 0
A83: =IF(भते[नाम]="","",ROWS($A$2:A80)) ->  | B83: =IF('शालादर्पण कार्मिक DATA'!A82="","",'शालादर्पण कार्मिक DATA'!A82) ->  | K83: 0
A84: =IF(भते[नाम]="","",ROWS($A$2:A81)) ->  | B84: =IF('शालादर्पण कार्मिक DATA'!A83="","",'शालादर्पण कार्मिक DATA'!A83) ->  | K84: 0
A85: =IF(भते[नाम]="","",ROWS($A$2:A82)) ->  | B85: =IF('शालादर्पण कार्मिक DATA'!A84="","",'शालादर्पण कार्मिक DATA'!A84) ->  | K85: 0
A86: =IF(भते[नाम]="","",ROWS($A$2:A83)) ->  | B86: =IF('शालादर्पण कार्मिक DATA'!A85="","",'शालादर्पण कार्मिक DATA'!A85) ->  | K86: 0
A87: =IF(भते[नाम]="","",ROWS($A$2:A84)) ->  | B87: =IF('शालादर्पण कार्मिक DATA'!A86="","",'शालादर्पण कार्मिक DATA'!A86) ->  | K87: 0
A88: =IF(भते[नाम]="","",ROWS($A$2:A85)) ->  | B88: =IF('शालादर्पण कार्मिक DATA'!A87="","",'शालादर्पण कार्मिक DATA'!A87) ->  | K88: 0
A89: =IF(भते[नाम]="","",ROWS($A$2:A86)) ->  | B89: =IF('शालादर्पण कार्मिक DATA'!A88="","",'शालादर्पण कार्मिक DATA'!A88) ->  | K89: 0
A90: =IF(भते[नाम]="","",ROWS($A$2:A87)) ->  | B90: =IF('शालादर्पण कार्मिक DATA'!A89="","",'शालादर्पण कार्मिक DATA'!A89) ->  | K90: 0
A91: =IF(भते[नाम]="","",ROWS($A$2:A88)) ->  | B91: =IF('शालादर्पण कार्मिक DATA'!A90="","",'शालादर्पण कार्मिक DATA'!A90) ->  | K91: 0
A92: =IF(भते[नाम]="","",ROWS($A$2:A89)) ->  | B92: =IF('शालादर्पण कार्मिक DATA'!A91="","",'शालादर्पण कार्मिक DATA'!A91) ->  | K92: 0
A93: =IF(भते[नाम]="","",ROWS($A$2:A90)) ->  | B93: =IF('शालादर्पण कार्मिक DATA'!A92="","",'शालादर्पण कार्मिक DATA'!A92) ->  | K93: 0
A94: =IF(भते[नाम]="","",ROWS($A$2:A91)) ->  | B94: =IF('शालादर्पण कार्मिक DATA'!A93="","",'शालादर्पण कार्मिक DATA'!A93) ->  | K94: 0
A95: =IF(भते[नाम]="","",ROWS($A$2:A92)) ->  | B95: =IF('शालादर्पण कार्मिक DATA'!A94="","",'शालादर्पण कार्मिक DATA'!A94) ->  | K95: 0
A96: =IF(भते[नाम]="","",ROWS($A$2:A93)) ->  | B96: =IF('शालादर्पण कार्मिक DATA'!A95="","",'शालादर्पण कार्मिक DATA'!A95) ->  | K96: 0
A97: =IF(भते[नाम]="","",ROWS($A$2:A94)) ->  | B97: =IF('शालादर्पण कार्मिक DATA'!A96="","",'शालादर्पण कार्मिक DATA'!A96) ->  | K97: 0
A98: =IF(भते[नाम]="","",ROWS($A$2:A95)) ->  | B98: =IF('शालादर्पण कार्मिक DATA'!A97="","",'शालादर्पण कार्मिक DATA'!A97) ->  | K98: 0
A99: =IF(भते[नाम]="","",ROWS($A$2:A96)) ->  | B99: =IF('शालादर्पण कार्मिक DATA'!A98="","",'शालादर्पण कार्मिक DATA'!A98) ->  | K99: 0
A100: =IF(भते[नाम]="","",ROWS($A$2:A97)) ->  | B100: =IF('शालादर्पण कार्मिक DATA'!A99="","",'शालादर्पण कार्मिक DATA'!A99) ->  | K100: 0
A101: =IF(भते[नाम]="","",ROWS($A$2:A98)) ->  | B101: =IF('शालादर्पण कार्मिक DATA'!A100="","",'शालादर्पण कार्मिक DATA'!A100) ->  | K101: 0
A102: =IF(भते[नाम]="","",ROWS($A$2:A99)) ->  | B102: =IF('शालादर्पण कार्मिक DATA'!A101="","",'शालादर्पण कार्मिक DATA'!A101) ->  | K102: 0
A103: =IF(भते[नाम]="","",ROWS($A$2:A100)) ->  | B103: =IF('शालादर्पण कार्मिक DATA'!A102="","",'शालादर्पण कार्मिक DATA'!A102) ->  | K103: 0
A104: =IF(भते[नाम]="","",ROWS($A$2:A101)) ->  | B104: =IF('शालादर्पण कार्मिक DATA'!A103="","",'शालादर्पण कार्मिक DATA'!A103) ->  | K104: 0

Sheet कटोतियाँ
A1: MADE BY:-भागीरथ मल कलवानियाँ कोलिया MOB. NO 982879204
A2: ='कार्मिक विवरण'!$A$2 -> राजकीय उच्च माध्यमिक विद्यालय डसाणा खुर्द,मौलासर,नागौर
A3: DEDUCTION DETAIL
A4: क्र.सं. | B4: नाम | C4: GPF/GPF2004 | D4: GPF Loan | E4: SI | F4: SI Loan | G4: ITAX | H4: RPMF/RGHS | I4: LIC | J4: OTHER | K4: GIS | L4: अन्य 1 | M4: अन्य 2 | N4: अन्य 3 | O4: योग 2
A5: =IF(कटोतियाँ[नाम]="","",ROWS($A$2:A2)) -> 1 | B5: =IF('शालादर्पण कार्मिक DATA'!A4="","",'शालादर्पण कार्मिक DATA'!A4) -> BHAGIRATH MAL | C5: 4200 | D5: 0 | E5: 5000 | F5: 0 | G5: 7000 | H5: 875 | I5: 0 | J5: 0 | K5: 0 | L5: 0 | M5: 0 | N5: 0 | O5: =SUM(C5:N5) -> 17075
A6: =IF(कटोतियाँ[नाम]="","",ROWS($A$2:A3)) -> 2 | B6: =IF('शालादर्पण कार्मिक DATA'!A5="","",'शालादर्पण कार्मिक DATA'!A5) -> B | C6: 4200 | D6: 0 | E6: 5000 | F6: 0 | G6: 4000 | H6: 875 | I6: 0 | J6: 0 | K6: 0 | L6: 0 | M6: 0 | N6: 0 | O6: =SUM(C6:N6) -> 14075
A7: =IF(कटोतियाँ[नाम]="","",ROWS($A$2:A4)) -> 3 | B7: =IF('शालादर्पण कार्मिक DATA'!A6="","",'शालादर्पण कार्मिक DATA'!A6) -> C | C7: 0 | D7: 0 | F7: 0 | G7: 0 | H7: 0 | I7: 0 | J7: 0 | K7: 220 | L7: 0 | M7: 0 | N7: 0 | O7: 220
A8: =IF(कटोतियाँ[नाम]="","",ROWS($A$2:A5)) -> 4 | B8: =IF('शालादर्पण कार्मिक DATA'!A7="","",'शालादर्पण कार्मिक DATA'!A7) -> D | E8: 3000 | K8: 220 | O8: 3220
A9: =IF(कटोतियाँ[नाम]="","",ROWS($A$2:A6)) -> 5 | B9: =IF('शालादर्पण कार्मिक DATA'!A8="","",'शालादर्पण कार्मिक DATA'!A8) -> E | C9: 3575 | E9: 3000 | F9: 6000 | G9: 1000 | H9: 875 | I9: 1171 | K9: 220 | O9: 15841
A10: =IF(कटोतियाँ[नाम]="","",ROWS($A$2:A7)) -> 6 | B10: =IF('शालादर्पण कार्मिक DATA'!A9="","",'शालादर्पण कार्मिक DATA'!A9) -> F | E10: 3000 | G10: 500 | O10: 3500
A11: =IF(कटोतियाँ[नाम]="","",ROWS($A$2:A8)) -> 7 | B11: =IF('शालादर्पण कार्मिक DATA'!A10="","",'शालादर्पण कार्मिक DATA'!A10) -> G | E11: 2200 | O11: 2200
A12: =IF(कटोतियाँ[नाम]="","",ROWS($A$2:A9)) -> 8 | B12: =IF('शालादर्पण कार्मिक DATA'!A11="","",'शालादर्पण कार्मिक DATA'!A11) -> H | E12: 3000 | O12: 3000
A13: =IF(कटोतियाँ[नाम]="","",ROWS($A$2:A10)) -> 9 | B13: =IF('शालादर्पण कार्मिक DATA'!A12="","",'शालादर्पण कार्मिक DATA'!A12) -> I | E13: 3000 | O13: 3000
A14: =IF(कटोतियाँ[नाम]="","",ROWS($A$2:A11)) -> 10 | B14: =IF('शालादर्पण कार्मिक DATA'!A13="","",'शालादर्पण कार्मिक DATA'!A13) -> J | E14: 5000 | O14: 5000
A15: =IF(कटोतियाँ[नाम]="","",ROWS($A$2:A12)) -> 11 | B15: =IF('शालादर्पण कार्मिक DATA'!A14="","",'शालादर्पण कार्मिक DATA'!A14) -> K | E15: 5000 | O15: 5000
A16: =IF(कटोतियाँ[नाम]="","",ROWS($A$2:A13)) -> 12 | B16: =IF('शालादर्पण कार्मिक DATA'!A15="","",'शालादर्पण कार्मिक DATA'!A15) -> L | E16: 0 | O16: 0
A17: =IF(कटोतियाँ[नाम]="","",ROWS($A$2:A14)) -> 13 | B17: =IF('शालादर्पण कार्मिक DATA'!A16="","",'शालादर्पण कार्मिक DATA'!A16) -> M | O17: 0
A18: =IF(कटोतियाँ[नाम]="","",ROWS($A$2:A15)) -> 14 | B18: =IF('शालादर्पण कार्मिक DATA'!A17="","",'शालादर्पण कार्मिक DATA'!A17) -> N | O18: 0
A19: =IF(कटोतियाँ[नाम]="","",ROWS($A$2:A16)) -> 15 | B19: =IF('शालादर्पण कार्मिक DATA'!A18="","",'शालादर्पण कार्मिक DATA'!A18) -> O | O19: 0
A20: =IF(कटोतियाँ[नाम]="","",ROWS($A$2:A17)) -> 16 | B20: =IF('शालादर्पण कार्मिक DATA'!A19="","",'शालादर्पण कार्मिक DATA'!A19) -> P | O20: 0
A21: =IF(कटोतियाँ[नाम]="","",ROWS($A$2:A18)) -> 17 | B21: =IF('शालादर्पण कार्मिक DATA'!A20="","",'शालादर्पण कार्मिक DATA'!A20) -> Q | O21: 0
A22: =IF(कटोतियाँ[नाम]="","",ROWS($A$2:A19)) -> 18 | B22: =IF('शालादर्पण कार्मिक DATA'!A21="","",'शालादर्पण कार्मिक DATA'!A21) -> R | O22: 0
A23: =IF(कटोतियाँ[नाम]="","",ROWS($A$2:A20)) -> 19 | B23: =IF('शालादर्पण कार्मिक DATA'!A22="","",'शालादर्पण कार्मिक DATA'!A22) -> S | O23: 0
A24: =IF(कटोतियाँ[नाम]="","",ROWS($A$2:A21)) -> 20 | B24: =IF('शालादर्पण कार्मिक DATA'!A23="","",'शालादर्पण कार्मिक DATA'!A23) -> T | O24: 0
A25: =IF(कटोतियाँ[नाम]="","",ROWS($A$2:A22)) -> 21 | B25: =IF('शालादर्पण कार्मिक DATA'!A24="","",'शालादर्पण कार्मिक DATA'!A24) -> U | O25: 0
A26: =IF(कटोतियाँ[नाम]="","",ROWS($A$2:A23)) -> 22 | B26: =IF('शालादर्पण कार्मिक DATA'!A25="","",'शालादर्पण कार्मिक DATA'!A25) -> V | O26: 0
A27: =IF(कटोतियाँ[नाम]="","",ROWS($A$2:A24)) -> 23 | B27: =IF('शालादर्पण कार्मिक DATA'!A26="","",'शालादर्पण कार्मिक DATA'!A26) -> W | O27: 0
A28: =IF(कटोतियाँ[नाम]="","",ROWS($A$2:A25)) -> 24 | B28: =IF('शालादर्पण कार्मिक DATA'!A27="","",'शालादर्पण कार्मिक DATA'!A27) -> X | O28: 0
A29: =IF(कटोतियाँ[नाम]="","",ROWS($A$2:A26)) -> 25 | B29: =IF('शालादर्पण कार्मिक DATA'!A28="","",'शालादर्पण कार्मिक DATA'!A28) -> Z | O29: 0
A30: =IF(कटोतियाँ[नाम]="","",ROWS($A$2:A27)) ->  | B30: =IF('शालादर्पण कार्मिक DATA'!A29="","",'शालादर्पण कार्मिक DATA'!A29) ->  | O30: 0
A31: =IF(कटोतियाँ[नाम]="","",ROWS($A$2:A28)) ->  | B31: =IF('शालादर्पण कार्मिक DATA'!A30="","",'शालादर्पण कार्मिक DATA'!A30) ->  | O31: 0
A32: =IF(कटोतियाँ[नाम]="","",ROWS($A$2:A29)) ->  | B32: =IF('शालादर्पण कार्मिक DATA'!A31="","",'शालादर्पण कार्मिक DATA'!A31) ->  | O32: 0
A33: =IF(कटोतियाँ[नाम]="","",ROWS($A$2:A30)) ->  | B33: =IF('शालादर्पण कार्मिक DATA'!A32="","",'शालादर्पण कार्मिक DATA'!A32) ->  | O33: 0
A34: =IF(कटोतियाँ[नाम]="","",ROWS($A$2:A31)) ->  | B34: =IF('शालादर्पण कार्मिक DATA'!A33="","",'शालादर्पण कार्मिक DATA'!A33) ->  | O34: 0
A35: =IF(कटोतियाँ[नाम]="","",ROWS($A$2:A32)) ->  | B35: =IF('शालादर्पण कार्मिक DATA'!A34="","",'शालादर्पण कार्मिक DATA'!A34) ->  | O35: 0
A36: =IF(कटोतियाँ[नाम]="","",ROWS($A$2:A33)) ->  | B36: =IF('शालादर्पण कार्मिक DATA'!A35="","",'शालादर्पण कार्मिक DATA'!A35) ->  | O36: 0
A37: =IF(कटोतियाँ[नाम]="","",ROWS($A$2:A34)) ->  | B37: =IF('शालादर्पण कार्मिक DATA'!A36="","",'शालादर्पण कार्मिक DATA'!A36) ->  | O37: 0
A38: =IF(कटोतियाँ[नाम]="","",ROWS($A$2:A35)) ->  | B38: =IF('शालादर्पण कार्मिक DATA'!A37="","",'शालादर्पण कार्मिक DATA'!A37) ->  | O38: 0
A39: =IF(कटोतियाँ[नाम]="","",ROWS($A$2:A36)) ->  | B39: =IF('शालादर्पण कार्मिक DATA'!A38="","",'शालादर्पण कार्मिक DATA'!A38) ->  | O39: 0
A40: =IF(कटोतियाँ[नाम]="","",ROWS($A$2:A37)) ->  | B40: =IF('शालादर्पण कार्मिक DATA'!A39="","",'शालादर्पण कार्मिक DATA'!A39) ->  | O40: 0
A41: =IF(कटोतियाँ[नाम]="","",ROWS($A$2:A38)) ->  | B41: =IF('शालादर्पण कार्मिक DATA'!A40="","",'शालादर्पण कार्मिक DATA'!A40) ->  | O41: 0
A42: =IF(कटोतियाँ[नाम]="","",ROWS($A$2:A39)) ->  | B42: =IF('शालादर्पण कार्मिक DATA'!A41="","",'शालादर्पण कार्मिक DATA'!A41) ->  | O42: 0
A43: =IF(कटोतियाँ[नाम]="","",ROWS($A$2:A40)) ->  | B43: =IF('शालादर्पण कार्मिक DATA'!A42="","",'शालादर्पण कार्मिक DATA'!A42) ->  | O43: 0
A44: =IF(कटोतियाँ[नाम]="","",ROWS($A$2:A41)) ->  | B44: =IF('शालादर्पण कार्मिक DATA'!A43="","",'शालादर्पण कार्मिक DATA'!A43) ->  | O44: 0
A45: =IF(कटोतियाँ[नाम]="","",ROWS($A$2:A42)) ->  | B45: =IF('शालादर्पण कार्मिक DATA'!A44="","",'शालादर्पण कार्मिक DATA'!A44) ->  | O45: 0
A46: =IF(कटोतियाँ[नाम]="","",ROWS($A$2:A43)) ->  | B46: =IF('शालादर्पण कार्मिक DATA'!A45="","",'शालादर्पण कार्मिक DATA'!A45) ->  | O46: 0
A47: =IF(कटोतियाँ[नाम]="","",ROWS($A$2:A44)) ->  | B47: =IF('शालादर्पण कार्मिक DATA'!A46="","",'शालादर्पण कार्मिक DATA'!A46) ->  | O47: 0
A48: =IF(कटोतियाँ[नाम]="","",ROWS($A$2:A45)) ->  | B48: =IF('शालादर्पण कार्मिक DATA'!A47="","",'शालादर्पण कार्मिक DATA'!A47) ->  | O48: 0
A49: =IF(कटोतियाँ[नाम]="","",ROWS($A$2:A46)) ->  | B49: =IF('शालादर्पण कार्मिक DATA'!A48="","",'शालादर्पण कार्मिक DATA'!A48) ->  | O49: 0
A50: =IF(कटोतियाँ[नाम]="","",ROWS($A$2:A47)) ->  | B50: =IF('शालादर्पण कार्मिक DATA'!A49="","",'शालादर्पण कार्मिक DATA'!A49) ->  | O50: 0
A51: =IF(कटोतियाँ[नाम]="","",ROWS($A$2:A48)) ->  | B51: =IF('शालादर्पण कार्मिक DATA'!A50="","",'शालादर्पण कार्मिक DATA'!A50) ->  | O51: 0
A52: =IF(कटोतियाँ[नाम]="","",ROWS($A$2:A49)) ->  | B52: =IF('शालादर्पण कार्मिक DATA'!A51="","",'शालादर्पण कार्मिक DATA'!A51) ->  | O52: 0
A53: =IF(कटोतियाँ[नाम]="","",ROWS($A$2:A50)) ->  | B53: =IF('शालादर्पण कार्मिक DATA'!A52="","",'शालादर्पण कार्मिक DATA'!A52) ->  | O53: 0
A54: =IF(कटोतियाँ[नाम]="","",ROWS($A$2:A51)) ->  | B54: =IF('शालादर्पण कार्मिक DATA'!A53="","",'शालादर्पण कार्मिक DATA'!A53) ->  | O54: 0
A55: =IF(कटोतियाँ[नाम]="","",ROWS($A$2:A52)) ->  | B55: =IF('शालादर्पण कार्मिक DATA'!A54="","",'शालादर्पण कार्मिक DATA'!A54) ->  | O55: 0
A56: =IF(कटोतियाँ[नाम]="","",ROWS($A$2:A53)) ->  | B56: =IF('शालादर्पण कार्मिक DATA'!A55="","",'शालादर्पण कार्मिक DATA'!A55) ->  | O56: 0
A57: =IF(कटोतियाँ[नाम]="","",ROWS($A$2:A54)) ->  | B57: =IF('शालादर्पण कार्मिक DATA'!A56="","",'शालादर्पण कार्मिक DATA'!A56) ->  | O57: 0
A58: =IF(कटोतियाँ[नाम]="","",ROWS($A$2:A55)) ->  | B58: =IF('शालादर्पण कार्मिक DATA'!A57="","",'शालादर्पण कार्मिक DATA'!A57) ->  | O58: 0
A59: =IF(कटोतियाँ[नाम]="","",ROWS($A$2:A56)) ->  | B59: =IF('शालादर्पण कार्मिक DATA'!A58="","",'शालादर्पण कार्मिक DATA'!A58) ->  | O59: 0
A60: =IF(कटोतियाँ[नाम]="","",ROWS($A$2:A57)) ->  | B60: =IF('शालादर्पण कार्मिक DATA'!A59="","",'शालादर्पण कार्मिक DATA'!A59) ->  | O60: 0
A61: =IF(कटोतियाँ[नाम]="","",ROWS($A$2:A58)) ->  | B61: =IF('शालादर्पण कार्मिक DATA'!A60="","",'शालादर्पण कार्मिक DATA'!A60) ->  | O61: 0
A62: =IF(कटोतियाँ[नाम]="","",ROWS($A$2:A59)) ->  | B62: =IF('शालादर्पण कार्मिक DATA'!A61="","",'शालादर्पण कार्मिक DATA'!A61) ->  | O62: 0
A63: =IF(कटोतियाँ[नाम]="","",ROWS($A$2:A60)) ->  | B63: =IF('शालादर्पण कार्मिक DATA'!A62="","",'शालादर्पण कार्मिक DATA'!A62) ->  | O63: 0
A64: =IF(कटोतियाँ[नाम]="","",ROWS($A$2:A61)) ->  | B64: =IF('शालादर्पण कार्मिक DATA'!A63="","",'शालादर्पण कार्मिक DATA'!A63) ->  | O64: 0
A65: =IF(कटोतियाँ[नाम]="","",ROWS($A$2:A62)) ->  | B65: =IF('शालादर्पण कार्मिक DATA'!A64="","",'शालादर्पण कार्मिक DATA'!A64) ->  | O65: 0
A66: =IF(कटोतियाँ[नाम]="","",ROWS($A$2:A63)) ->  | B66: =IF('शालादर्पण कार्मिक DATA'!A65="","",'शालादर्पण कार्मिक DATA'!A65) ->  | O66: 0
A67: =IF(कटोतियाँ[नाम]="","",ROWS($A$2:A64)) ->  | B67: =IF('शालादर्पण कार्मिक DATA'!A66="","",'शालादर्पण कार्मिक DATA'!A66) ->  | O67: 0
A68: =IF(कटोतियाँ[नाम]="","",ROWS($A$2:A65)) ->  | B68: =IF('शालादर्पण कार्मिक DATA'!A67="","",'शालादर्पण कार्मिक DATA'!A67) ->  | O68: 0
A69: =IF(कटोतियाँ[नाम]="","",ROWS($A$2:A66)) ->  | B69: =IF('शालादर्पण कार्मिक DATA'!A68="","",'शालादर्पण कार्मिक DATA'!A68) ->  | O69: 0
A70: =IF(कटोतियाँ[नाम]="","",ROWS($A$2:A67)) ->  | B70: =IF('शालादर्पण कार्मिक DATA'!A69="","",'शालादर्पण कार्मिक DATA'!A69) ->  | O70: =SUM(C70:N70) -> 0
A71: =IF(कटोतियाँ[नाम]="","",ROWS($A$2:A68)) ->  | B71: =IF('शालादर्पण कार्मिक DATA'!A70="","",'शालादर्पण कार्मिक DATA'!A70) ->  | O71: 0
A72: =IF(कटोतियाँ[नाम]="","",ROWS($A$2:A69)) ->  | B72: =IF('शालादर्पण कार्मिक DATA'!A71="","",'शालादर्पण कार्मिक DATA'!A71) ->  | O72: 0
A73: =IF(कटोतियाँ[नाम]="","",ROWS($A$2:A70)) ->  | B73: =IF('शालादर्पण कार्मिक DATA'!A72="","",'शालादर्पण कार्मिक DATA'!A72) ->  | O73: 0
A74: =IF(कटोतियाँ[नाम]="","",ROWS($A$2:A71)) ->  | B74: =IF('शालादर्पण कार्मिक DATA'!A73="","",'शालादर्पण कार्मिक DATA'!A73) ->  | O74: 0
A75: =IF(कटोतियाँ[नाम]="","",ROWS($A$2:A72)) ->  | B75: =IF('शालादर्पण कार्मिक DATA'!A74="","",'शालादर्पण कार्मिक DATA'!A74) ->  | O75: 0
A76: =IF(कटोतियाँ[नाम]="","",ROWS($A$2:A73)) ->  | B76: =IF('शालादर्पण कार्मिक DATA'!A75="","",'शालादर्पण कार्मिक DATA'!A75) ->  | O76: 0
A77: =IF(कटोतियाँ[नाम]="","",ROWS($A$2:A74)) ->  | B77: =IF('शालादर्पण कार्मिक DATA'!A76="","",'शालादर्पण कार्मिक DATA'!A76) ->  | O77: 0
A78: =IF(कटोतियाँ[नाम]="","",ROWS($A$2:A75)) ->  | B78: =IF('शालादर्पण कार्मिक DATA'!A77="","",'शालादर्पण कार्मिक DATA'!A77) ->  | O78: 0
A79: =IF(कटोतियाँ[नाम]="","",ROWS($A$2:A76)) ->  | B79: =IF('शालादर्पण कार्मिक DATA'!A78="","",'शालादर्पण कार्मिक DATA'!A78) ->  | O79: 0
A80: =IF(कटोतियाँ[नाम]="","",ROWS($A$2:A77)) ->  | B80: =IF('शालादर्पण कार्मिक DATA'!A79="","",'शालादर्पण कार्मिक DATA'!A79) ->  | O80: 0
A81: =IF(कटोतियाँ[नाम]="","",ROWS($A$2:A78)) ->  | B81: =IF('शालादर्पण कार्मिक DATA'!A80="","",'शालादर्पण कार्मिक DATA'!A80) ->  | O81: 0
A82: =IF(कटोतियाँ[नाम]="","",ROWS($A$2:A79)) ->  | B82: =IF('शालादर्पण कार्मिक DATA'!A81="","",'शालादर्पण कार्मिक DATA'!A81) ->  | O82: 0
A83: =IF(कटोतियाँ[नाम]="","",ROWS($A$2:A80)) ->  | B83: =IF('शालादर्पण कार्मिक DATA'!A82="","",'शालादर्पण कार्मिक DATA'!A82) ->  | O83: 0
A84: =IF(कटोतियाँ[नाम]="","",ROWS($A$2:A81)) ->  | B84: =IF('शालादर्पण कार्मिक DATA'!A83="","",'शालादर्पण कार्मिक DATA'!A83) ->  | O84: 0
A85: =IF(कटोतियाँ[नाम]="","",ROWS($A$2:A82)) ->  | B85: =IF('शालादर्पण कार्मिक DATA'!A84="","",'शालादर्पण कार्मिक DATA'!A84) ->  | O85: 0
A86: =IF(कटोतियाँ[नाम]="","",ROWS($A$2:A83)) ->  | B86: =IF('शालादर्पण कार्मिक DATA'!A85="","",'शालादर्पण कार्मिक DATA'!A85) ->  | O86: 0
A87: =IF(कटोतियाँ[नाम]="","",ROWS($A$2:A84)) ->  | B87: =IF('शालादर्पण कार्मिक DATA'!A86="","",'शालादर्पण कार्मिक DATA'!A86) ->  | O87: 0
A88: =IF(कटोतियाँ[नाम]="","",ROWS($A$2:A85)) ->  | B88: =IF('शालादर्पण कार्मिक DATA'!A87="","",'शालादर्पण कार्मिक DATA'!A87) ->  | O88: 0
A89: =IF(कटोतियाँ[नाम]="","",ROWS($A$2:A86)) ->  | B89: =IF('शालादर्पण कार्मिक DATA'!A88="","",'शालादर्पण कार्मिक DATA'!A88) ->  | O89: 0
A90: =IF(कटोतियाँ[नाम]="","",ROWS($A$2:A87)) ->  | B90: =IF('शालादर्पण कार्मिक DATA'!A89="","",'शालादर्पण कार्मिक DATA'!A89) ->  | O90: 0
A91: =IF(कटोतियाँ[नाम]="","",ROWS($A$2:A88)) ->  | B91: =IF('शालादर्पण कार्मिक DATA'!A90="","",'शालादर्पण कार्मिक DATA'!A90) ->  | O91: 0
A92: =IF(कटोतियाँ[नाम]="","",ROWS($A$2:A89)) ->  | B92: =IF('शालादर्पण कार्मिक DATA'!A91="","",'शालादर्पण कार्मिक DATA'!A91) ->  | O92: 0
A93: =IF(कटोतियाँ[नाम]="","",ROWS($A$2:A90)) ->  | B93: =IF('शालादर्पण कार्मिक DATA'!A92="","",'शालादर्पण कार्मिक DATA'!A92) ->  | O93: 0
A94: =IF(कटोतियाँ[नाम]="","",ROWS($A$2:A91)) ->  | B94: =IF('शालादर्पण कार्मिक DATA'!A93="","",'शालादर्पण कार्मिक DATA'!A93) ->  | O94: 0
A95: =IF(कटोतियाँ[नाम]="","",ROWS($A$2:A92)) ->  | B95: =IF('शालादर्पण कार्मिक DATA'!A94="","",'शालादर्पण कार्मिक DATA'!A94) ->  | O95: 0
A96: =IF(कटोतियाँ[नाम]="","",ROWS($A$2:A93)) ->  | B96: =IF('शालादर्पण कार्मिक DATA'!A95="","",'शालादर्पण कार्मिक DATA'!A95) ->  | O96: 0
A97: =IF(कटोतियाँ[नाम]="","",ROWS($A$2:A94)) ->  | B97: =IF('शालादर्पण कार्मिक DATA'!A96="","",'शालादर्पण कार्मिक DATA'!A96) ->  | O97: 0
A98: =IF(कटोतियाँ[नाम]="","",ROWS($A$2:A95)) ->  | B98: =IF('शालादर्पण कार्मिक DATA'!A97="","",'शालादर्पण कार्मिक DATA'!A97) ->  | O98: 0
A99: =IF(कटोतियाँ[नाम]="","",ROWS($A$2:A96)) ->  | B99: =IF('शालादर्पण कार्मिक DATA'!A98="","",'शालादर्पण कार्मिक DATA'!A98) ->  | O99: 0
A100: =IF(कटोतियाँ[नाम]="","",ROWS($A$2:A97)) ->  | B100: =IF('शालादर्पण कार्मिक DATA'!A99="","",'शालादर्पण कार्मिक DATA'!A99) ->  | O100: 0
A101: =IF(कटोतियाँ[नाम]="","",ROWS($A$2:A98)) ->  | B101: =IF('शालादर्पण कार्मिक DATA'!A100="","",'शालादर्पण कार्मिक DATA'!A100) ->  | O101: 0
A102: =IF(कटोतियाँ[नाम]="","",ROWS($A$2:A99)) ->  | B102: =IF('शालादर्पण कार्मिक DATA'!A101="","",'शालादर्पण कार्मिक DATA'!A101) ->  | O102: 0
A103: =IF(कटोतियाँ[नाम]="","",ROWS($A$2:A100)) ->  | B103: =IF('शालादर्पण कार्मिक DATA'!A102="","",'शालादर्पण कार्मिक DATA'!A102) ->  | O103: 0
A104: =IF(कटोतियाँ[नाम]="","",ROWS($A$2:A101)) ->  | B104: =IF('शालादर्पण कार्मिक DATA'!A103="","",'शालादर्पण कार्मिक DATA'!A103) ->  | O104: 0

Sheet EDIT PAY POSTING
A1: 2023 | B1: 2024 | C1: MADE BY:-भागीरथ मल कलवानियाँ कोलिया MOB. NO 982879204 | U1: =YEAR(TODAY()) -> 2024
A2: ='कार्मिक विवरण'!A2 -> राजकीय उच्च माध्यमिक विद्यालय डसाणा खुर्द,मौलासर,नागौर | O2: =VLOOKUP($P$2,कार्मिक_विवरण[],16,0) -> No | P2: 1
A3: PAY POSTING RAGISTER | O3: =VLOOKUP($P$2,कार्मिक_विवरण[],7,0) -> No
A5: नाम- | B5: =IFERROR((VLOOKUP($P$2,कार्मिक_विवरण[],2,0)),"") -> BHAGIRATH MAL | E5: पद- | F5: =IFERROR(UPPER(VLOOKUP($P$2,कार्मिक_विवरण[],3,0)),"") -> SENIOR TEACHER (II GR.) | I5: DOB- | J5: =IFERROR(VLOOKUP($P$2,कार्मिक_विवरण[],4,0),"") -> 1971-01-21 | L5: पैन नंबर- | M5: =IFERROR(VLOOKUP($P$2,कार्मिक_विवरण[],5,0),"") -> XXXXS1582D | P5: BASIC CHANGE हो तो पीले सेल में मूल वेतन लिखे
A6: EMP. ID- | B6: =IFERROR(VLOOKUP($P$2,कार्मिक_विवरण[],6,0),"") -> RJNA199728012345 | E6: SI No.- | F6: =IFERROR(VLOOKUP($P$2,कार्मिक_विवरण[],9,0),"") -> 1121192 | I6: GPF No.- | J6: =IFERROR(VLOOKUP($P$2,कार्मिक_विवरण[],10,0),"") -> 123456 | L6: PRAN No. | M6: =IFERROR(VLOOKUP($P$2,कार्मिक_विवरण[],11,0),"") -> 123654987897 | P6: JAN-2024 | R6: 73200
A7: आधार कार्ड नंबर- | B7: =IFERROR(VLOOKUP($P$2,कार्मिक_विवरण[],12,0),"") -> XXXXXXXX5832 | E7: बैंक नाम- | F7: =IFERROR(VLOOKUP($P$2,कार्मिक_विवरण[],13,0),"") -> SBI | I7: IFSC Cod- | J7: =IFERROR(VLOOKUP($P$2,कार्मिक_विवरण[],14,0),"") -> SBIN00 | L7: बैंक A/c- | M7: =IFERROR(VLOOKUP($P$2,कार्मिक_विवरण[],15,0),"") -> 61118966625 | P7: समर्पित अवकाश माह | S7: राजपत्रित | U7: APR-2022-23 | V7: may-2022-23 | W7: jun-22-23 | X7: july-22-23
A9: =$B$5 -> BHAGIRATH MAL | B9: Month | C9: =V$11&"-"&$A$1 -> APR-2023 | D9: MAY-2023 | E9: JUN-2023 | F9: JUL-2023 | G9: AUG-2023 | H9: SEP-2023 | I9: OCT-2023 | J9: NOV-2023 | K9: DEC-2023 | L9: =AE$11&"-"&RIGHT($B$1,4) -> JAN-2024 | M9: =AF$11&"-"&RIGHT($B$1,4) -> FEB-2024 | N9: =AG$11&"-"&RIGHT($B$1,4) -> MAR-2024 | P9: DEC-2023 | S9: No | U9: =IFERROR(VLOOKUP(U7,U7:AF7,21,0),U$7) -> APR-2022-23 | V9: =IFERROR(VLOOKUP(V7,V7:AG7,21,0),V$7) -> may-2022-23 | W9: =IFERROR(VLOOKUP(W7,W7:AH7,21,0),W$7) -> jun-22-23 | X9: =IFERROR(VLOOKUP(X7,X7:AH7,21,0),X$7) -> july-22-23
A10: वेतन एवं कटौती का विवरण | B10: DA Rates % | C10: =IFERROR(VLOOKUP($A$1,DA,2,0),"") -> 42 | D10: =IFERROR(VLOOKUP($A$1,DA,3,0),"") -> 42 | E10: =IFERROR(VLOOKUP($A$1,DA,4,0),"") -> 42 | F10: =IFERROR(VLOOKUP($A$1,DA,5,0),"") -> 42 | G10: =IFERROR(VLOOKUP($A$1,DA,6,0),"") -> 42 | H10: =IFERROR(VLOOKUP($A$1,DA,7,0),"") -> 42 | I10: =IFERROR(VLOOKUP($A$1,DA,8,0),"") -> 46 | J10: =IFERROR(VLOOKUP($A$1,DA,9,0),"") -> 46 | K10: =IFERROR(VLOOKUP($A$1,DA,10,0),"") -> 46 | L10: =IFERROR(VLOOKUP($A$1,DA,11,0),"") -> 46 | M10: =IFERROR(VLOOKUP($A$1,DA,12,0),"") -> 46 | N10: =IFERROR(VLOOKUP($A$1,DA,13,0),"") -> 46 | U10: =IFERROR(VLOOKUP(U8,U8:AF8,21,0),$U$7) -> APR-2022-23
B11: Bill No. | C11: =IFERROR(VLOOKUP(V11,'बिल और T.V.न.'!$B$4:$F$16,2,0),"") -> 3 | D11: =IFERROR(VLOOKUP(W11,'बिल और T.V.न.'!$B$4:$F$16,2,0),"") -> 9 | E11: =IFERROR(VLOOKUP(X11,'बिल और T.V.न.'!$B$4:$F$16,2,0),"") -> 11 | F11: =IFERROR(VLOOKUP(Y11,'बिल और T.V.न.'!$B$4:$F$16,2,0),"") -> 17 | G11: =IFERROR(VLOOKUP(Z11,'बिल और T.V.न.'!$B$4:$F$16,2,0),"") -> 20 | H11: =IFERROR(VLOOKUP(AA11,'बिल और T.V.न.'!$B$4:$F$16,2,0),"") -> 22 | I11: =IFERROR(VLOOKUP(AB11,'बिल और T.V.न.'!$B$4:$F$16,2,0),"") -> 27 | J11: =IFERROR(VLOOKUP(AC11,'बिल और T.V.न.'!$B$4:$F$16,2,0),"") -> 31 | K11: =IFERROR(VLOOKUP(AD11,'बिल और T.V.न.'!$B$4:$F$16,2,0),"") -> 33 | L11: =IFERROR(VLOOKUP(AE11,'बिल और T.V.न.'!$B$4:$F$16,2,0),"") -> 36 | M11: =IFERROR(VLOOKUP(AF11,'बिल और T.V.न.'!$B$4:$F$16,2,0),"") -> 41 | N11: =IFERROR(VLOOKUP(AG11,'बिल और T.V.न.'!$B$4:$F$16,2,0),"") -> 0 | U11: =IFERROR(VLOOKUP(U9,U9:AF9,21,0),$U$7) -> APR-2022-23 | V11: APR | W11: MAY | X11: JUN | Y11: JUL | Z11: AUG | AA11: SEP | AB11: OCT | AC11: NOV | AD11: DEC | AE11: JAN | AF11: FEB | AG11: MAR
B12: DATE | C12: =IFERROR(VLOOKUP(V$11,'बिल और T.V.न.'!$B$4:$F$16,3,0),"") -> 2023-05-07 | D12: =IFERROR(VLOOKUP(W$11,'बिल और T.V.न.'!$B$4:$F$16,3,0),"") -> 2023-05-08 | E12: =IFERROR(VLOOKUP(X$11,'बिल और T.V.न.'!$B$4:$F$16,3,0),"") -> 2023-05-09 | F12: =IFERROR(VLOOKUP(Y$11,'बिल और T.V.न.'!$B$4:$F$16,3,0),"") -> 2023-05-10 | G12: =IFERROR(VLOOKUP(Z$11,'बिल और T.V.न.'!$B$4:$F$16,3,0),"") -> 2023-05-11 | H12: =IFERROR(VLOOKUP(AA$11,'बिल और T.V.न.'!$B$4:$F$16,3,0),"") -> 2023-05-12 | I12: =IFERROR(VLOOKUP(AB$11,'बिल और T.V.न.'!$B$4:$F$16,3,0),"") -> 2023-05-13 | J12: =IFERROR(VLOOKUP(AC$11,'बिल और T.V.न.'!$B$4:$F$16,3,0),"") -> 2023-05-14 | K12: =IFERROR(VLOOKUP(AD$11,'बिल और T.V.न.'!$B$4:$F$16,3,0),"") -> 2023-05-15 | L12: =IFERROR(VLOOKUP(AE$11,'बिल और T.V.न.'!$B$4:$F$16,3,0),"") -> 2023-05-16 | M12: =IFERROR(VLOOKUP(AF$11,'बिल और T.V.न.'!$B$4:$F$16,3,0),"") -> 2023-05-17 | N12: =IFERROR(VLOOKUP(AG$11,'बिल और T.V.न.'!$B$4:$F$16,3,0),"") -> 2023-05-18 | U12: =IFERROR(VLOOKUP(U10,U10:AF10,21,0),$U$7) -> APR-2022-23 | V12: =V$11&"-"&$U$1 -> APR-2024 | W12: MAY-2024 | X12: JUN-2024 | Y12: JUL-2024 | Z12: AUG-2024 | AA12: SEP-2024 | AB12: OCT-2024 | AC12: NOV-2024 | AD12: DEC-2024 | AE12: JAN-2024 | AF12: FEB-2024 | AG12: MAR-2024
B13: TV No. | C13: =IFERROR(VLOOKUP(V11,'बिल और T.V.न.'!$B$4:$F$16,4,0),"") -> 15843 | D13: =IFERROR(VLOOKUP(W11,'बिल और T.V.न.'!$B$4:$F$16,4,0),"") -> 22151 | E13: =IFERROR(VLOOKUP(X11,'बिल और T.V.न.'!$B$4:$F$16,4,0),"") -> 33751 | F13: =IFERROR(VLOOKUP(Y11,'बिल और T.V.न.'!$B$4:$F$16,4,0),"") -> 45857 | G13: =IFERROR(VLOOKUP(Z11,'बिल और T.V.न.'!$B$4:$F$16,4,0),"") -> 54785 | H13: =IFERROR(VLOOKUP(AA11,'बिल और T.V.न.'!$B$4:$F$16,4,0),"") -> 65093 | I13: =IFERROR(VLOOKUP(AB11,'बिल और T.V.न.'!$B$4:$F$16,4,0),"") -> 74203 | J13: =IFERROR(VLOOKUP(AC11,'बिल और T.V.न.'!$B$4:$F$16,4,0),"") -> 87547 | K13: =IFERROR(VLOOKUP(AD11,'बिल और T.V.न.'!$B$4:$F$16,4,0),"") -> 98298 | L13: =IFERROR(VLOOKUP(AE11,'बिल और T.V.न.'!$B$4:$F$16,4,0),"") -> 108163 | M13: =IFERROR(VLOOKUP(AF11,'बिल और T.V.न.'!$B$4:$F$16,4,0),"") -> 123382 | N13: =IFERROR(VLOOKUP(AG11,'बिल और T.V.न.'!$B$4:$F$16,4,0),"") -> 0 | U13: =IFERROR(VLOOKUP(U11,U11:U11,21,0),$U$7) -> APR-2022-23 | V13: =V$11&"-"&$A$1 -> APR-2023 | W13: MAY-2023 | X13: JUN-2023 | Y13: JUL-2023 | Z13: AUG-2023 | AA13: SEP-2023 | AB13: OCT-2023 | AC13: NOV-2023 | AD13: DEC-2023 | AE13: =AE$11&"-"&RIGHT($B$1,4) -> JAN-2024 | AF13: =AF$11&"-"&RIGHT($B$1,4) -> FEB-2024 | AG13: =AG$11&"-"&RIGHT($B$1,4) -> MAR-2024
B14: DATE | C14: =IFERROR(VLOOKUP(V11,'बिल और T.V.न.'!$B$4:$F$16,5,0),"") -> 2023-05-13 | D14: =IFERROR(VLOOKUP(W11,'बिल और T.V.न.'!$B$4:$F$16,5,0),"") -> 2023-05-14 | E14: =IFERROR(VLOOKUP(X11,'बिल और T.V.न.'!$B$4:$F$16,5,0),"") -> 2023-05-15 | F14: =IFERROR(VLOOKUP(Y11,'बिल और T.V.न.'!$B$4:$F$16,5,0),"") -> 2023-05-16 | G14: =IFERROR(VLOOKUP(Z11,'बिल और T.V.न.'!$B$4:$F$16,5,0),"") -> 2023-05-17 | H14: =IFERROR(VLOOKUP(AA11,'बिल और T.V.न.'!$B$4:$F$16,5,0),"") -> 2023-05-18 | I14: =IFERROR(VLOOKUP(AB11,'बिल और T.V.न.'!$B$4:$F$16,5,0),"") -> 2023-05-19 | J14: =IFERROR(VLOOKUP(AC11,'बिल और T.V.न.'!$B$4:$F$16,5,0),"") -> 2023-05-20 | K14: =IFERROR(VLOOKUP(AD11,'बिल और T.V.न.'!$B$4:$F$16,5,0),"") -> 2023-05-21 | L14: =IFERROR(VLOOKUP(AE11,'बिल और T.V.न.'!$B$4:$F$16,5,0),"") -> 2023-05-22 | M14: =IFERROR(VLOOKUP(AF11,'बिल और T.V.न.'!$B$4:$F$16,5,0),"") -> 2023-05-23 | N14: =IFERROR(VLOOKUP(AG11,'बिल और T.V.न.'!$B$4:$F$16,5,0),"") -> 2023-05-24 | U14: =IFERROR(VLOOKUP(U12,U12:AF12,21,0),$U$7) -> APR-2022-23 | V14: IFERROR(VLOOKUP($B$1,DA,2,0),"") | W14: IFERROR(VLOOKUP($B$1,DA,3,0),"") | X14: IFERROR(VLOOKUP($B$1,DA,4,0),"") | Y14: IFERROR(VLOOKUP($B$1,DA,5,0),"") | Z14: IFERROR(VLOOKUP($B$1,DA,6,0),"") | AA14: IFERROR(VLOOKUP($B$1,DA,7,0),"") | AB14: IFERROR(VLOOKUP($B$1,DA,8,0),"") | AC14: IFERROR(VLOOKUP($B$1,DA,9,0),"") | AD14: IFERROR(VLOOKUP($B$1,DA,10,0),"") | AE14: IFERROR(VLOOKUP($B$1,DA,11,0),"") | AF14: IFERROR(VLOOKUP($B$1,DA,12,0),"") | AG14: IFERROR(VLOOKUP($B$1,DA,13,0),"")
V15: =IFERROR(VLOOKUP($B$1,DA,2,0),"") -> 46 | W15: =IFERROR(VLOOKUP($B$1,DA,3,0),"") -> 46 | X15: =IFERROR(VLOOKUP($B$1,DA,4,0),"") -> 46 | Y15: =IFERROR(VLOOKUP($B$1,DA,5,0),"") -> 46 | Z15: =IFERROR(VLOOKUP($B$1,DA,6,0),"") -> 46 | AA15: =IFERROR(VLOOKUP($B$1,DA,7,0),"") -> 46 | AB15: =IFERROR(VLOOKUP($B$1,DA,8,0),"") -> 46 | AC15: =IFERROR(VLOOKUP($B$1,DA,9,0),"") -> 46 | AD15: =IFERROR(VLOOKUP($B$1,DA,10,0),"") -> 46 | AE15: =IFERROR(VLOOKUP($B$1,DA,11,0),"") -> 46 | AF15: =IFERROR(VLOOKUP($B$1,DA,12,0),"") -> 46 | AG15: =IFERROR(VLOOKUP($B$1,DA,13,0),"") -> 46
A16: 1. वेतन | U16: 2022-
B17: मूल वेतन | C17: =VLOOKUP($P$2,भते[],3,0) -> 69200 | D17: =IF(D9=$P$6,$R$6,C17) -> 69200 | E17: =IF(E9=$P$6,$R$6,D17) -> 69200 | F17: =IF(AND($B$5=VLOOKUP($P$2,कार्मिक_विवरण[],2,0),$O$2="YES"),$E$17,MROUND(E17*1.03,100)) -> 71300 | G17: =IF(G9=$P$6,$R$6,F17) -> 71300 | H17: 71300 | I17: 71300 | J17: 71300 | K17: 71300 | L17: 73200 | M17: 73200 | N17: 73200 | V17: IFERROR(IF(B11>=M11,0,VLOOKUP($C$7,GPF_Rate,2,0)),"") | W17: IFERROR(VLOOKUP($C$7,GPF_Rate,3,0),"")
B18: अवकाश वेतन | C18: =VLOOKUP($P$2,भते[],4,0) -> 0 | D18: =C18 -> 0 | E18: =D18 -> 0 | F18: 0 | G18: 0 | H18: 0 | I18: 0 | J18: 0 | K18: 0 | L18: 0 | M18: 0 | N18: 0
B19: विशेष वेतन | C19: =VLOOKUP($P$2,भते[],5,0) -> 0 | D19: =C19 -> 0 | E19: =D19 -> 0 | F19: 0 | G19: 0 | H19: 0 | I19: 0 | J19: 0 | K19: 0 | L19: 0 | M19: 0 | N19: 0
B20: मंहगाई भत्ता | C20: =IF($O$2="Yes",0,IF(C17="","",ROUND(C17*C10%,0))) -> 29064 | D20: 29064 | E20: 29064 | F20: 29946 | G20: 29946 | H20: 29946 | I20: 32798 | J20: 32798 | K20: 32798 | L20: 33672 | M20: 33672 | N20: 33672
B21: मकान किराया भत्ता | C21: =IF($O$2="Yes",0,IF(OR(C17="",VLOOKUP($P$2,कार्मिक_विवरण[],8,0)="NA"),0,ROUND(C17*VLOOKUP($P$2,कार्मिक_विवरण[],8,0),0))) -> 6228 | D21: =IF($O$2="Yes",0,IF(OR(D17="",VLOOKUP($P$2,कार्मिक_विवरण[],8,0)="NA"),0,ROUND(D17*VLOOKUP($P$2,कार्मिक_विवरण[],8,0),0))) -> 6228 | E21: =IF($O$2="Yes",0,IF(OR(E17="",VLOOKUP($P$2,कार्मिक_विवरण[],8,0)="NA"),0,ROUND(E17*VLOOKUP($P$2,कार्मिक_विवरण[],8,0),0))) -> 6228 | F21: =IF($O$2="Yes",0,IF(OR(F17="",VLOOKUP($P$2,कार्मिक_विवरण[],8,0)="NA"),0,ROUND(F17*VLOOKUP($P$2,कार्मिक_विवरण[],8,0),0))) -> 6417 | G21: =IF($O$2="Yes",0,IF(OR(G17="",VLOOKUP($P$2,कार्मिक_विवरण[],8,0)="NA"),0,ROUND(G17*VLOOKUP($P$2,कार्मिक_विवरण[],8,0),0))) -> 6417 | H21: =IF($O$2="Yes",0,IF(OR(H17="",VLOOKUP($P$2,कार्मिक_विवरण[],8,0)="NA"),0,ROUND(H17*VLOOKUP($P$2,कार्मिक_विवरण[],8,0),0))) -> 6417 | I21: =IF($O$2="Yes",0,IF(OR(I17="",VLOOKUP($P$2,कार्मिक_विवरण[],8,0)="NA"),0,ROUND(I17*VLOOKUP($P$2,कार्मिक_विवरण[],8,0),0))) -> 6417 | J21: =IF($O$2="Yes",0,IF(OR(J17="",VLOOKUP($P$2,कार्मिक_विवरण[],8,0)="NA"),0,ROUND(J17*VLOOKUP($P$2,कार्मिक_विवरण[],8,0),0))) -> 6417 | K21: =IF($O$2="Yes",0,IF(OR(K17="",VLOOKUP($P$2,कार्मिक_विवरण[],8,0)="NA"),0,ROUND(K17*VLOOKUP($P$2,कार्मिक_विवरण[],8,0),0))) -> 6417 | L21: =IF($O$2="Yes",0,IF(OR(L17="",VLOOKUP($P$2,कार्मिक_विवरण[],8,0)="NA"),0,ROUND(L17*VLOOKUP($P$2,कार्मिक_विवरण[],8,0),0))) -> 6588 | M21: =IF($O$2="Yes",0,IF(OR(M17="",VLOOKUP($P$2,कार्मिक_विवरण[],8,0)="NA"),0,ROUND(M17*VLOOKUP($P$2,कार्मिक_विवरण[],8,0),0))) -> 6588 | N21: =IF($O$2="Yes",0,IF(OR(N17="",VLOOKUP($P$2,कार्मिक_विवरण[],8,0)="NA"),0,ROUND(N17*VLOOKUP($P$2,कार्मिक_विवरण[],8,0),0))) -> 6588
B22: विकलांग भत्ता | C22: =VLOOKUP($P$2,भते[],6,0) -> 0 | D22: =C22 -> 0 | E22: =D22 -> 0 | F22: 0 | G22: 0 | H22: =G22 -> 0 | I22: 0 | J22: 0 | K22: 0 | L22: 0 | M22: 0 | N22: 0
B23: शहरी भत्ता | C23: =VLOOKUP($P$2,भते[],7,0) -> 0 | D23: =C23 -> 0 | E23: =D23 -> 0 | F23: 0 | G23: 0 | H23: 0 | I23: 0 | J23: 0 | K23: 0 | L23: 0 | M23: 0 | N23: 0
B24: अन्य 1 | C24: =VLOOKUP($P$2,भते[],8,0) -> 0 | D24: =C24 -> 0 | E24: =D24 -> 0 | F24: =E24 -> 0 | G24: 0 | H24: 0 | I24: 0 | J24: 0 | K24: 0 | L24: 0 | M24: 0 | N24: 0
B25: अन्य 2 | C25: =VLOOKUP($P$2,भते[],9,0) -> 0 | D25: =C25 -> 0 | E25: =D25 -> 0 | F25: 0 | G25: 0 | H25: 0 | I25: 0 | J25: 0 | K25: 0 | L25: 0 | M25: 0 | N25: 0
B26: अन्य 3 | C26: =VLOOKUP($P$2,भते[],10,0) -> 0 | D26: =C26 -> 0 | E26: =D26 -> 0 | F26: 0 | G26: 0 | H26: 0 | I26: 0 | J26: 0 | K26: 0 | L26: 0 | M26: 0 | N26: 0
A27: योग (1) | C27: =SUM(C17:C26) -> 104492 | D27: =SUM(D17:D26) -> 104492 | E27: 104492 | F27: 107663 | G27: 107663 | H27: 107663 | I27: 110515 | J27: 110515 | K27: 110515 | L27: 113460 | M27: 113460 | N27: 113460
A29: (2) माहवार कटौतियां
B30: GPF/GPF2004 | C30: =VLOOKUP($P$2,कटोतियाँ[],3,0) -> 4200 | D30: =C30 -> 4200 | E30: =D30 -> 4200 | F30: =E30 -> 4200 | G30: =F30 -> 4200 | H30: 4200 | I30: 4200 | J30: 4200 | K30: 4200 | L30: 4200 | M30: 4200 | N30: 4200
B31: GPF Loan | C31: =VLOOKUP($P$2,कटोतियाँ[],4,0) -> 0 | D31: =C31 -> 0 | E31: =D31 -> 0 | F31: =E31 -> 0 | G31: 0 | H31: 0 | I31: 0 | J31: 0 | K31: 0 | L31: 0 | M31: 0 | N31: =M31 -> 0
B32: NPS | C32: =IF($O$3="No",0,ROUND(SUM(C17,C20)*10%,0)) -> 0 | D32: =IF($O$3="No",0,ROUND(SUM(D17,D20)*10%,0)) -> 0 | E32: 0 | F32: 0 | G32: 0 | H32: 0 | I32: 0 | J32: 0 | K32: 0 | L32: 0 | M32: 0 | N32: 0
B33: SI | C33: =VLOOKUP($P$2,कटोतियाँ[],5,0) -> 5000 | D33: =C33 -> 5000 | E33: 5000 | F33: =E33 -> 5000 | G33: 5000 | H33: 5000 | I33: 5000 | J33: 5000 | K33: 5000 | L33: 5000 | M33: 5000 | N33: 5000
B34: SI Loan | C34: =VLOOKUP($P$2,कटोतियाँ[],6,0) -> 0 | D34: 0 | E34: =D34 -> 0 | F34: 0 | G34: 0 | H34: 0 | I34: 0 | J34: 0 | K34: 0 | L34: 0 | M34: 0 | N34: 0
B35: ITAX | C35: =VLOOKUP($P$2,कटोतियाँ[],7,0) -> 7000 | D35: 7000 | E35: =D35 -> 7000 | F35: 7000 | G35: 7000 | H35: 7000 | I35: 7000 | J35: 7000 | K35: =J35 -> 7000 | L35: =K35 -> 7000 | M35: =L35 -> 7000 | N35: =M35 -> 7000
B36: RPMF/RGHS | C36: =VLOOKUP($P$2,कटोतियाँ[],8,0) -> 875 | D36: 875 | E36: =D36 -> 875 | F36: =E36 -> 875 | G36: 875 | H36: 875 | I36: 875 | J36: 875 | K36: 875 | L36: 875 | M36: 875 | N36: 875
B37: LIC | C37: =VLOOKUP($P$2,कटोतियाँ[],9,0) -> 0 | D37: 0 | E37: =D37 -> 0 | F37: 0 | G37: 0 | H37: 0 | I37: 0 | J37: 0 | K37: 0 | L37: 0 | M37: 0 | N37: 0
B38: OTHER | C38: =VLOOKUP($P$2,कटोतियाँ[],10,0) -> 0 | D38: 0 | E38: =D38 -> 0 | F38: 0 | G38: 0 | I38: 0 | J38: 0 | K38: 0 | L38: 0 | M38: 0 | N38: 0
B39: GIS | C39: =VLOOKUP($P$2,कटोतियाँ[],11,0) -> 0 | D39: 0 | E39: 0 | F39: 0 | G39: 0 | H39: 0 | I39: 0 | J39: 0 | K39: 0 | L39: 0 | M39: 0 | N39: 0
B40: हितकारी निधि | C40: 0 | D40: 0 | E40: 0 | F40: 0 | G40: 0 | H40: 0 | I40: 0 | J40: 0 | K40: =IF($S$9="Yes",500,250) -> 250 | L40: 0 | M40: 0 | N40: 0
B41: अन्य 1 | C41: =VLOOKUP($P$2,कटोतियाँ[],12,0) -> 0 | D41: =C41 -> 0 | E41: =D41 -> 0 | F41: 0 | G41: 0 | H41: 0 | I41: 0 | J41: 0 | K41: 0 | L41: 0 | M41: 0 | N41: 0
B42: अन्य 2 | C42: =VLOOKUP($P$2,कटोतियाँ[],13,0) -> 0 | D42: =C42 -> 0 | E42: =D42 -> 0 | F42: 0 | G42: 0 | H42: 0 | I42: 0 | J42: =I42 -> 0 | K42: 0 | L42: 0 | M42: 0 | N42: 0
B43: अन्य 3 | C43: =VLOOKUP($P$2,कटोतियाँ[],14,0) -> 0 | D43: =C43 -> 0 | E43: =D43 -> 0 | F43: 0 | G43: 0 | H43: 0 | I43: 0 | J43: 0 | K43: 0 | L43: 0 | M43: 0 | N43: 0
A44: योग (2) | C44: =SUM(C30:C43) -> 17075 | D44: =SUM(D30:D43) -> 17075 | E44: 17075 | F44: 17075 | G44: 17075 | H44: 17075 | I44: 17075 | J44: 17075 | K44: 17325 | L44: 17075 | M44: 17075 | N44: 17075
A45: कुल देय वेतन राशि (1-2) | C45: =C27-C44 -> 87417 | D45: =D27-D44 -> 87417 | E45: 87417 | F45: 90588 | G45: 90588 | H45: 90588 | I45: 93440 | J45: 93440 | K45: 93190 | L45: 96385 | M45: 96385 | N45: 96385
A47: Arrear Type | B47: Bill No. and TV No. | C47: (3) शेष बकाया भुगतान का विवरण
A48: Arrear 1
A49: Arrear 2
A50: Arrear 3
A51: Arrear 4
A52: योग 3 | C52: =SUM(C48:C51) -> 0 | D52: =SUM(D48:D51) -> 0 | E52: 0 | F52: 0 | G52: 0 | H52: 0 | I52: 0 | J52: 0 | K52: 0 | L52: 0 | M52: 0 | N52: 0
A54: समर्पित या अंतिम उपार्जित अवकाश | B54: Bill No. and TV No. | C54: (4) समर्पित या उपार्जित अवकाश का भुगतान विवरण
C55: =ROUND(IF($P$9=C9,SUM(C17+C20)/2,0),0) -> 0 | D55: 0 | E55: 0 | F55: 0 | G55: 0 | H55: 0 | I55: 0 | J55: 0 | K55: 52049 | L55: 0 | M55: 0 | N55: 0
A57: कुल प्राप्त वेतन योग माहवार | C57: =SUM(C45,C52,C55) -> 87417 | D57: =SUM(D45,D52,D55) -> 87417 | E57: 87417 | F57: 90588 | G57: 90588 | H57: 90588 | I57: 93440 | J57: 93440 | K57: 145239 | L57: 96385 | M57: 96385 | N57: 96385
A59: लिपिक के हस्ताक्षर
A61: DDO के हस्ताक्षर

Sheet PRINT PAY POSTING
A1: MADE BY:-भागीरथ मल कलवानियाँ कोलिया MOB. NO 982879204
A2: ='EDIT PAY POSTING'!A2 -> राजकीय उच्च माध्यमिक विद्यालय डसाणा खुर्द,मौलासर,नागौर
A3: PAY POSTING RAGISTER
A5: नाम- | B5: ='EDIT PAY POSTING'!B5 -> BHAGIRATH MAL | E5: पद- | F5: ='EDIT PAY POSTING'!F5 -> SENIOR TEACHER (II GR.) | I5: DOB- | J5: ='EDIT PAY POSTING'!J5 -> 1971-01-21 | L5: पैन नंबर- | M5: ='EDIT PAY POSTING'!M5 -> XXXXS1582D
A6: EMP. ID- | B6: ='EDIT PAY POSTING'!B6 -> RJNA199728012345 | E6: SI No.- | F6: ='EDIT PAY POSTING'!F6 -> 1121192 | I6: GPF No.- | J6: ='EDIT PAY POSTING'!J6 -> 123456 | L6: PRAN No. | M6: ='EDIT PAY POSTING'!M6 -> 123654987897
A7: आधार कार्ड नंबर- | B7: ='EDIT PAY POSTING'!B7 -> XXXXXXXX5832 | E7: बैंक नाम- | F7: ='EDIT PAY POSTING'!F7 -> SBI | I7: IFSC Cod- | J7: ='EDIT PAY POSTING'!J7 -> SBIN00 | L7: बैंक A/c- | M7: ='EDIT PAY POSTING'!M7 -> 61118966625
A9: ='EDIT PAY POSTING'!A9 -> BHAGIRATH MAL | B9: Month | C9: ='EDIT PAY POSTING'!C9 -> APR-2023 | D9: ='EDIT PAY POSTING'!D9 -> MAY-2023 | E9: ='EDIT PAY POSTING'!E9 -> JUN-2023 | F9: ='EDIT PAY POSTING'!F9 -> JUL-2023 | G9: ='EDIT PAY POSTING'!G9 -> AUG-2023 | H9: ='EDIT PAY POSTING'!H9 -> SEP-2023 | I9: ='EDIT PAY POSTING'!I9 -> OCT-2023 | J9: ='EDIT PAY POSTING'!J9 -> NOV-2023 | K9: ='EDIT PAY POSTING'!K9 -> DEC-2023 | L9: ='EDIT PAY POSTING'!L9 -> JAN-2024 | M9: ='EDIT PAY POSTING'!M9 -> FEB-2024 | N9: ='EDIT PAY POSTING'!N9 -> MAR-2024
A10: वेतन एवं कटौती का विवरण | B10: DA RATES% | C10: ='EDIT PAY POSTING'!C10 -> 42 | D10: ='EDIT PAY POSTING'!D10 -> 42 | E10: ='EDIT PAY POSTING'!E10 -> 42 | F10: ='EDIT PAY POSTING'!F10 -> 42 | G10: ='EDIT PAY POSTING'!G10 -> 42 | H10: ='EDIT PAY POSTING'!H10 -> 42 | I10: ='EDIT PAY POSTING'!I10 -> 46 | J10: ='EDIT PAY POSTING'!J10 -> 46 | K10: ='EDIT PAY POSTING'!K10 -> 46 | L10: ='EDIT PAY POSTING'!L10 -> 46 | M10: ='EDIT PAY POSTING'!M10 -> 46 | N10: ='EDIT PAY POSTING'!N10 -> 46
B11: Bill No. | C11: ='EDIT PAY POSTING'!C11 -> 3 | D11: ='EDIT PAY POSTING'!D11 -> 9 | E11: ='EDIT PAY POSTING'!E11 -> 11 | F11: ='EDIT PAY POSTING'!F11 -> 17 | G11: ='EDIT PAY POSTING'!G11 -> 20 | H11: ='EDIT PAY POSTING'!H11 -> 22 | I11: ='EDIT PAY POSTING'!I11 -> 27 | J11: ='EDIT PAY POSTING'!J11 -> 31 | K11: ='EDIT PAY POSTING'!K11 -> 33 | L11: ='EDIT PAY POSTING'!L11 -> 36 | M11: ='EDIT PAY POSTING'!M11 -> 41 | N11: ='EDIT PAY POSTING'!N11 -> 0
B12: DATE | C12: ='EDIT PAY POSTING'!C12 -> 2023-05-07 | D12: ='EDIT PAY POSTING'!D12 -> 2023-05-08 | E12: ='EDIT PAY POSTING'!E12 -> 2023-05-09 | F12: ='EDIT PAY POSTING'!F12 -> 2023-05-10 | G12: ='EDIT PAY POSTING'!G12 -> 2023-05-11 | H12: ='EDIT PAY POSTING'!H12 -> 2023-05-12 | I12: ='EDIT PAY POSTING'!I12 -> 2023-05-13 | J12: ='EDIT PAY POSTING'!J12 -> 2023-05-14 | K12: ='EDIT PAY POSTING'!K12 -> 2023-05-15 | L12: ='EDIT PAY POSTING'!L12 -> 2023-05-16 | M12: ='EDIT PAY POSTING'!M12 -> 2023-05-17 | N12: ='EDIT PAY POSTING'!N12 -> 2023-05-18
B13: TV No. | C13: ='EDIT PAY POSTING'!C13 -> 15843 | D13: ='EDIT PAY POSTING'!D13 -> 22151 | E13: ='EDIT PAY POSTING'!E13 -> 33751 | F13: ='EDIT PAY POSTING'!F13 -> 45857 | G13: ='EDIT PAY POSTING'!G13 -> 54785 | H13: ='EDIT PAY POSTING'!H13 -> 65093 | I13: ='EDIT PAY POSTING'!I13 -> 74203 | J13: ='EDIT PAY POSTING'!J13 -> 87547 | K13: ='EDIT PAY POSTING'!K13 -> 98298 | L13: ='EDIT PAY POSTING'!L13 -> 108163 | M13: ='EDIT PAY POSTING'!M13 -> 123382 | N13: ='EDIT PAY POSTING'!N13 -> 0
B14: DATE | C14: ='EDIT PAY POSTING'!C14 -> 2023-05-13 | D14: ='EDIT PAY POSTING'!D14 -> 2023-05-14 | E14: ='EDIT PAY POSTING'!E14 -> 2023-05-15 | F14: ='EDIT PAY POSTING'!F14 -> 2023-05-16 | G14: ='EDIT PAY POSTING'!G14 -> 2023-05-17 | H14: ='EDIT PAY POSTING'!H14 -> 2023-05-18 | I14: ='EDIT PAY POSTING'!I14 -> 2023-05-19 | J14: ='EDIT PAY POSTING'!J14 -> 2023-05-20 | K14: ='EDIT PAY POSTING'!K14 -> 2023-05-21 | L14: ='EDIT PAY POSTING'!L14 -> 2023-05-22 | M14: ='EDIT PAY POSTING'!M14 -> 2023-05-23 | N14: ='EDIT PAY POSTING'!N14 -> 2023-05-24
A16: 1. वेतन
B17: ='EDIT PAY POSTING'!B17 -> मूल वेतन | C17: ='EDIT PAY POSTING'!C17 -> 69200 | D17: ='EDIT PAY POSTING'!D17 -> 69200 | E17: ='EDIT PAY POSTING'!E17 -> 69200 | F17: ='EDIT PAY POSTING'!F17 -> 71300 | G17: ='EDIT PAY POSTING'!G17 -> 71300 | H17: ='EDIT PAY POSTING'!H17 -> 71300 | I17: ='EDIT PAY POSTING'!I17 -> 71300 | J17: ='EDIT PAY POSTING'!J17 -> 71300 | K17: ='EDIT PAY POSTING'!K17 -> 71300 | L17: ='EDIT PAY POSTING'!L17 -> 73200 | M17: ='EDIT PAY POSTING'!M17 -> 73200 | N17: ='EDIT PAY POSTING'!N17 -> 73200
B18: ='EDIT PAY POSTING'!B18 -> अवकाश वेतन | C18: ='EDIT PAY POSTING'!C18 -> 0 | D18: ='EDIT PAY POSTING'!D18 -> 0 | E18: ='EDIT PAY POSTING'!E18 -> 0 | F18: ='EDIT PAY POSTING'!F18 -> 0 | G18: ='EDIT PAY POSTING'!G18 -> 0 | H18: ='EDIT PAY POSTING'!H18 -> 0 | I18: ='EDIT PAY POSTING'!I18 -> 0 | J18: ='EDIT PAY POSTING'!J18 -> 0 | K18: ='EDIT PAY POSTING'!K18 -> 0 | L18: ='EDIT PAY POSTING'!L18 -> 0 | M18: ='EDIT PAY POSTING'!M18 -> 0 | N18: ='EDIT PAY POSTING'!N18 -> 0
B19: ='EDIT PAY POSTING'!B19 -> विशेष वेतन | C19: ='EDIT PAY POSTING'!C19 -> 0 | D19: ='EDIT PAY POSTING'!D19 -> 0 | E19: ='EDIT PAY POSTING'!E19 -> 0 | F19: ='EDIT PAY POSTING'!F19 -> 0 | G19: ='EDIT PAY POSTING'!G19 -> 0 | H19: ='EDIT PAY POSTING'!H19 -> 0 | I19: ='EDIT PAY POSTING'!I19 -> 0 | J19: ='EDIT PAY POSTING'!J19 -> 0 | K19: ='EDIT PAY POSTING'!K19 -> 0 | L19: ='EDIT PAY POSTING'!L19 -> 0 | M19: ='EDIT PAY POSTING'!M19 -> 0 | N19: ='EDIT PAY POSTING'!N19 -> 0
B20: ='EDIT PAY POSTING'!B20 -> मंहगाई भत्ता | C20: ='EDIT PAY POSTING'!C20 -> 29064 | D20: ='EDIT PAY POSTING'!D20 -> 29064 | E20: ='EDIT PAY POSTING'!E20 -> 29064 | F20: ='EDIT PAY POSTING'!F20 -> 29946 | G20: ='EDIT PAY POSTING'!G20 -> 29946 | H20: ='EDIT PAY POSTING'!H20 -> 29946 | I20: ='EDIT PAY POSTING'!I20 -> 32798 | J20: ='EDIT PAY POSTING'!J20 -> 32798 | K20: ='EDIT PAY POSTING'!K20 -> 32798 | L20: ='EDIT PAY POSTING'!L20 -> 33672 | M20: ='EDIT PAY POSTING'!M20 -> 33672 | N20: ='EDIT PAY POSTING'!N20 -> 33672
B21: ='EDIT PAY POSTING'!B21 -> मकान किराया भत्ता | C21: ='EDIT PAY POSTING'!C21 -> 6228 | D21: ='EDIT PAY POSTING'!D21 -> 6228 | E21: ='EDIT PAY POSTING'!E21 -> 6228 | F21: ='EDIT PAY POSTING'!F21 -> 6417 | G21: ='EDIT PAY POSTING'!G21 -> 6417 | H21: ='EDIT PAY POSTING'!H21 -> 6417 | I21: ='EDIT PAY POSTING'!I21 -> 6417 | J21: ='EDIT PAY POSTING'!J21 -> 6417 | K21: ='EDIT PAY POSTING'!K21 -> 6417 | L21: ='EDIT PAY POSTING'!L21 -> 6588 | M21: ='EDIT PAY POSTING'!M21 -> 6588 | N21: ='EDIT PAY POSTING'!N21 -> 6588
B22: ='EDIT PAY POSTING'!B22 -> विकलांग भत्ता | C22: ='EDIT PAY POSTING'!C22 -> 0 | D22: ='EDIT PAY POSTING'!D22 -> 0 | E22: ='EDIT PAY POSTING'!E22 -> 0 | F22: ='EDIT PAY POSTING'!F22 -> 0 | G22: ='EDIT PAY POSTING'!G22 -> 0 | H22: ='EDIT PAY POSTING'!H22 -> 0 | I22: ='EDIT PAY POSTING'!I22 -> 0 | J22: ='EDIT PAY POSTING'!J22 -> 0 | K22: ='EDIT PAY POSTING'!K22 -> 0 | L22: ='EDIT PAY POSTING'!L22 -> 0 | M22: ='EDIT PAY POSTING'!M22 -> 0 | N22: ='EDIT PAY POSTING'!N22 -> 0
B23: ='EDIT PAY POSTING'!B23 -> शहरी भत्ता | C23: ='EDIT PAY POSTING'!C23 -> 0 | D23: ='EDIT PAY POSTING'!D23 -> 0 | E23: ='EDIT PAY POSTING'!E23 -> 0 | F23: ='EDIT PAY POSTING'!F23 -> 0 | G23: ='EDIT PAY POSTING'!G23 -> 0 | H23: ='EDIT PAY POSTING'!H23 -> 0 | I23: ='EDIT PAY POSTING'!I23 -> 0 | J23: ='EDIT PAY POSTING'!J23 -> 0 | K23: ='EDIT PAY POSTING'!K23 -> 0 | L23: ='EDIT PAY POSTING'!L23 -> 0 | M23: ='EDIT PAY POSTING'!M23 -> 0 | N23: ='EDIT PAY POSTING'!N23 -> 0
B24: ='EDIT PAY POSTING'!B24 -> अन्य 1 | C24: ='EDIT PAY POSTING'!C24 -> 0 | D24: 0 | E24: ='EDIT PAY POSTING'!E24 -> 0 | F24: ='EDIT PAY POSTING'!F24 -> 0 | G24: ='EDIT PAY POSTING'!G24 -> 0 | H24: ='EDIT PAY POSTING'!H24 -> 0 | I24: ='EDIT PAY POSTING'!I24 -> 0 | J24: ='EDIT PAY POSTING'!J24 -> 0 | K24: ='EDIT PAY POSTING'!K24 -> 0 | L24: ='EDIT PAY POSTING'!L24 -> 0 | M24: ='EDIT PAY POSTING'!M24 -> 0 | N24: ='EDIT PAY POSTING'!N24 -> 0
B25: ='EDIT PAY POSTING'!B25 -> अन्य 2 | C25: ='EDIT PAY POSTING'!C25 -> 0 | D25: ='EDIT PAY POSTING'!D25 -> 0 | E25: ='EDIT PAY POSTING'!E25 -> 0 | F25: ='EDIT PAY POSTING'!F25 -> 0 | G25: ='EDIT PAY POSTING'!G25 -> 0 | H25: ='EDIT PAY POSTING'!H25 -> 0 | I25: ='EDIT PAY POSTING'!I25 -> 0 | J25: ='EDIT PAY POSTING'!J25 -> 0 | K25: ='EDIT PAY POSTING'!K25 -> 0 | L25: ='EDIT PAY POSTING'!L25 -> 0 | M25: ='EDIT PAY POSTING'!M25 -> 0 | N25: ='EDIT PAY POSTING'!N25 -> 0
B26: ='EDIT PAY POSTING'!B26 -> अन्य 3 | C26: ='EDIT PAY POSTING'!C26 -> 0 | D26: ='EDIT PAY POSTING'!D26 -> 0 | E26: ='EDIT PAY POSTING'!E26 -> 0 | F26: ='EDIT PAY POSTING'!F26 -> 0 | G26: ='EDIT PAY POSTING'!G26 -> 0 | H26: ='EDIT PAY POSTING'!H26 -> 0 | I26: ='EDIT PAY POSTING'!I26 -> 0 | J26: ='EDIT PAY POSTING'!J26 -> 0 | K26: ='EDIT PAY POSTING'!K26 -> 0 | L26: ='EDIT PAY POSTING'!L26 -> 0 | M26: ='EDIT PAY POSTING'!M26 -> 0 | N26: ='EDIT PAY POSTING'!N26 -> 0
A27: योग (अ) | C27: =SUM(C17:C26) -> 104492 | D27: =SUM(D17:D26) -> 104492 | E27: 104492 | F27: 107663 | G27: 107663 | H27: 107663 | I27: 110515 | J27: 110515 | K27: 110515 | L27: 113460 | M27: 113460 | N27: 113460
A29: (2)माहवार कटौतियां
B30: GPF/GPF2004 | C30: ='EDIT PAY POSTING'!C30 -> 4200 | D30: 4200 | E30: ='EDIT PAY POSTING'!E30 -> 4200 | F30: ='EDIT PAY POSTING'!F30 -> 4200 | G30: ='EDIT PAY POSTING'!G30 -> 4200 | H30: ='EDIT PAY POSTING'!H30 -> 4200 | I30: ='EDIT PAY POSTING'!I30 -> 4200 | J30: ='EDIT PAY POSTING'!J30 -> 4200 | K30: ='EDIT PAY POSTING'!K30 -> 4200 | L30: ='EDIT PAY POSTING'!L30 -> 4200 | M30: ='EDIT PAY POSTING'!M30 -> 4200 | N30: ='EDIT PAY POSTING'!N30 -> 4200
B31: GPF Loan | C31: ='EDIT PAY POSTING'!C31 -> 0 | D31: ='EDIT PAY POSTING'!D31 -> 0 | E31: ='EDIT PAY POSTING'!E31 -> 0 | F31: ='EDIT PAY POSTING'!F31 -> 0 | G31: ='EDIT PAY POSTING'!G31 -> 0 | H31: ='EDIT PAY POSTING'!H31 -> 0 | I31: ='EDIT PAY POSTING'!I31 -> 0 | J31: ='EDIT PAY POSTING'!J31 -> 0 | K31: ='EDIT PAY POSTING'!K31 -> 0 | L31: ='EDIT PAY POSTING'!L31 -> 0 | M31: ='EDIT PAY POSTING'!M31 -> 0 | N31: ='EDIT PAY POSTING'!N31 -> 0
B32: NPS | C32: ='EDIT PAY POSTING'!C32 -> 0 | D32: ='EDIT PAY POSTING'!D32 -> 0 | E32: ='EDIT PAY POSTING'!E32 -> 0 | F32: ='EDIT PAY POSTING'!F32 -> 0 | G32: ='EDIT PAY POSTING'!G32 -> 0 | H32: ='EDIT PAY POSTING'!H32 -> 0 | I32: ='EDIT PAY POSTING'!I32 -> 0 | J32: ='EDIT PAY POSTING'!J32 -> 0 | K32: ='EDIT PAY POSTING'!K32 -> 0 | L32: ='EDIT PAY POSTING'!L32 -> 0 | M32: ='EDIT PAY POSTING'!M32 -> 0 | N32: ='EDIT PAY POSTING'!N32 -> 0
B33: SI | C33: ='EDIT PAY POSTING'!C33 -> 5000 | D33: ='EDIT PAY POSTING'!D33 -> 5000 | E33: ='EDIT PAY POSTING'!E33 -> 5000 | F33: ='EDIT PAY POSTING'!F33 -> 5000 | G33: ='EDIT PAY POSTING'!G33 -> 5000 | H33: ='EDIT PAY POSTING'!H33 -> 5000 | I33: ='EDIT PAY POSTING'!I33 -> 5000 | J33: ='EDIT PAY POSTING'!J33 -> 5000 | K33: ='EDIT PAY POSTING'!K33 -> 5000 | L33: ='EDIT PAY POSTING'!L33 -> 5000 | M33: ='EDIT PAY POSTING'!M33 -> 5000 | N33: ='EDIT PAY POSTING'!N33 -> 5000
B34: SI Loan | C34: ='EDIT PAY POSTING'!C34 -> 0 | D34: ='EDIT PAY POSTING'!D34 -> 0 | E34: ='EDIT PAY POSTING'!E34 -> 0 | F34: ='EDIT PAY POSTING'!F34 -> 0 | G34: ='EDIT PAY POSTING'!G34 -> 0 | H34: ='EDIT PAY POSTING'!H34 -> 0 | I34: ='EDIT PAY POSTING'!I34 -> 0 | J34: ='EDIT PAY POSTING'!J34 -> 0 | K34: ='EDIT PAY POSTING'!K34 -> 0 | L34: ='EDIT PAY POSTING'!L34 -> 0 | M34: ='EDIT PAY POSTING'!M34 -> 0 | N34: ='EDIT PAY POSTING'!N34 -> 0
B35: ITAX | C35: ='EDIT PAY POSTING'!C35 -> 7000 | D35: ='EDIT PAY POSTING'!D35 -> 7000 | E35: ='EDIT PAY POSTING'!E35 -> 7000 | F35: ='EDIT PAY POSTING'!F35 -> 7000 | G35: ='EDIT PAY POSTING'!G35 -> 7000 | H35: ='EDIT PAY POSTING'!H35 -> 7000 | I35: ='EDIT PAY POSTING'!I35 -> 7000 | J35: ='EDIT PAY POSTING'!J35 -> 7000 | K35: ='EDIT PAY POSTING'!K35 -> 7000 | L35: ='EDIT PAY POSTING'!L35 -> 7000 | M35: ='EDIT PAY POSTING'!M35 -> 7000 | N35: ='EDIT PAY POSTING'!N35 -> 7000
B36: RPMF/RGHS | C36: ='EDIT PAY POSTING'!C36 -> 875 | D36: ='EDIT PAY POSTING'!D36 -> 875 | E36: ='EDIT PAY POSTING'!E36 -> 875 | F36: ='EDIT PAY POSTING'!F36 -> 875 | G36: ='EDIT PAY POSTING'!G36 -> 875 | H36: ='EDIT PAY POSTING'!H36 -> 875 | I36: ='EDIT PAY POSTING'!I36 -> 875 | J36: ='EDIT PAY POSTING'!J36 -> 875 | K36: ='EDIT PAY POSTING'!K36 -> 875 | L36: ='EDIT PAY POSTING'!L36 -> 875 | M36: ='EDIT PAY POSTING'!M36 -> 875 | N36: ='EDIT PAY POSTING'!N36 -> 875
B37: LIC | C37: ='EDIT PAY POSTING'!C37 -> 0 | D37: ='EDIT PAY POSTING'!D37 -> 0 | E37: ='EDIT PAY POSTING'!E37 -> 0 | F37: ='EDIT PAY POSTING'!F37 -> 0 | G37: ='EDIT PAY POSTING'!G37 -> 0 | H37: ='EDIT PAY POSTING'!H37 -> 0 | I37: ='EDIT PAY POSTING'!I37 -> 0 | J37: ='EDIT PAY POSTING'!J37 -> 0 | K37: ='EDIT PAY POSTING'!K37 -> 0 | L37: ='EDIT PAY POSTING'!L37 -> 0 | M37: ='EDIT PAY POSTING'!M37 -> 0 | N37: ='EDIT PAY POSTING'!N37 -> 0
B38: OTHER | C38: ='EDIT PAY POSTING'!C38 -> 0 | D38: ='EDIT PAY POSTING'!D38 -> 0 | E38: ='EDIT PAY POSTING'!E38 -> 0 | F38: ='EDIT PAY POSTING'!F38 -> 0 | G38: ='EDIT PAY POSTING'!G38 -> 0 | H38: ='EDIT PAY POSTING'!H38 -> 0 | I38: ='EDIT PAY POSTING'!I38 -> 0 | J38: ='EDIT PAY POSTING'!J38 -> 0 | K38: ='EDIT PAY POSTING'!K38 -> 0 | L38: ='EDIT PAY POSTING'!L38 -> 0 | M38: ='EDIT PAY POSTING'!M38 -> 0 | N38: ='EDIT PAY POSTING'!N38 -> 0
B39: GIS | C39: ='EDIT PAY POSTING'!C39 -> 0 | D39: ='EDIT PAY POSTING'!D39 -> 0 | E39: ='EDIT PAY POSTING'!E39 -> 0 | F39: ='EDIT PAY POSTING'!F39 -> 0 | G39: ='EDIT PAY POSTING'!G39 -> 0 | H39: ='EDIT PAY POSTING'!H39 -> 0 | I39: ='EDIT PAY POSTING'!I39 -> 0 | J39: ='EDIT PAY POSTING'!J39 -> 0 | K39: ='EDIT PAY POSTING'!K39 -> 0 | L39: ='EDIT PAY POSTING'!L39 -> 0 | M39: ='EDIT PAY POSTING'!M39 -> 0 | N39: ='EDIT PAY POSTING'!N39 -> 0
B40: हितकारी निधि | C40: ='EDIT PAY POSTING'!C40 -> 0 | D40: ='EDIT PAY POSTING'!D40 -> 0 | E40: ='EDIT PAY POSTING'!E40 -> 0 | F40: ='EDIT PAY POSTING'!F40 -> 0 | G40: ='EDIT PAY POSTING'!G40 -> 0 | H40: ='EDIT PAY POSTING'!H40 -> 0 | I40: ='EDIT PAY POSTING'!I40 -> 0 | J40: ='EDIT PAY POSTING'!J40 -> 0 | K40: ='EDIT PAY POSTING'!K40 -> 250 | L40: ='EDIT PAY POSTING'!L40 -> 0 | M40: ='EDIT PAY POSTING'!M40 -> 0 | N40: ='EDIT PAY POSTING'!N40 -> 0
B41: अन्य 1 | C41: ='EDIT PAY POSTING'!C41 -> 0 | D41: ='EDIT PAY POSTING'!D41 -> 0 | E41: ='EDIT PAY POSTING'!E41 -> 0 | F41: ='EDIT PAY POSTING'!F41 -> 0 | G41: ='EDIT PAY POSTING'!G41 -> 0 | H41: ='EDIT PAY POSTING'!H41 -> 0 | I41: ='EDIT PAY POSTING'!I41 -> 0 | J41: ='EDIT PAY POSTING'!J41 -> 0 | K41: ='EDIT PAY POSTING'!K41 -> 0 | L41: ='EDIT PAY POSTING'!L41 -> 0 | M41: ='EDIT PAY POSTING'!M41 -> 0 | N41: ='EDIT PAY POSTING'!N41 -> 0
B42: अन्य 2 | C42: ='EDIT PAY POSTING'!C42 -> 0 | D42: ='EDIT PAY POSTING'!D42 -> 0 | E42: ='EDIT PAY POSTING'!E42 -> 0 | F42: ='EDIT PAY POSTING'!F42 -> 0 | G42: ='EDIT PAY POSTING'!G42 -> 0 | H42: ='EDIT PAY POSTING'!H42 -> 0 | I42: ='EDIT PAY POSTING'!I42 -> 0 | J42: ='EDIT PAY POSTING'!J42 -> 0 | K42: ='EDIT PAY POSTING'!K42 -> 0 | L42: ='EDIT PAY POSTING'!L42 -> 0 | M42: ='EDIT PAY POSTING'!M42 -> 0 | N42: ='EDIT PAY POSTING'!N42 -> 0
B43: अन्य 3 | C43: ='EDIT PAY POSTING'!C43 -> 0 | D43: ='EDIT PAY POSTING'!D43 -> 0 | E43: ='EDIT PAY POSTING'!E43 -> 0 | F43: ='EDIT PAY POSTING'!F43 -> 0 | G43: ='EDIT PAY POSTING'!G43 -> 0 | H43: ='EDIT PAY POSTING'!H43 -> 0 | I43: ='EDIT PAY POSTING'!I43 -> 0 | J43: ='EDIT PAY POSTING'!J43 -> 0 | K43: ='EDIT PAY POSTING'!K43 -> 0 | L43: ='EDIT PAY POSTING'!L43 -> 0 | M43: ='EDIT PAY POSTING'!M43 -> 0 | N43: ='EDIT PAY POSTING'!N43 -> 0
A44: योग (2) | C44: =SUM(C30:C43) -> 17075 | D44: =SUM(D30:D43) -> 17075 | E44: 17075 | F44: 17075 | G44: 17075 | H44: 17075 | I44: 17075 | J44: 17075 | K44: 17325 | L44: 17075 | M44: 17075 | N44: 17075
A45: कुल देय वेतन राशि (1-2) | C45: =C27-C44 -> 87417 | D45: =D27-D44 -> 87417 | E45: 87417 | F45: 90588 | G45: 90588 | H45: 90588 | I45: 93440 | J45: 93440 | K45: 93190 | L45: =L27-L44 -> 96385 | M45: =M27-M44 -> 96385 | N45: =N27-N44 -> 96385
A47: Arrear Type | B47: Bill No. and TV No. | C47: (3) शेष बकाया भुगतान का विवरण
A48: ='EDIT PAY POSTING'!A48 -> Arrear 1 | B48: ='EDIT PAY POSTING'!B48 -> 0 | C48: ='EDIT PAY POSTING'!C48 -> 0 | D48: ='EDIT PAY POSTING'!D48 -> 0 | E48: ='EDIT PAY POSTING'!E48 -> 0 | F48: ='EDIT PAY POSTING'!F48 -> 0 | G48: ='EDIT PAY POSTING'!G48 -> 0 | H48: ='EDIT PAY POSTING'!H48 -> 0 | I48: ='EDIT PAY POSTING'!I48 -> 0 | J48: ='EDIT PAY POSTING'!J48 -> 0 | K48: ='EDIT PAY POSTING'!K48 -> 0 | L48: ='EDIT PAY POSTING'!L48 -> 0 | M48: ='EDIT PAY POSTING'!M48 -> 0 | N48: ='EDIT PAY POSTING'!N48 -> 0
A49: ='EDIT PAY POSTING'!A49 -> Arrear 2 | B49: ='EDIT PAY POSTING'!B49 -> 0 | C49: ='EDIT PAY POSTING'!C49 -> 0 | D49: ='EDIT PAY POSTING'!D49 -> 0 | E49: ='EDIT PAY POSTING'!E49 -> 0 | F49: ='EDIT PAY POSTING'!F49 -> 0 | G49: ='EDIT PAY POSTING'!G49 -> 0 | H49: ='EDIT PAY POSTING'!H49 -> 0 | I49: ='EDIT PAY POSTING'!I49 -> 0 | J49: ='EDIT PAY POSTING'!J49 -> 0 | K49: ='EDIT PAY POSTING'!K49 -> 0 | L49: ='EDIT PAY POSTING'!L49 -> 0 | M49: ='EDIT PAY POSTING'!M49 -> 0 | N49: ='EDIT PAY POSTING'!N49 -> 0
A50: ='EDIT PAY POSTING'!A50 -> Arrear 3 | B50: ='EDIT PAY POSTING'!B50 -> 0 | C50: ='EDIT PAY POSTING'!C50 -> 0 | D50: ='EDIT PAY POSTING'!D50 -> 0 | E50: ='EDIT PAY POSTING'!E50 -> 0 | F50: ='EDIT PAY POSTING'!F50 -> 0 | G50: ='EDIT PAY POSTING'!G50 -> 0 | H50: ='EDIT PAY POSTING'!H50 -> 0 | I50: ='EDIT PAY POSTING'!I50 -> 0 | J50: ='EDIT PAY POSTING'!J50 -> 0 | K50: ='EDIT PAY POSTING'!K50 -> 0 | L50: ='EDIT PAY POSTING'!L50 -> 0 | M50: ='EDIT PAY POSTING'!M50 -> 0 | N50: ='EDIT PAY POSTING'!N50 -> 0
A51: ='EDIT PAY POSTING'!A51 -> Arrear 4 | B51: ='EDIT PAY POSTING'!B51 -> 0 | C51: ='EDIT PAY POSTING'!C51 -> 0 | D51: ='EDIT PAY POSTING'!D51 -> 0 | E51: ='EDIT PAY POSTING'!E51 -> 0 | F51: ='EDIT PAY POSTING'!F51 -> 0 | G51: ='EDIT PAY POSTING'!G51 -> 0 | H51: ='EDIT PAY POSTING'!H51 -> 0 | I51: ='EDIT PAY POSTING'!I51 -> 0 | J51: ='EDIT PAY POSTING'!J51 -> 0 | K51: ='EDIT PAY POSTING'!K51 -> 0 | L51: ='EDIT PAY POSTING'!L51 -> 0 | M51: ='EDIT PAY POSTING'!M51 -> 0 | N51: ='EDIT PAY POSTING'!N51 -> 0
A52: कुल राशि | C52: =SUM(C48:C51) -> 0 | D52: =SUM(D48:D51) -> 0 | E52: 0 | F52: 0 | G52: 0 | H52: 0 | I52: 0 | J52: 0 | K52: 0 | L52: =SUM(L48:L51) -> 0 | M52: =SUM(M48:M51) -> 0 | N52: =SUM(N48:N51) -> 0
A54: समर्पित या अंतिम उपार्जित अवकाश | B54: Bill No. and TV No. | C54: (4) समर्पित या उपार्जित अवकाश का भुगतान विवरण
B55: ='EDIT PAY POSTING'!B55 -> 0 | C55: ='EDIT PAY POSTING'!C55 -> 0 | D55: ='EDIT PAY POSTING'!D55 -> 0 | E55: ='EDIT PAY POSTING'!E55 -> 0 | F55: ='EDIT PAY POSTING'!F55 -> 0 | G55: ='EDIT PAY POSTING'!G55 -> 0 | H55: ='EDIT PAY POSTING'!H55 -> 0 | I55: ='EDIT PAY POSTING'!I55 -> 0 | J55: ='EDIT PAY POSTING'!J55 -> 0 | K55: ='EDIT PAY POSTING'!K55 -> 52049 | L55: ='EDIT PAY POSTING'!L55 -> 0 | M55: ='EDIT PAY POSTING'!M55 -> 0 | N55: ='EDIT PAY POSTING'!N55 -> 0
A57: कुल प्राप्त वेतन योग माहवार | C57: =SUM(C45,C52,C55) -> 87417 | D57: =SUM(D45,D52,D55) -> 87417 | E57: 87417 | F57: 90588 | G57: 90588 | H57: 90588 | I57: 93440 | J57: 93440 | K57: 145239 | L57: 96385 | M57: 96385 | N57: 96385
A61: लिपिक के हस्ताक्षर | J61: DDO के हस्ताक्षर/शील
